Workbook

Sheet Instructions
D2: Aaron's Yu-Gi-Oh Card Printer
D4: Have you ever wondered if a new deck style would be fun and effective, but didn't want to buy before you try? Go to the [Cardmaker] tab (below) and type in the names of the cards you want in your 'trial deck'. The spreadsheet will look up the data for those cards and format them nine to a page, ready to print on paper or light card stock. Print 'em, cut 'em out, slip them into card sleeves, and you're ready to test play. They aren't pretty and they certainly aren't legal for tournament play, but they have what you need to test a new deck.
D6: • Click to the [Cardmaker] tab (below) and enter the names of the cards for your deck in the first collumn.
D7: • The spreadsheet formats five pages of nine cards - 45 cards total.
D8: • Click the [Print Cards] button to preview and print the cards -- formatted for 8.5" by 11" paper.
D9: • The forbidden/limited card data in the [Limited] tab is the official list as of January 28, 2019.
D10: • The card data file in the [All Cards] tab was created in March of 2019 - all the official cards in play as of that date.
D12: I've entered my very old 'Zombie' deck as an example deck in the 'Cardmaker' tab. Note that the spreadsheet checks cards against the 'Forbidden/ Limited' data file as they are entered and marks those cards for you.

Sheet Cardmaker
B1: Card Name | E1: =$B2 -> Breaker the Magical Warrior | H1: =$B3 -> D.D. Warrior Lady | K1: =$B4 -> Exiled Force | R1: Type | S1: Attribute | T1: Subtype | U1: Level | V1: Attack | W1: Defense | X1: Card Text
A2: 1 | B2: Breaker the Magical Warrior | C2: =IF(ISNA(VLOOKUP($B2,Limited!$B$1:$C$200,2,FALSE)),"",VLOOKUP($B2,Limited!$B$2:$C$200,2,FALSE)) ->  | R2: =IF(ISNONTEXT(VLOOKUP($B2,'All Cards'!$A$2:$I$9092,5,FALSE)),"",VLOOKUP($B2,'All Cards'!$A$2:$I$9092,5,FALSE)) -> Dark | S2: =IF(ISNONTEXT(VLOOKUP($B2,'All Cards'!$A$2:$I$9092,4,FALSE)),"",VLOOKUP($B2,'All Cards'!$A$2:$I$9092,4,FALSE)) -> Spellcaster | T2: =IF(ISNONTEXT(VLOOKUP($B2,'All Cards'!$A$2:$I$9092,3,FALSE)),"",VLOOKUP($B2,'All Cards'!$A$2:$I$9092,3,FALSE)) -> Effect Monster | U2: =IF(ISBLANK(VLOOKUP($B2,'All Cards'!$A$2:$I$9092,6,FALSE))," ",VLOOKUP($B2,'All Cards'!$A$2:$I$9092,6,FALSE)) -> 4 | V2: =IF(ISBLANK(VLOOKUP($B2,'All Cards'!$A$2:$I$9093,7,FALSE)),"",VLOOKUP($B2,'All Cards'!$A$2:$I$9093,7,FALSE)) -> 1600 | W2: =IF(ISBLANK(VLOOKUP($B2,'All Cards'!$A$2:$I$9093,8,FALSE)),"",VLOOKUP($B2,'All Cards'!$A$2:$I$9093,8,FALSE)) -> 1000 | X2: =IF(ISNONTEXT(VLOOKUP($B2,'All Cards'!$A$2:$I$9092,9,FALSE)),"",VLOOKUP($B2,'All Cards'!$A$2:$I$9092,9,FALSE)) -> When this card is Normal Summoned: Place 1 Spell Counter on it (max. 1). This card gains 300 ATK for each Spell Counter on it. You can remove 1 Spell Counter from this card to target 1 Spell/Trap Card on the field; destroy that target.
A3: 2 | B3: D.D. Warrior Lady | C3: =IF(ISNA(VLOOKUP($B3,Limited!$B$1:$C$200,2,FALSE)),"",VLOOKUP($B3,Limited!$B$2:$C$200,2,FALSE)) ->  | E3: =IF($R2=0,"",$R2) -> Dark | F3: =VLOOKUP($U2,$O$4:$P$16,2,FALSE) ->  | H3: =IF($R3=0,"",$R3) -> Light | I3: =VLOOKUP($U3,$O$4:$P$16,2,FALSE) ->  | K3: =IF($R4=0,"",$R4) -> Earth | L3: =VLOOKUP($U4,$O$4:$P$16,2,FALSE) ->  | R3: =IF(ISNONTEXT(VLOOKUP($B3,'All Cards'!$A$2:$I$9092,5,FALSE)),"",VLOOKUP($B3,'All Cards'!$A$2:$I$9092,5,FALSE)) -> Light | S3: =IF(ISNONTEXT(VLOOKUP($B3,'All Cards'!$A$2:$I$9092,4,FALSE)),"",VLOOKUP($B3,'All Cards'!$A$2:$I$9092,4,FALSE)) -> Warrior | T3: =IF(ISNONTEXT(VLOOKUP($B3,'All Cards'!$A$2:$I$9092,3,FALSE)),"",VLOOKUP($B3,'All Cards'!$A$2:$I$9092,3,FALSE)) -> Effect Monster | U3: =IF(ISBLANK(VLOOKUP($B3,'All Cards'!$A$2:$I$9093,6,FALSE))," ",VLOOKUP($B3,'All Cards'!$A$2:$I$9092,6,FALSE)) -> 4 | V3: =IF(ISBLANK(VLOOKUP($B3,'All Cards'!$A$2:$I$9093,7,FALSE)),"",VLOOKUP($B3,'All Cards'!$A$2:$I$9093,7,FALSE)) -> 1500 | W3: =IF(ISBLANK(VLOOKUP($B3,'All Cards'!$A$2:$I$9093,8,FALSE)),"",VLOOKUP($B3,'All Cards'!$A$2:$I$9093,8,FALSE)) -> 1600 | X3: =IF(ISNONTEXT(VLOOKUP($B3,'All Cards'!$A$2:$I$9092,9,FALSE)),"",VLOOKUP($B3,'All Cards'!$A$2:$I$9092,9,FALSE)) -> After damage calculation, when this card battles an opponent's monster: You can banish that monster, also banish this card.
A4: 3 | B4: Exiled Force | C4: =IF(ISNA(VLOOKUP($B4,Limited!$B$1:$C$200,2,FALSE)),"",VLOOKUP($B4,Limited!$B$2:$C$200,2,FALSE)) ->  | E4: =$S2&" / "&$T2 -> Spellcaster / Effect Monster | H4: =$S3&" / "&$T3 -> Warrior / Effect Monster | K4: =$S4&" / "&$T4 -> Warrior / Effect Monster | R4: =IF(ISNONTEXT(VLOOKUP($B4,'All Cards'!$A$2:$I$9092,5,FALSE)),"",VLOOKUP($B4,'All Cards'!$A$2:$I$9092,5,FALSE)) -> Earth | S4: =IF(ISNONTEXT(VLOOKUP($B4,'All Cards'!$A$2:$I$9092,4,FALSE)),"",VLOOKUP($B4,'All Cards'!$A$2:$I$9092,4,FALSE)) -> Warrior | T4: =IF(ISNONTEXT(VLOOKUP($B4,'All Cards'!$A$2:$I$9092,3,FALSE)),"",VLOOKUP($B4,'All Cards'!$A$2:$I$9092,3,FALSE)) -> Effect Monster | U4: =IF(ISBLANK(VLOOKUP($B4,'All Cards'!$A$2:$I$9093,6,FALSE))," ",VLOOKUP($B4,'All Cards'!$A$2:$I$9092,6,FALSE)) -> 4 | V4: =IF(ISBLANK(VLOOKUP($B4,'All Cards'!$A$2:$I$9093,7,FALSE)),"",VLOOKUP($B4,'All Cards'!$A$2:$I$9093,7,FALSE)) -> 1000 | W4: =IF(ISBLANK(VLOOKUP($B4,'All Cards'!$A$2:$I$9093,8,FALSE)),"",VLOOKUP($B4,'All Cards'!$A$2:$I$9093,8,FALSE)) -> 1000 | X4: =IF(ISNONTEXT(VLOOKUP($B4,'All Cards'!$A$2:$I$9092,9,FALSE)),"",VLOOKUP($B4,'All Cards'!$A$2:$I$9092,9,FALSE)) -> You can Tribute this card to destroy 1 monster on the field.
A5: 4 | B5: Giant Rat | C5: =IF(ISNA(VLOOKUP($B5,Limited!$B$1:$C$200,2,FALSE)),"",VLOOKUP($B5,Limited!$B$2:$C$200,2,FALSE)) ->  | O5: 1 | P5:  | R5: =IF(ISNONTEXT(VLOOKUP($B5,'All Cards'!$A$2:$I$9092,5,FALSE)),"",VLOOKUP($B5,'All Cards'!$A$2:$I$9092,5,FALSE)) -> Earth | S5: =IF(ISNONTEXT(VLOOKUP($B5,'All Cards'!$A$2:$I$9092,4,FALSE)),"",VLOOKUP($B5,'All Cards'!$A$2:$I$9092,4,FALSE)) -> Beast | T5: =IF(ISNONTEXT(VLOOKUP($B5,'All Cards'!$A$2:$I$9092,3,FALSE)),"",VLOOKUP($B5,'All Cards'!$A$2:$I$9092,3,FALSE)) -> Effect Monster | U5: =IF(ISBLANK(VLOOKUP($B5,'All Cards'!$A$2:$I$9093,6,FALSE))," ",VLOOKUP($B5,'All Cards'!$A$2:$I$9092,6,FALSE)) -> 4 | V5: =IF(ISBLANK(VLOOKUP($B5,'All Cards'!$A$2:$I$9093,7,FALSE)),"",VLOOKUP($B5,'All Cards'!$A$2:$I$9093,7,FALSE)) -> 1400 | W5: =IF(ISBLANK(VLOOKUP($B5,'All Cards'!$A$2:$I$9093,8,FALSE)),"",VLOOKUP($B5,'All Cards'!$A$2:$I$9093,8,FALSE)) -> 1450 | X5: =IF(ISNONTEXT(VLOOKUP($B5,'All Cards'!$A$2:$I$9092,9,FALSE)),"",VLOOKUP($B5,'All Cards'!$A$2:$I$9092,9,FALSE)) -> When this card is destroyed by battle and sent to the Graveyard: You can Special Summon 1 EARTH monster with 1500 or less ATK from your Deck, in face-up Attack Position.
A6: 5 | B6: Giant Rat | C6: =IF(ISNA(VLOOKUP($B6,Limited!$B$1:$C$200,2,FALSE)),"",VLOOKUP($B6,Limited!$B$2:$C$200,2,FALSE)) ->  | E6: =$X2 -> When this card is Normal Summoned: Place 1 Spell Counter on it (max. 1). This card gains 300 ATK for each Spell Counter on it. You can remove 1 Spell Counter from this card to target 1 Spell/Trap Card on the field; destroy that target. | H6: =$X3 -> After damage calculation, when this card battles an opponent's monster: You can banish that monster, also banish this card. | K6: =$X4 -> You can Tribute this card to destroy 1 monster on the field. | O6: 2 | P6:  | R6: =IF(ISNONTEXT(VLOOKUP($B6,'All Cards'!$A$2:$I$9092,5,FALSE)),"",VLOOKUP($B6,'All Cards'!$A$2:$I$9092,5,FALSE)) -> Earth | S6: =IF(ISNONTEXT(VLOOKUP($B6,'All Cards'!$A$2:$I$9092,4,FALSE)),"",VLOOKUP($B6,'All Cards'!$A$2:$I$9092,4,FALSE)) -> Beast | T6: =IF(ISNONTEXT(VLOOKUP($B6,'All Cards'!$A$2:$I$9092,3,FALSE)),"",VLOOKUP($B6,'All Cards'!$A$2:$I$9092,3,FALSE)) -> Effect Monster | U6: =IF(ISBLANK(VLOOKUP($B6,'All Cards'!$A$2:$I$9093,6,FALSE))," ",VLOOKUP($B6,'All Cards'!$A$2:$I$9092,6,FALSE)) -> 4 | V6: =IF(ISBLANK(VLOOKUP($B6,'All Cards'!$A$2:$I$9093,7,FALSE)),"",VLOOKUP($B6,'All Cards'!$A$2:$I$9093,7,FALSE)) -> 1400 | W6: =IF(ISBLANK(VLOOKUP($B6,'All Cards'!$A$2:$I$9093,8,FALSE)),"",VLOOKUP($B6,'All Cards'!$A$2:$I$9093,8,FALSE)) -> 1450 | X6: =IF(ISNONTEXT(VLOOKUP($B6,'All Cards'!$A$2:$I$9092,9,FALSE)),"",VLOOKUP($B6,'All Cards'!$A$2:$I$9092,9,FALSE)) -> When this card is destroyed by battle and sent to the Graveyard: You can Special Summon 1 EARTH monster with 1500 or less ATK from your Deck, in face-up Attack Position.
A7: 6 | B7: Injection Fairy Lily | C7: =IF(ISNA(VLOOKUP($B7,Limited!$B$1:$C$200,2,FALSE)),"",VLOOKUP($B7,Limited!$B$2:$C$200,2,FALSE)) ->  | O7: 3 | P7:  | R7: =IF(ISNONTEXT(VLOOKUP($B7,'All Cards'!$A$2:$I$9092,5,FALSE)),"",VLOOKUP($B7,'All Cards'!$A$2:$I$9092,5,FALSE)) -> Earth | S7: =IF(ISNONTEXT(VLOOKUP($B7,'All Cards'!$A$2:$I$9092,4,FALSE)),"",VLOOKUP($B7,'All Cards'!$A$2:$I$9092,4,FALSE)) -> Spellcaster | T7: =IF(ISNONTEXT(VLOOKUP($B7,'All Cards'!$A$2:$I$9092,3,FALSE)),"",VLOOKUP($B7,'All Cards'!$A$2:$I$9092,3,FALSE)) -> Effect Monster | U7: =IF(ISBLANK(VLOOKUP($B7,'All Cards'!$A$2:$I$9093,6,FALSE))," ",VLOOKUP($B7,'All Cards'!$A$2:$I$9092,6,FALSE)) -> 3 | V7: =IF(ISBLANK(VLOOKUP($B7,'All Cards'!$A$2:$I$9093,7,FALSE)),"",VLOOKUP($B7,'All Cards'!$A$2:$I$9093,7,FALSE)) -> 400 | W7: =IF(ISBLANK(VLOOKUP($B7,'All Cards'!$A$2:$I$9093,8,FALSE)),"",VLOOKUP($B7,'All Cards'!$A$2:$I$9093,8,FALSE)) -> 1500 | X7: =IF(ISNONTEXT(VLOOKUP($B7,'All Cards'!$A$2:$I$9092,9,FALSE)),"",VLOOKUP($B7,'All Cards'!$A$2:$I$9092,9,FALSE)) -> If this card attacks or is attacked, during damage calculation (in either player's turn): You can pay 2000 Life Points once per battle; this card gains 3000 ATK during that damage calculation only.
A8: 7 | B8: Magical Merchant | C8: =IF(ISNA(VLOOKUP($B8,Limited!$B$1:$C$200,2,FALSE)),"",VLOOKUP($B8,Limited!$B$2:$C$200,2,FALSE)) ->  | O8: 4 | P8:  | R8: =IF(ISNONTEXT(VLOOKUP($B8,'All Cards'!$A$2:$I$9092,5,FALSE)),"",VLOOKUP($B8,'All Cards'!$A$2:$I$9092,5,FALSE)) -> Light | S8: =IF(ISNONTEXT(VLOOKUP($B8,'All Cards'!$A$2:$I$9092,4,FALSE)),"",VLOOKUP($B8,'All Cards'!$A$2:$I$9092,4,FALSE)) -> Insect | T8: =IF(ISNONTEXT(VLOOKUP($B8,'All Cards'!$A$2:$I$9092,3,FALSE)),"",VLOOKUP($B8,'All Cards'!$A$2:$I$9092,3,FALSE)) -> Flip / Effect Monster | U8: =IF(ISBLANK(VLOOKUP($B8,'All Cards'!$A$2:$I$9093,6,FALSE))," ",VLOOKUP($B8,'All Cards'!$A$2:$I$9092,6,FALSE)) -> 1 | V8: =IF(ISBLANK(VLOOKUP($B8,'All Cards'!$A$2:$I$9093,7,FALSE)),"",VLOOKUP($B8,'All Cards'!$A$2:$I$9093,7,FALSE)) -> 200 | W8: =IF(ISBLANK(VLOOKUP($B8,'All Cards'!$A$2:$I$9093,8,FALSE)),"",VLOOKUP($B8,'All Cards'!$A$2:$I$9093,8,FALSE)) -> 700 | X8: =IF(ISNONTEXT(VLOOKUP($B8,'All Cards'!$A$2:$I$9092,9,FALSE)),"",VLOOKUP($B8,'All Cards'!$A$2:$I$9092,9,FALSE)) -> FLIP: Pick up cards from the top of your Deck until you pick up a Spell Card or Trap Card. Add that card to your hand. Send the remaining cards to the Graveyard.
A9: 8 | B9: Magician of Faith | C9: =IF(ISNA(VLOOKUP($B9,Limited!$B$1:$C$200,2,FALSE)),"",VLOOKUP($B9,Limited!$B$2:$C$200,2,FALSE)) ->  | O9: 5 | P9:  | R9: =IF(ISNONTEXT(VLOOKUP($B9,'All Cards'!$A$2:$I$9092,5,FALSE)),"",VLOOKUP($B9,'All Cards'!$A$2:$I$9092,5,FALSE)) -> Light | S9: =IF(ISNONTEXT(VLOOKUP($B9,'All Cards'!$A$2:$I$9092,4,FALSE)),"",VLOOKUP($B9,'All Cards'!$A$2:$I$9092,4,FALSE)) -> Spellcaster | T9: =IF(ISNONTEXT(VLOOKUP($B9,'All Cards'!$A$2:$I$9092,3,FALSE)),"",VLOOKUP($B9,'All Cards'!$A$2:$I$9092,3,FALSE)) -> Flip / Effect Monster | U9: =IF(ISBLANK(VLOOKUP($B9,'All Cards'!$A$2:$I$9093,6,FALSE))," ",VLOOKUP($B9,'All Cards'!$A$2:$I$9092,6,FALSE)) -> 1 | V9: =IF(ISBLANK(VLOOKUP($B9,'All Cards'!$A$2:$I$9093,7,FALSE)),"",VLOOKUP($B9,'All Cards'!$A$2:$I$9093,7,FALSE)) -> 300 | W9: =IF(ISBLANK(VLOOKUP($B9,'All Cards'!$A$2:$I$9093,8,FALSE)),"",VLOOKUP($B9,'All Cards'!$A$2:$I$9093,8,FALSE)) -> 400 | X9: =IF(ISNONTEXT(VLOOKUP($B9,'All Cards'!$A$2:$I$9092,9,FALSE)),"",VLOOKUP($B9,'All Cards'!$A$2:$I$9092,9,FALSE)) -> FLIP: Add 1 Spell Card from your Graveyard to your hand.
A10: 9 | B10: Mystic Swordsman LV2 | C10: =IF(ISNA(VLOOKUP($B10,Limited!$B$1:$C$200,2,FALSE)),"",VLOOKUP($B10,Limited!$B$2:$C$200,2,FALSE)) ->  | O10: 6 | P10:  | R10: =IF(ISNONTEXT(VLOOKUP($B10,'All Cards'!$A$2:$I$9092,5,FALSE)),"",VLOOKUP($B10,'All Cards'!$A$2:$I$9092,5,FALSE)) -> Fire | S10: =IF(ISNONTEXT(VLOOKUP($B10,'All Cards'!$A$2:$I$9092,4,FALSE)),"",VLOOKUP($B10,'All Cards'!$A$2:$I$9092,4,FALSE)) -> Warrior | T10: =IF(ISNONTEXT(VLOOKUP($B10,'All Cards'!$A$2:$I$9092,3,FALSE)),"",VLOOKUP($B10,'All Cards'!$A$2:$I$9092,3,FALSE)) -> Effect Monster | U10: =IF(ISBLANK(VLOOKUP($B10,'All Cards'!$A$2:$I$9093,6,FALSE))," ",VLOOKUP($B10,'All Cards'!$A$2:$I$9092,6,FALSE)) -> 2 | V10: =IF(ISBLANK(VLOOKUP($B10,'All Cards'!$A$2:$I$9093,7,FALSE)),"",VLOOKUP($B10,'All Cards'!$A$2:$I$9093,7,FALSE)) -> 900 | W10: =IF(ISBLANK(VLOOKUP($B10,'All Cards'!$A$2:$I$9093,8,FALSE)),"",VLOOKUP($B10,'All Cards'!$A$2:$I$9093,8,FALSE)) -> 0 | X10: =IF(ISNONTEXT(VLOOKUP($B10,'All Cards'!$A$2:$I$9092,9,FALSE)),"",VLOOKUP($B10,'All Cards'!$A$2:$I$9092,9,FALSE)) -> If this card attacks a face-down Defense Position monster, destroy the monster immediately with this card's effect without flipping it face-up or applying damage calculation. During the End Phase of a turn that this card destroyed a monster by battle, by sending this card to the Graveyard, Special Summon 1 "Mystic Swordsman LV4" from your hand or Deck.
A11: 10 | B11: Pyramid Turtle | C11: =IF(ISNA(VLOOKUP($B11,Limited!$B$1:$C$200,2,FALSE)),"",VLOOKUP($B11,Limited!$B$2:$C$200,2,FALSE)) ->  | O11: 7 | P11:  | R11: =IF(ISNONTEXT(VLOOKUP($B11,'All Cards'!$A$2:$I$9092,5,FALSE)),"",VLOOKUP($B11,'All Cards'!$A$2:$I$9092,5,FALSE)) -> Earth | S11: =IF(ISNONTEXT(VLOOKUP($B11,'All Cards'!$A$2:$I$9092,4,FALSE)),"",VLOOKUP($B11,'All Cards'!$A$2:$I$9092,4,FALSE)) -> Zombie | T11: =IF(ISNONTEXT(VLOOKUP($B11,'All Cards'!$A$2:$I$9092,3,FALSE)),"",VLOOKUP($B11,'All Cards'!$A$2:$I$9092,3,FALSE)) -> Effect Monster | U11: =IF(ISBLANK(VLOOKUP($B11,'All Cards'!$A$2:$I$9093,6,FALSE))," ",VLOOKUP($B11,'All Cards'!$A$2:$I$9092,6,FALSE)) -> 4 | V11: =IF(ISBLANK(VLOOKUP($B11,'All Cards'!$A$2:$I$9093,7,FALSE)),"",VLOOKUP($B11,'All Cards'!$A$2:$I$9093,7,FALSE)) -> 1200 | W11: =IF(ISBLANK(VLOOKUP($B11,'All Cards'!$A$2:$I$9093,8,FALSE)),"",VLOOKUP($B11,'All Cards'!$A$2:$I$9093,8,FALSE)) -> 1400 | X11: =IF(ISNONTEXT(VLOOKUP($B11,'All Cards'!$A$2:$I$9092,9,FALSE)),"",VLOOKUP($B11,'All Cards'!$A$2:$I$9092,9,FALSE)) -> When this card is destroyed by battle and sent to the Graveyard: You can Special Summon 1 Zombie-Type monster with 2000 or less DEF from your Deck.
A12: 11 | B12: Pyramid Turtle | C12: =IF(ISNA(VLOOKUP($B12,Limited!$B$1:$C$200,2,FALSE)),"",VLOOKUP($B12,Limited!$B$2:$C$200,2,FALSE)) ->  | O12: 8 | P12:  | R12: =IF(ISNONTEXT(VLOOKUP($B12,'All Cards'!$A$2:$I$9092,5,FALSE)),"",VLOOKUP($B12,'All Cards'!$A$2:$I$9092,5,FALSE)) -> Earth | S12: =IF(ISNONTEXT(VLOOKUP($B12,'All Cards'!$A$2:$I$9092,4,FALSE)),"",VLOOKUP($B12,'All Cards'!$A$2:$I$9092,4,FALSE)) -> Zombie | T12: =IF(ISNONTEXT(VLOOKUP($B12,'All Cards'!$A$2:$I$9092,3,FALSE)),"",VLOOKUP($B12,'All Cards'!$A$2:$I$9092,3,FALSE)) -> Effect Monster | U12: =IF(ISBLANK(VLOOKUP($B12,'All Cards'!$A$2:$I$9093,6,FALSE))," ",VLOOKUP($B12,'All Cards'!$A$2:$I$9092,6,FALSE)) -> 4 | V12: =IF(ISBLANK(VLOOKUP($B12,'All Cards'!$A$2:$I$9093,7,FALSE)),"",VLOOKUP($B12,'All Cards'!$A$2:$I$9093,7,FALSE)) -> 1200 | W12: =IF(ISBLANK(VLOOKUP($B12,'All Cards'!$A$2:$I$9093,8,FALSE)),"",VLOOKUP($B12,'All Cards'!$A$2:$I$9093,8,FALSE)) -> 1400 | X12: =IF(ISNONTEXT(VLOOKUP($B12,'All Cards'!$A$2:$I$9092,9,FALSE)),"",VLOOKUP($B12,'All Cards'!$A$2:$I$9092,9,FALSE)) -> When this card is destroyed by battle and sent to the Graveyard: You can Special Summon 1 Zombie-Type monster with 2000 or less DEF from your Deck.
A13: 12 | B13: Pyramid Turtle | C13: =IF(ISNA(VLOOKUP($B13,Limited!$B$1:$C$200,2,FALSE)),"",VLOOKUP($B13,Limited!$B$2:$C$200,2,FALSE)) ->  | O13: 9 | P13:  | R13: =IF(ISNONTEXT(VLOOKUP($B13,'All Cards'!$A$2:$I$9092,5,FALSE)),"",VLOOKUP($B13,'All Cards'!$A$2:$I$9092,5,FALSE)) -> Earth | S13: =IF(ISNONTEXT(VLOOKUP($B13,'All Cards'!$A$2:$I$9092,4,FALSE)),"",VLOOKUP($B13,'All Cards'!$A$2:$I$9092,4,FALSE)) -> Zombie | T13: =IF(ISNONTEXT(VLOOKUP($B13,'All Cards'!$A$2:$I$9092,3,FALSE)),"",VLOOKUP($B13,'All Cards'!$A$2:$I$9092,3,FALSE)) -> Effect Monster | U13: =IF(ISBLANK(VLOOKUP($B13,'All Cards'!$A$2:$I$9093,6,FALSE))," ",VLOOKUP($B13,'All Cards'!$A$2:$I$9092,6,FALSE)) -> 4 | V13: =IF(ISBLANK(VLOOKUP($B13,'All Cards'!$A$2:$I$9093,7,FALSE)),"",VLOOKUP($B13,'All Cards'!$A$2:$I$9093,7,FALSE)) -> 1200 | W13: =IF(ISBLANK(VLOOKUP($B13,'All Cards'!$A$2:$I$9093,8,FALSE)),"",VLOOKUP($B13,'All Cards'!$A$2:$I$9093,8,FALSE)) -> 1400 | X13: =IF(ISNONTEXT(VLOOKUP($B13,'All Cards'!$A$2:$I$9092,9,FALSE)),"",VLOOKUP($B13,'All Cards'!$A$2:$I$9092,9,FALSE)) -> When this card is destroyed by battle and sent to the Graveyard: You can Special Summon 1 Zombie-Type monster with 2000 or less DEF from your Deck.
A14: 13 | B14: Ryu Kokki | C14: =IF(ISNA(VLOOKUP($B14,Limited!$B$1:$C$200,2,FALSE)),"",VLOOKUP($B14,Limited!$B$2:$C$200,2,FALSE)) ->  | O14: 10 | P14:  | R14: =IF(ISNONTEXT(VLOOKUP($B14,'All Cards'!$A$2:$I$9092,5,FALSE)),"",VLOOKUP($B14,'All Cards'!$A$2:$I$9092,5,FALSE)) -> Dark | S14: =IF(ISNONTEXT(VLOOKUP($B14,'All Cards'!$A$2:$I$9092,4,FALSE)),"",VLOOKUP($B14,'All Cards'!$A$2:$I$9092,4,FALSE)) -> Zombie | T14: =IF(ISNONTEXT(VLOOKUP($B14,'All Cards'!$A$2:$I$9092,3,FALSE)),"",VLOOKUP($B14,'All Cards'!$A$2:$I$9092,3,FALSE)) -> Effect Monster | U14: =IF(ISBLANK(VLOOKUP($B14,'All Cards'!$A$2:$I$9093,6,FALSE))," ",VLOOKUP($B14,'All Cards'!$A$2:$I$9092,6,FALSE)) -> 6 | V14: =IF(ISBLANK(VLOOKUP($B14,'All Cards'!$A$2:$I$9093,7,FALSE)),"",VLOOKUP($B14,'All Cards'!$A$2:$I$9093,7,FALSE)) -> 2400 | W14: =IF(ISBLANK(VLOOKUP($B14,'All Cards'!$A$2:$I$9093,8,FALSE)),"",VLOOKUP($B14,'All Cards'!$A$2:$I$9093,8,FALSE)) -> 2000 | X14: =IF(ISNONTEXT(VLOOKUP($B14,'All Cards'!$A$2:$I$9092,9,FALSE)),"",VLOOKUP($B14,'All Cards'!$A$2:$I$9092,9,FALSE)) -> At the end of the Damage Step, if this card battled a Warrior or Spellcaster-Type monster: Destroy that monster.
A15: 14 | B15: Ryu Kokki | C15: =IF(ISNA(VLOOKUP($B15,Limited!$B$1:$C$200,2,FALSE)),"",VLOOKUP($B15,Limited!$B$2:$C$200,2,FALSE)) ->  | O15: 11 | P15:  | R15: =IF(ISNONTEXT(VLOOKUP($B15,'All Cards'!$A$2:$I$9092,5,FALSE)),"",VLOOKUP($B15,'All Cards'!$A$2:$I$9092,5,FALSE)) -> Dark | S15: =IF(ISNONTEXT(VLOOKUP($B15,'All Cards'!$A$2:$I$9092,4,FALSE)),"",VLOOKUP($B15,'All Cards'!$A$2:$I$9092,4,FALSE)) -> Zombie | T15: =IF(ISNONTEXT(VLOOKUP($B15,'All Cards'!$A$2:$I$9092,3,FALSE)),"",VLOOKUP($B15,'All Cards'!$A$2:$I$9092,3,FALSE)) -> Effect Monster | U15: =IF(ISBLANK(VLOOKUP($B15,'All Cards'!$A$2:$I$9093,6,FALSE))," ",VLOOKUP($B15,'All Cards'!$A$2:$I$9092,6,FALSE)) -> 6 | V15: =IF(ISBLANK(VLOOKUP($B15,'All Cards'!$A$2:$I$9093,7,FALSE)),"",VLOOKUP($B15,'All Cards'!$A$2:$I$9093,7,FALSE)) -> 2400 | W15: =IF(ISBLANK(VLOOKUP($B15,'All Cards'!$A$2:$I$9093,8,FALSE)),"",VLOOKUP($B15,'All Cards'!$A$2:$I$9093,8,FALSE)) -> 2000 | X15: =IF(ISNONTEXT(VLOOKUP($B15,'All Cards'!$A$2:$I$9092,9,FALSE)),"",VLOOKUP($B15,'All Cards'!$A$2:$I$9092,9,FALSE)) -> At the end of the Damage Step, if this card battled a Warrior or Spellcaster-Type monster: Destroy that monster.
A16: 15 | B16: Sangan | C16: =IF(ISNA(VLOOKUP($B16,Limited!$B$1:$C$200,2,FALSE)),"",VLOOKUP($B16,Limited!$B$2:$C$200,2,FALSE)) ->  | O16: 12 | P16:  | R16: =IF(ISNONTEXT(VLOOKUP($B16,'All Cards'!$A$2:$I$9092,5,FALSE)),"",VLOOKUP($B16,'All Cards'!$A$2:$I$9092,5,FALSE)) -> Dark | S16: =IF(ISNONTEXT(VLOOKUP($B16,'All Cards'!$A$2:$I$9092,4,FALSE)),"",VLOOKUP($B16,'All Cards'!$A$2:$I$9092,4,FALSE)) -> Fiend | T16: =IF(ISNONTEXT(VLOOKUP($B16,'All Cards'!$A$2:$I$9092,3,FALSE)),"",VLOOKUP($B16,'All Cards'!$A$2:$I$9092,3,FALSE)) -> Effect Monster | U16: =IF(ISBLANK(VLOOKUP($B16,'All Cards'!$A$2:$I$9093,6,FALSE))," ",VLOOKUP($B16,'All Cards'!$A$2:$I$9092,6,FALSE)) -> 3 | V16: =IF(ISBLANK(VLOOKUP($B16,'All Cards'!$A$2:$I$9093,7,FALSE)),"",VLOOKUP($B16,'All Cards'!$A$2:$I$9093,7,FALSE)) -> 1000 | W16: =IF(ISBLANK(VLOOKUP($B16,'All Cards'!$A$2:$I$9093,8,FALSE)),"",VLOOKUP($B16,'All Cards'!$A$2:$I$9093,8,FALSE)) -> 600 | X16: =IF(ISNONTEXT(VLOOKUP($B16,'All Cards'!$A$2:$I$9092,9,FALSE)),"",VLOOKUP($B16,'All Cards'!$A$2:$I$9092,9,FALSE)) -> When this card is sent from the field to the Graveyard: Add 1 monster with 1500 or less ATK from your Deck to your hand.
A17: 16 | B17: Treeborn Frog | C17: =IF(ISNA(VLOOKUP($B17,Limited!$B$1:$C$200,2,FALSE)),"",VLOOKUP($B17,Limited!$B$2:$C$200,2,FALSE)) ->  | R17: =IF(ISNONTEXT(VLOOKUP($B17,'All Cards'!$A$2:$I$9092,5,FALSE)),"",VLOOKUP($B17,'All Cards'!$A$2:$I$9092,5,FALSE)) -> Water | S17: =IF(ISNONTEXT(VLOOKUP($B17,'All Cards'!$A$2:$I$9092,4,FALSE)),"",VLOOKUP($B17,'All Cards'!$A$2:$I$9092,4,FALSE)) -> Aqua | T17: =IF(ISNONTEXT(VLOOKUP($B17,'All Cards'!$A$2:$I$9092,3,FALSE)),"",VLOOKUP($B17,'All Cards'!$A$2:$I$9092,3,FALSE)) -> Effect Monster | U17: =IF(ISBLANK(VLOOKUP($B17,'All Cards'!$A$2:$I$9093,6,FALSE))," ",VLOOKUP($B17,'All Cards'!$A$2:$I$9092,6,FALSE)) -> 1 | V17: =IF(ISBLANK(VLOOKUP($B17,'All Cards'!$A$2:$I$9093,7,FALSE)),"",VLOOKUP($B17,'All Cards'!$A$2:$I$9093,7,FALSE)) -> 100 | W17: =IF(ISBLANK(VLOOKUP($B17,'All Cards'!$A$2:$I$9093,8,FALSE)),"",VLOOKUP($B17,'All Cards'!$A$2:$I$9093,8,FALSE)) -> 100 | X17: =IF(ISNONTEXT(VLOOKUP($B17,'All Cards'!$A$2:$I$9092,9,FALSE)),"",VLOOKUP($B17,'All Cards'!$A$2:$I$9092,9,FALSE)) -> During your Standby Phase, if this card is in your Graveyard and you do not control a face-up "Treeborn Frog": You can Special Summon this card. You must control no Spell/Trap Cards to activate and to resolve this effect.
A18: 17 | B18: Vampire Lord | C18: =IF(ISNA(VLOOKUP($B18,Limited!$B$1:$C$200,2,FALSE)),"",VLOOKUP($B18,Limited!$B$2:$C$200,2,FALSE)) ->  | R18: =IF(ISNONTEXT(VLOOKUP($B18,'All Cards'!$A$2:$I$9092,5,FALSE)),"",VLOOKUP($B18,'All Cards'!$A$2:$I$9092,5,FALSE)) -> Dark | S18: =IF(ISNONTEXT(VLOOKUP($B18,'All Cards'!$A$2:$I$9092,4,FALSE)),"",VLOOKUP($B18,'All Cards'!$A$2:$I$9092,4,FALSE)) -> Zombie | T18: =IF(ISNONTEXT(VLOOKUP($B18,'All Cards'!$A$2:$I$9092,3,FALSE)),"",VLOOKUP($B18,'All Cards'!$A$2:$I$9092,3,FALSE)) -> Effect Monster | U18: =IF(ISBLANK(VLOOKUP($B18,'All Cards'!$A$2:$I$9093,6,FALSE))," ",VLOOKUP($B18,'All Cards'!$A$2:$I$9092,6,FALSE)) -> 5 | V18: =IF(ISBLANK(VLOOKUP($B18,'All Cards'!$A$2:$I$9093,7,FALSE)),"",VLOOKUP($B18,'All Cards'!$A$2:$I$9093,7,FALSE)) -> 2000 | W18: =IF(ISBLANK(VLOOKUP($B18,'All Cards'!$A$2:$I$9093,8,FALSE)),"",VLOOKUP($B18,'All Cards'!$A$2:$I$9093,8,FALSE)) -> 1500 | X18: =IF(ISNONTEXT(VLOOKUP($B18,'All Cards'!$A$2:$I$9092,9,FALSE)),"",VLOOKUP($B18,'All Cards'!$A$2:$I$9092,9,FALSE)) -> Each time this card inflicts Battle Damage to your opponent, declare 1 card type (Monster, Spell, or Trap). Your opponent selects 1 card of that type from their Deck and sends it to the Graveyard. Also, if this card is destroyed and sent from your field to your Graveyard by your opponent's card effect, it is Special Summoned to your side of the field during your next Standby Phase.
A19: 18 | B19: Vampire Lord | C19: =IF(ISNA(VLOOKUP($B19,Limited!$B$1:$C$200,2,FALSE)),"",VLOOKUP($B19,Limited!$B$2:$C$200,2,FALSE)) ->  | F19: ="ATK / "&$V2 -> ATK / 1600 | G19: ="DEF / "&$W2 -> DEF / 1000 | I19: ="ATK / "&$V3 -> ATK / 1500 | J19: ="DEF / "&$W3 -> DEF / 1600 | L19: ="ATK / "&$V4 -> ATK / 1000 | M19: ="DEF / "&$W4 -> DEF / 1000 | R19: =IF(ISNONTEXT(VLOOKUP($B19,'All Cards'!$A$2:$I$9092,5,FALSE)),"",VLOOKUP($B19,'All Cards'!$A$2:$I$9092,5,FALSE)) -> Dark | S19: =IF(ISNONTEXT(VLOOKUP($B19,'All Cards'!$A$2:$I$9092,4,FALSE)),"",VLOOKUP($B19,'All Cards'!$A$2:$I$9092,4,FALSE)) -> Zombie | T19: =IF(ISNONTEXT(VLOOKUP($B19,'All Cards'!$A$2:$I$9092,3,FALSE)),"",VLOOKUP($B19,'All Cards'!$A$2:$I$9092,3,FALSE)) -> Effect Monster | U19: =IF(ISBLANK(VLOOKUP($B19,'All Cards'!$A$2:$I$9093,6,FALSE))," ",VLOOKUP($B19,'All Cards'!$A$2:$I$9092,6,FALSE)) -> 5 | V19: =IF(ISBLANK(VLOOKUP($B19,'All Cards'!$A$2:$I$9093,7,FALSE)),"",VLOOKUP($B19,'All Cards'!$A$2:$I$9093,7,FALSE)) -> 2000 | W19: =IF(ISBLANK(VLOOKUP($B19,'All Cards'!$A$2:$I$9093,8,FALSE)),"",VLOOKUP($B19,'All Cards'!$A$2:$I$9093,8,FALSE)) -> 1500 | X19: =IF(ISNONTEXT(VLOOKUP($B19,'All Cards'!$A$2:$I$9092,9,FALSE)),"",VLOOKUP($B19,'All Cards'!$A$2:$I$9092,9,FALSE)) -> Each time this card inflicts Battle Damage to your opponent, declare 1 card type (Monster, Spell, or Trap). Your opponent selects 1 card of that type from their Deck and sends it to the Graveyard. Also, if this card is destroyed and sent from your field to your Graveyard by your opponent's card effect, it is Special Summoned to your side of the field during your next Standby Phase.
A20: 19 | B20: Book of Life | C20: =IF(ISNA(VLOOKUP($B20,Limited!$B$1:$C$200,2,FALSE)),"",VLOOKUP($B20,Limited!$B$2:$C$200,2,FALSE)) ->  | E20: =$B5 -> Giant Rat | H20: =$B6 -> Giant Rat | K20: =$B7 -> Injection Fairy Lily | R20: =IF(ISNONTEXT(VLOOKUP($B20,'All Cards'!$A$2:$I$9092,5,FALSE)),"",VLOOKUP($B20,'All Cards'!$A$2:$I$9092,5,FALSE)) ->  | S20: =IF(ISNONTEXT(VLOOKUP($B20,'All Cards'!$A$2:$I$9092,4,FALSE)),"",VLOOKUP($B20,'All Cards'!$A$2:$I$9092,4,FALSE)) ->  | T20: =IF(ISNONTEXT(VLOOKUP($B20,'All Cards'!$A$2:$I$9092,3,FALSE)),"",VLOOKUP($B20,'All Cards'!$A$2:$I$9092,3,FALSE)) -> Normal / Spell | U20: =IF(ISBLANK(VLOOKUP($B20,'All Cards'!$A$2:$I$9093,6,FALSE))," ",VLOOKUP($B20,'All Cards'!$A$2:$I$9092,6,FALSE)) ->  | V20: =IF(ISBLANK(VLOOKUP($B20,'All Cards'!$A$2:$I$9093,7,FALSE)),"",VLOOKUP($B20,'All Cards'!$A$2:$I$9093,7,FALSE)) ->  | W20: =IF(ISBLANK(VLOOKUP($B20,'All Cards'!$A$2:$I$9093,8,FALSE)),"",VLOOKUP($B20,'All Cards'!$A$2:$I$9093,8,FALSE)) ->  | X20: =IF(ISNONTEXT(VLOOKUP($B20,'All Cards'!$A$2:$I$9092,9,FALSE)),"",VLOOKUP($B20,'All Cards'!$A$2:$I$9092,9,FALSE)) -> Target 1 Zombie-Type monster in your Graveyard and 1 monster in your opponent's Graveyard; Special Summon the first target, also banish the second target.
A21: 20 | B21: Book of Life | C21: =IF(ISNA(VLOOKUP($B21,Limited!$B$1:$C$200,2,FALSE)),"",VLOOKUP($B21,Limited!$B$2:$C$200,2,FALSE)) ->  | R21: =IF(ISNONTEXT(VLOOKUP($B21,'All Cards'!$A$2:$I$9092,5,FALSE)),"",VLOOKUP($B21,'All Cards'!$A$2:$I$9092,5,FALSE)) ->  | S21: =IF(ISNONTEXT(VLOOKUP($B21,'All Cards'!$A$2:$I$9092,4,FALSE)),"",VLOOKUP($B21,'All Cards'!$A$2:$I$9092,4,FALSE)) ->  | T21: =IF(ISNONTEXT(VLOOKUP($B21,'All Cards'!$A$2:$I$9092,3,FALSE)),"",VLOOKUP($B21,'All Cards'!$A$2:$I$9092,3,FALSE)) -> Normal / Spell | U21: =IF(ISBLANK(VLOOKUP($B21,'All Cards'!$A$2:$I$9093,6,FALSE))," ",VLOOKUP($B21,'All Cards'!$A$2:$I$9092,6,FALSE)) ->  | V21: =IF(ISBLANK(VLOOKUP($B21,'All Cards'!$A$2:$I$9093,7,FALSE)),"",VLOOKUP($B21,'All Cards'!$A$2:$I$9093,7,FALSE)) ->  | W21: =IF(ISBLANK(VLOOKUP($B21,'All Cards'!$A$2:$I$9093,8,FALSE)),"",VLOOKUP($B21,'All Cards'!$A$2:$I$9093,8,FALSE)) ->  | X21: =IF(ISNONTEXT(VLOOKUP($B21,'All Cards'!$A$2:$I$9092,9,FALSE)),"",VLOOKUP($B21,'All Cards'!$A$2:$I$9092,9,FALSE)) -> Target 1 Zombie-Type monster in your Graveyard and 1 monster in your opponent's Graveyard; Special Summon the first target, also banish the second target.
A22: 21 | B22: Brain Control | C22: =IF(ISNA(VLOOKUP($B22,Limited!$B$1:$C$200,2,FALSE)),"",VLOOKUP($B22,Limited!$B$2:$C$200,2,FALSE)) ->  | E22: =IF($R5=0,"",$R5) -> Earth | F22: =VLOOKUP($U5,$O$4:$P$16,2,FALSE) ->  | H22: =IF($R6=0,"",$R6) -> Earth | I22: =VLOOKUP($U6,$O$4:$P$16,2,FALSE) ->  | K22: =IF($R7=0,"",$R7) -> Earth | L22: =VLOOKUP($U7,$O$4:$P$16,2,FALSE) ->  | R22: =IF(ISNONTEXT(VLOOKUP($B22,'All Cards'!$A$2:$I$9092,5,FALSE)),"",VLOOKUP($B22,'All Cards'!$A$2:$I$9092,5,FALSE)) ->  | S22: =IF(ISNONTEXT(VLOOKUP($B22,'All Cards'!$A$2:$I$9092,4,FALSE)),"",VLOOKUP($B22,'All Cards'!$A$2:$I$9092,4,FALSE)) ->  | T22: =IF(ISNONTEXT(VLOOKUP($B22,'All Cards'!$A$2:$I$9092,3,FALSE)),"",VLOOKUP($B22,'All Cards'!$A$2:$I$9092,3,FALSE)) -> Normal / Spell | U22: =IF(ISBLANK(VLOOKUP($B22,'All Cards'!$A$2:$I$9093,6,FALSE))," ",VLOOKUP($B22,'All Cards'!$A$2:$I$9092,6,FALSE)) ->  | V22: =IF(ISBLANK(VLOOKUP($B22,'All Cards'!$A$2:$I$9093,7,FALSE)),"",VLOOKUP($B22,'All Cards'!$A$2:$I$9093,7,FALSE)) ->  | W22: =IF(ISBLANK(VLOOKUP($B22,'All Cards'!$A$2:$I$9093,8,FALSE)),"",VLOOKUP($B22,'All Cards'!$A$2:$I$9093,8,FALSE)) ->  | X22: =IF(ISNONTEXT(VLOOKUP($B22,'All Cards'!$A$2:$I$9092,9,FALSE)),"",VLOOKUP($B22,'All Cards'!$A$2:$I$9092,9,FALSE)) -> Pay 800 Life Points. Select 1 face-up monster your opponent controls. Take control of it until the End Phase.
A23: 22 | B23: Call of the Mummy | C23: =IF(ISNA(VLOOKUP($B23,Limited!$B$1:$C$200,2,FALSE)),"",VLOOKUP($B23,Limited!$B$2:$C$200,2,FALSE)) ->  | E23: =$S5&" / "&$T5 -> Beast / Effect Monster | H23: =$S6&" / "&$T6 -> Beast / Effect Monster | K23: =$S7&" / "&$T7 -> Spellcaster / Effect Monster | R23: =IF(ISNONTEXT(VLOOKUP($B23,'All Cards'!$A$2:$I$9092,5,FALSE)),"",VLOOKUP($B23,'All Cards'!$A$2:$I$9092,5,FALSE)) ->  | S23: =IF(ISNONTEXT(VLOOKUP($B23,'All Cards'!$A$2:$I$9092,4,FALSE)),"",VLOOKUP($B23,'All Cards'!$A$2:$I$9092,4,FALSE)) ->  | T23: =IF(ISNONTEXT(VLOOKUP($B23,'All Cards'!$A$2:$I$9092,3,FALSE)),"",VLOOKUP($B23,'All Cards'!$A$2:$I$9092,3,FALSE)) -> Continuous / Spell | U23: =IF(ISBLANK(VLOOKUP($B23,'All Cards'!$A$2:$I$9093,6,FALSE))," ",VLOOKUP($B23,'All Cards'!$A$2:$I$9092,6,FALSE)) ->  | V23: =IF(ISBLANK(VLOOKUP($B23,'All Cards'!$A$2:$I$9093,7,FALSE)),"",VLOOKUP($B23,'All Cards'!$A$2:$I$9093,7,FALSE)) ->  | W23: =IF(ISBLANK(VLOOKUP($B23,'All Cards'!$A$2:$I$9093,8,FALSE)),"",VLOOKUP($B23,'All Cards'!$A$2:$I$9093,8,FALSE)) ->  | X23: =IF(ISNONTEXT(VLOOKUP($B23,'All Cards'!$A$2:$I$9092,9,FALSE)),"",VLOOKUP($B23,'All Cards'!$A$2:$I$9092,9,FALSE)) -> Once per turn: You can Special Summon 1 Zombie-Type monster from your hand. You must control no monsters to activate and to resolve this effect.
A24: 23 | B24: Call of the Mummy | C24: =IF(ISNA(VLOOKUP($B24,Limited!$B$1:$C$200,2,FALSE)),"",VLOOKUP($B24,Limited!$B$2:$C$200,2,FALSE)) ->  | R24: =IF(ISNONTEXT(VLOOKUP($B24,'All Cards'!$A$2:$I$9092,5,FALSE)),"",VLOOKUP($B24,'All Cards'!$A$2:$I$9092,5,FALSE)) ->  | S24: =IF(ISNONTEXT(VLOOKUP($B24,'All Cards'!$A$2:$I$9092,4,FALSE)),"",VLOOKUP($B24,'All Cards'!$A$2:$I$9092,4,FALSE)) ->  | T24: =IF(ISNONTEXT(VLOOKUP($B24,'All Cards'!$A$2:$I$9092,3,FALSE)),"",VLOOKUP($B24,'All Cards'!$A$2:$I$9092,3,FALSE)) -> Continuous / Spell | U24: =IF(ISBLANK(VLOOKUP($B24,'All Cards'!$A$2:$I$9093,6,FALSE))," ",VLOOKUP($B24,'All Cards'!$A$2:$I$9092,6,FALSE)) ->  | V24: =IF(ISBLANK(VLOOKUP($B24,'All Cards'!$A$2:$I$9093,7,FALSE)),"",VLOOKUP($B24,'All Cards'!$A$2:$I$9093,7,FALSE)) ->  | W24: =IF(ISBLANK(VLOOKUP($B24,'All Cards'!$A$2:$I$9093,8,FALSE)),"",VLOOKUP($B24,'All Cards'!$A$2:$I$9093,8,FALSE)) ->  | X24: =IF(ISNONTEXT(VLOOKUP($B24,'All Cards'!$A$2:$I$9092,9,FALSE)),"",VLOOKUP($B24,'All Cards'!$A$2:$I$9092,9,FALSE)) -> Once per turn: You can Special Summon 1 Zombie-Type monster from your hand. You must control no monsters to activate and to resolve this effect.
A25: 24 | B25: Creature Swap | C25: =IF(ISNA(VLOOKUP($B25,Limited!$B$1:$C$200,2,FALSE)),"",VLOOKUP($B25,Limited!$B$2:$C$200,2,FALSE)) ->  | E25: =$X5 -> When this card is destroyed by battle and sent to the Graveyard: You can Special Summon 1 EARTH monster with 1500 or less ATK from your Deck, in face-up Attack Position. | H25: =$X6 -> When this card is destroyed by battle and sent to the Graveyard: You can Special Summon 1 EARTH monster with 1500 or less ATK from your Deck, in face-up Attack Position. | K25: =$X7 -> If this card attacks or is attacked, during damage calculation (in either player's turn): You can pay 2000 Life Points once per battle; this card gains 3000 ATK during that damage calculation only. | R25: =IF(ISNONTEXT(VLOOKUP($B25,'All Cards'!$A$2:$I$9092,5,FALSE)),"",VLOOKUP($B25,'All Cards'!$A$2:$I$9092,5,FALSE)) ->  | S25: =IF(ISNONTEXT(VLOOKUP($B25,'All Cards'!$A$2:$I$9092,4,FALSE)),"",VLOOKUP($B25,'All Cards'!$A$2:$I$9092,4,FALSE)) ->  | T25: =IF(ISNONTEXT(VLOOKUP($B25,'All Cards'!$A$2:$I$9092,3,FALSE)),"",VLOOKUP($B25,'All Cards'!$A$2:$I$9092,3,FALSE)) -> Normal / Spell | U25: =IF(ISBLANK(VLOOKUP($B25,'All Cards'!$A$2:$I$9093,6,FALSE))," ",VLOOKUP($B25,'All Cards'!$A$2:$I$9092,6,FALSE)) ->  | V25: =IF(ISBLANK(VLOOKUP($B25,'All Cards'!$A$2:$I$9093,7,FALSE)),"",VLOOKUP($B25,'All Cards'!$A$2:$I$9093,7,FALSE)) ->  | W25: =IF(ISBLANK(VLOOKUP($B25,'All Cards'!$A$2:$I$9093,8,FALSE)),"",VLOOKUP($B25,'All Cards'!$A$2:$I$9093,8,FALSE)) ->  | X25: =IF(ISNONTEXT(VLOOKUP($B25,'All Cards'!$A$2:$I$9092,9,FALSE)),"",VLOOKUP($B25,'All Cards'!$A$2:$I$9092,9,FALSE)) -> Each player chooses 1 monster they control and switches control of those monsters with each other. Those monsters cannot change their battle positions for the rest of this turn.
A26: 25 | B26: Fissure | C26: =IF(ISNA(VLOOKUP($B26,Limited!$B$1:$C$200,2,FALSE)),"",VLOOKUP($B26,Limited!$B$2:$C$200,2,FALSE)) ->  | R26: =IF(ISNONTEXT(VLOOKUP($B26,'All Cards'!$A$2:$I$9092,5,FALSE)),"",VLOOKUP($B26,'All Cards'!$A$2:$I$9092,5,FALSE)) ->  | S26: =IF(ISNONTEXT(VLOOKUP($B26,'All Cards'!$A$2:$I$9092,4,FALSE)),"",VLOOKUP($B26,'All Cards'!$A$2:$I$9092,4,FALSE)) ->  | T26: =IF(ISNONTEXT(VLOOKUP($B26,'All Cards'!$A$2:$I$9092,3,FALSE)),"",VLOOKUP($B26,'All Cards'!$A$2:$I$9092,3,FALSE)) -> Normal / Spell | U26: =IF(ISBLANK(VLOOKUP($B26,'All Cards'!$A$2:$I$9093,6,FALSE))," ",VLOOKUP($B26,'All Cards'!$A$2:$I$9092,6,FALSE)) ->  | V26: =IF(ISBLANK(VLOOKUP($B26,'All Cards'!$A$2:$I$9093,7,FALSE)),"",VLOOKUP($B26,'All Cards'!$A$2:$I$9093,7,FALSE)) ->  | W26: =IF(ISBLANK(VLOOKUP($B26,'All Cards'!$A$2:$I$9093,8,FALSE)),"",VLOOKUP($B26,'All Cards'!$A$2:$I$9093,8,FALSE)) ->  | X26: =IF(ISNONTEXT(VLOOKUP($B26,'All Cards'!$A$2:$I$9092,9,FALSE)),"",VLOOKUP($B26,'All Cards'!$A$2:$I$9092,9,FALSE)) -> Destroy the 1 face-up monster your opponent controls that has the lowest ATK. (If it's a tie, you get to choose.)
A27: 26 | B27: Graceful Charity | C27: =IF(ISNA(VLOOKUP($B27,Limited!$B$1:$C$200,2,FALSE)),"",VLOOKUP($B27,Limited!$B$2:$C$200,2,FALSE)) -> Forbidden | R27: =IF(ISNONTEXT(VLOOKUP($B27,'All Cards'!$A$2:$I$9092,5,FALSE)),"",VLOOKUP($B27,'All Cards'!$A$2:$I$9092,5,FALSE)) ->  | S27: =IF(ISNONTEXT(VLOOKUP($B27,'All Cards'!$A$2:$I$9092,4,FALSE)),"",VLOOKUP($B27,'All Cards'!$A$2:$I$9092,4,FALSE)) ->  | T27: =IF(ISNONTEXT(VLOOKUP($B27,'All Cards'!$A$2:$I$9092,3,FALSE)),"",VLOOKUP($B27,'All Cards'!$A$2:$I$9092,3,FALSE)) -> Normal / Spell | U27: =IF(ISBLANK(VLOOKUP($B27,'All Cards'!$A$2:$I$9093,6,FALSE))," ",VLOOKUP($B27,'All Cards'!$A$2:$I$9092,6,FALSE)) ->  | V27: =IF(ISBLANK(VLOOKUP($B27,'All Cards'!$A$2:$I$9093,7,FALSE)),"",VLOOKUP($B27,'All Cards'!$A$2:$I$9093,7,FALSE)) ->  | W27: =IF(ISBLANK(VLOOKUP($B27,'All Cards'!$A$2:$I$9093,8,FALSE)),"",VLOOKUP($B27,'All Cards'!$A$2:$I$9093,8,FALSE)) ->  | X27: =IF(ISNONTEXT(VLOOKUP($B27,'All Cards'!$A$2:$I$9092,9,FALSE)),"",VLOOKUP($B27,'All Cards'!$A$2:$I$9092,9,FALSE)) -> Draw 3 cards, then discard 2 cards.
A28: 27 | B28: Heavy Storm | C28: =IF(ISNA(VLOOKUP($B28,Limited!$B$1:$C$200,2,FALSE)),"",VLOOKUP($B28,Limited!$B$2:$C$200,2,FALSE)) -> Forbidden | R28: =IF(ISNONTEXT(VLOOKUP($B28,'All Cards'!$A$2:$I$9092,5,FALSE)),"",VLOOKUP($B28,'All Cards'!$A$2:$I$9092,5,FALSE)) ->  | S28: =IF(ISNONTEXT(VLOOKUP($B28,'All Cards'!$A$2:$I$9092,4,FALSE)),"",VLOOKUP($B28,'All Cards'!$A$2:$I$9092,4,FALSE)) ->  | T28: =IF(ISNONTEXT(VLOOKUP($B28,'All Cards'!$A$2:$I$9092,3,FALSE)),"",VLOOKUP($B28,'All Cards'!$A$2:$I$9092,3,FALSE)) -> Normal / Spell | U28: =IF(ISBLANK(VLOOKUP($B28,'All Cards'!$A$2:$I$9093,6,FALSE))," ",VLOOKUP($B28,'All Cards'!$A$2:$I$9092,6,FALSE)) ->  | V28: =IF(ISBLANK(VLOOKUP($B28,'All Cards'!$A$2:$I$9093,7,FALSE)),"",VLOOKUP($B28,'All Cards'!$A$2:$I$9093,7,FALSE)) ->  | W28: =IF(ISBLANK(VLOOKUP($B28,'All Cards'!$A$2:$I$9093,8,FALSE)),"",VLOOKUP($B28,'All Cards'!$A$2:$I$9093,8,FALSE)) ->  | X28: =IF(ISNONTEXT(VLOOKUP($B28,'All Cards'!$A$2:$I$9092,9,FALSE)),"",VLOOKUP($B28,'All Cards'!$A$2:$I$9092,9,FALSE)) -> Destroy all Spell and Trap Cards on the field.
A29: 28 | B29: Last Will | C29: =IF(ISNA(VLOOKUP($B29,Limited!$B$1:$C$200,2,FALSE)),"",VLOOKUP($B29,Limited!$B$2:$C$200,2,FALSE)) -> Forbidden | R29: =IF(ISNONTEXT(VLOOKUP($B29,'All Cards'!$A$2:$I$9092,5,FALSE)),"",VLOOKUP($B29,'All Cards'!$A$2:$I$9092,5,FALSE)) ->  | S29: =IF(ISNONTEXT(VLOOKUP($B29,'All Cards'!$A$2:$I$9092,4,FALSE)),"",VLOOKUP($B29,'All Cards'!$A$2:$I$9092,4,FALSE)) ->  | T29: =IF(ISNONTEXT(VLOOKUP($B29,'All Cards'!$A$2:$I$9092,3,FALSE)),"",VLOOKUP($B29,'All Cards'!$A$2:$I$9092,3,FALSE)) -> Normal / Spell | U29: =IF(ISBLANK(VLOOKUP($B29,'All Cards'!$A$2:$I$9093,6,FALSE))," ",VLOOKUP($B29,'All Cards'!$A$2:$I$9092,6,FALSE)) ->  | V29: =IF(ISBLANK(VLOOKUP($B29,'All Cards'!$A$2:$I$9093,7,FALSE)),"",VLOOKUP($B29,'All Cards'!$A$2:$I$9093,7,FALSE)) ->  | W29: =IF(ISBLANK(VLOOKUP($B29,'All Cards'!$A$2:$I$9093,8,FALSE)),"",VLOOKUP($B29,'All Cards'!$A$2:$I$9093,8,FALSE)) ->  | X29: =IF(ISNONTEXT(VLOOKUP($B29,'All Cards'!$A$2:$I$9092,9,FALSE)),"",VLOOKUP($B29,'All Cards'!$A$2:$I$9092,9,FALSE)) -> If a monster on your side of the field was sent to your Graveyard this turn, you can Special Summon 1 monster with an ATK of 1500 points or less from your Deck once during this turn. Then shuffle your Deck.
A30: 29 | B30: Lightning Vortex | C30: =IF(ISNA(VLOOKUP($B30,Limited!$B$1:$C$200,2,FALSE)),"",VLOOKUP($B30,Limited!$B$2:$C$200,2,FALSE)) ->  | R30: =IF(ISNONTEXT(VLOOKUP($B30,'All Cards'!$A$2:$I$9092,5,FALSE)),"",VLOOKUP($B30,'All Cards'!$A$2:$I$9092,5,FALSE)) ->  | S30: =IF(ISNONTEXT(VLOOKUP($B30,'All Cards'!$A$2:$I$9092,4,FALSE)),"",VLOOKUP($B30,'All Cards'!$A$2:$I$9092,4,FALSE)) ->  | T30: =IF(ISNONTEXT(VLOOKUP($B30,'All Cards'!$A$2:$I$9092,3,FALSE)),"",VLOOKUP($B30,'All Cards'!$A$2:$I$9092,3,FALSE)) -> Normal / Spell | U30: =IF(ISBLANK(VLOOKUP($B30,'All Cards'!$A$2:$I$9093,6,FALSE))," ",VLOOKUP($B30,'All Cards'!$A$2:$I$9092,6,FALSE)) ->  | V30: =IF(ISBLANK(VLOOKUP($B30,'All Cards'!$A$2:$I$9093,7,FALSE)),"",VLOOKUP($B30,'All Cards'!$A$2:$I$9093,7,FALSE)) ->  | W30: =IF(ISBLANK(VLOOKUP($B30,'All Cards'!$A$2:$I$9093,8,FALSE)),"",VLOOKUP($B30,'All Cards'!$A$2:$I$9093,8,FALSE)) ->  | X30: =IF(ISNONTEXT(VLOOKUP($B30,'All Cards'!$A$2:$I$9092,9,FALSE)),"",VLOOKUP($B30,'All Cards'!$A$2:$I$9092,9,FALSE)) -> Discard 1 card. Destroy all face-up monsters your opponent controls.
A31: 30 | B31: Mystical Space Typhoon | C31: =IF(ISNA(VLOOKUP($B31,Limited!$B$1:$C$200,2,FALSE)),"",VLOOKUP($B31,Limited!$B$2:$C$200,2,FALSE)) ->  | R31: =IF(ISNONTEXT(VLOOKUP($B31,'All Cards'!$A$2:$I$9092,5,FALSE)),"",VLOOKUP($B31,'All Cards'!$A$2:$I$9092,5,FALSE)) ->  | S31: =IF(ISNONTEXT(VLOOKUP($B31,'All Cards'!$A$2:$I$9092,4,FALSE)),"",VLOOKUP($B31,'All Cards'!$A$2:$I$9092,4,FALSE)) ->  | T31: =IF(ISNONTEXT(VLOOKUP($B31,'All Cards'!$A$2:$I$9092,3,FALSE)),"",VLOOKUP($B31,'All Cards'!$A$2:$I$9092,3,FALSE)) -> Quick-Play / Spell | U31: =IF(ISBLANK(VLOOKUP($B31,'All Cards'!$A$2:$I$9093,6,FALSE))," ",VLOOKUP($B31,'All Cards'!$A$2:$I$9092,6,FALSE)) ->  | V31: =IF(ISBLANK(VLOOKUP($B31,'All Cards'!$A$2:$I$9093,7,FALSE)),"",VLOOKUP($B31,'All Cards'!$A$2:$I$9093,7,FALSE)) ->  | W31: =IF(ISBLANK(VLOOKUP($B31,'All Cards'!$A$2:$I$9093,8,FALSE)),"",VLOOKUP($B31,'All Cards'!$A$2:$I$9093,8,FALSE)) ->  | X31: =IF(ISNONTEXT(VLOOKUP($B31,'All Cards'!$A$2:$I$9092,9,FALSE)),"",VLOOKUP($B31,'All Cards'!$A$2:$I$9092,9,FALSE)) -> Target 1 Spell/Trap Card on the field; destroy that target.
A32: 31 | B32: Nobleman of Crossout | C32: =IF(ISNA(VLOOKUP($B32,Limited!$B$1:$C$200,2,FALSE)),"",VLOOKUP($B32,Limited!$B$2:$C$200,2,FALSE)) ->  | R32: =IF(ISNONTEXT(VLOOKUP($B32,'All Cards'!$A$2:$I$9092,5,FALSE)),"",VLOOKUP($B32,'All Cards'!$A$2:$I$9092,5,FALSE)) ->  | S32: =IF(ISNONTEXT(VLOOKUP($B32,'All Cards'!$A$2:$I$9092,4,FALSE)),"",VLOOKUP($B32,'All Cards'!$A$2:$I$9092,4,FALSE)) ->  | T32: =IF(ISNONTEXT(VLOOKUP($B32,'All Cards'!$A$2:$I$9092,3,FALSE)),"",VLOOKUP($B32,'All Cards'!$A$2:$I$9092,3,FALSE)) -> Normal / Spell | U32: =IF(ISBLANK(VLOOKUP($B32,'All Cards'!$A$2:$I$9093,6,FALSE))," ",VLOOKUP($B32,'All Cards'!$A$2:$I$9092,6,FALSE)) ->  | V32: =IF(ISBLANK(VLOOKUP($B32,'All Cards'!$A$2:$I$9093,7,FALSE)),"",VLOOKUP($B32,'All Cards'!$A$2:$I$9093,7,FALSE)) ->  | W32: =IF(ISBLANK(VLOOKUP($B32,'All Cards'!$A$2:$I$9093,8,FALSE)),"",VLOOKUP($B32,'All Cards'!$A$2:$I$9093,8,FALSE)) ->  | X32: =IF(ISNONTEXT(VLOOKUP($B32,'All Cards'!$A$2:$I$9092,9,FALSE)),"",VLOOKUP($B32,'All Cards'!$A$2:$I$9092,9,FALSE)) -> Destroy 1 face-down monster and remove it from play. If the monster is a Flip Effect Monster, both players must remove from play all monsters from their Decks with the same name as the destroyed monster.
A33: 32 | B33: Premature Burial | C33: =IF(ISNA(VLOOKUP($B33,Limited!$B$1:$C$200,2,FALSE)),"",VLOOKUP($B33,Limited!$B$2:$C$200,2,FALSE)) -> Forbidden | R33: =IF(ISNONTEXT(VLOOKUP($B33,'All Cards'!$A$2:$I$9092,5,FALSE)),"",VLOOKUP($B33,'All Cards'!$A$2:$I$9092,5,FALSE)) ->  | S33: =IF(ISNONTEXT(VLOOKUP($B33,'All Cards'!$A$2:$I$9092,4,FALSE)),"",VLOOKUP($B33,'All Cards'!$A$2:$I$9092,4,FALSE)) ->  | T33: =IF(ISNONTEXT(VLOOKUP($B33,'All Cards'!$A$2:$I$9092,3,FALSE)),"",VLOOKUP($B33,'All Cards'!$A$2:$I$9092,3,FALSE)) -> Equip / Spell | U33: =IF(ISBLANK(VLOOKUP($B33,'All Cards'!$A$2:$I$9093,6,FALSE))," ",VLOOKUP($B33,'All Cards'!$A$2:$I$9092,6,FALSE)) ->  | V33: =IF(ISBLANK(VLOOKUP($B33,'All Cards'!$A$2:$I$9093,7,FALSE)),"",VLOOKUP($B33,'All Cards'!$A$2:$I$9093,7,FALSE)) ->  | W33: =IF(ISBLANK(VLOOKUP($B33,'All Cards'!$A$2:$I$9093,8,FALSE)),"",VLOOKUP($B33,'All Cards'!$A$2:$I$9093,8,FALSE)) ->  | X33: =IF(ISNONTEXT(VLOOKUP($B33,'All Cards'!$A$2:$I$9092,9,FALSE)),"",VLOOKUP($B33,'All Cards'!$A$2:$I$9092,9,FALSE)) -> Activate this card by paying 800 Life Points, then target 1 monster in your Graveyard; Special Summon that target in face-up Attack Position and equip it with this card. When this card is destroyed, destroy the equipped monster.
A34: 33 | B34: Scapegoat | C34: =IF(ISNA(VLOOKUP($B34,Limited!$B$1:$C$200,2,FALSE)),"",VLOOKUP($B34,Limited!$B$2:$C$200,2,FALSE)) -> Limited | R34: =IF(ISNONTEXT(VLOOKUP($B34,'All Cards'!$A$2:$I$9092,5,FALSE)),"",VLOOKUP($B34,'All Cards'!$A$2:$I$9092,5,FALSE)) ->  | S34: =IF(ISNONTEXT(VLOOKUP($B34,'All Cards'!$A$2:$I$9092,4,FALSE)),"",VLOOKUP($B34,'All Cards'!$A$2:$I$9092,4,FALSE)) ->  | T34: =IF(ISNONTEXT(VLOOKUP($B34,'All Cards'!$A$2:$I$9092,3,FALSE)),"",VLOOKUP($B34,'All Cards'!$A$2:$I$9092,3,FALSE)) -> Quick-Play / Spell | U34: =IF(ISBLANK(VLOOKUP($B34,'All Cards'!$A$2:$I$9093,6,FALSE))," ",VLOOKUP($B34,'All Cards'!$A$2:$I$9092,6,FALSE)) ->  | V34: =IF(ISBLANK(VLOOKUP($B34,'All Cards'!$A$2:$I$9093,7,FALSE)),"",VLOOKUP($B34,'All Cards'!$A$2:$I$9093,7,FALSE)) ->  | W34: =IF(ISBLANK(VLOOKUP($B34,'All Cards'!$A$2:$I$9093,8,FALSE)),"",VLOOKUP($B34,'All Cards'!$A$2:$I$9093,8,FALSE)) ->  | X34: =IF(ISNONTEXT(VLOOKUP($B34,'All Cards'!$A$2:$I$9092,9,FALSE)),"",VLOOKUP($B34,'All Cards'!$A$2:$I$9092,9,FALSE)) -> Special Summon 4 "Sheep Tokens" (Beast-Type/EARTH/Level 1/ATK 0/DEF 0) in Defense Position. These Tokens cannot be Tributed for a Tribute Summon. You cannot Summon other monsters the turn you activate this card (but you can Set).
A35: 34 | B35: Swords of Revealing Light | C35: =IF(ISNA(VLOOKUP($B35,Limited!$B$1:$C$200,2,FALSE)),"",VLOOKUP($B35,Limited!$B$2:$C$200,2,FALSE)) ->  | R35: =IF(ISNONTEXT(VLOOKUP($B35,'All Cards'!$A$2:$I$9092,5,FALSE)),"",VLOOKUP($B35,'All Cards'!$A$2:$I$9092,5,FALSE)) ->  | S35: =IF(ISNONTEXT(VLOOKUP($B35,'All Cards'!$A$2:$I$9092,4,FALSE)),"",VLOOKUP($B35,'All Cards'!$A$2:$I$9092,4,FALSE)) ->  | T35: =IF(ISNONTEXT(VLOOKUP($B35,'All Cards'!$A$2:$I$9092,3,FALSE)),"",VLOOKUP($B35,'All Cards'!$A$2:$I$9092,3,FALSE)) -> Normal / Spell | U35: =IF(ISBLANK(VLOOKUP($B35,'All Cards'!$A$2:$I$9093,6,FALSE))," ",VLOOKUP($B35,'All Cards'!$A$2:$I$9092,6,FALSE)) ->  | V35: =IF(ISBLANK(VLOOKUP($B35,'All Cards'!$A$2:$I$9093,7,FALSE)),"",VLOOKUP($B35,'All Cards'!$A$2:$I$9093,7,FALSE)) ->  | W35: =IF(ISBLANK(VLOOKUP($B35,'All Cards'!$A$2:$I$9093,8,FALSE)),"",VLOOKUP($B35,'All Cards'!$A$2:$I$9093,8,FALSE)) ->  | X35: =IF(ISNONTEXT(VLOOKUP($B35,'All Cards'!$A$2:$I$9092,9,FALSE)),"",VLOOKUP($B35,'All Cards'!$A$2:$I$9092,9,FALSE)) -> Flip all monsters your opponent controls face-up. This card remains on the field for 3 of your opponent's turns. While this card is face-up on the field, monsters your opponent controls cannot declare an attack.
A36: 35 | B36: Bottomless Trap Hole | C36: =IF(ISNA(VLOOKUP($B36,Limited!$B$1:$C$200,2,FALSE)),"",VLOOKUP($B36,Limited!$B$2:$C$200,2,FALSE)) ->  | R36: =IF(ISNONTEXT(VLOOKUP($B36,'All Cards'!$A$2:$I$9092,5,FALSE)),"",VLOOKUP($B36,'All Cards'!$A$2:$I$9092,5,FALSE)) ->  | S36: =IF(ISNONTEXT(VLOOKUP($B36,'All Cards'!$A$2:$I$9092,4,FALSE)),"",VLOOKUP($B36,'All Cards'!$A$2:$I$9092,4,FALSE)) ->  | T36: =IF(ISNONTEXT(VLOOKUP($B36,'All Cards'!$A$2:$I$9092,3,FALSE)),"",VLOOKUP($B36,'All Cards'!$A$2:$I$9092,3,FALSE)) -> Normal / Trap | U36: =IF(ISBLANK(VLOOKUP($B36,'All Cards'!$A$2:$I$9093,6,FALSE))," ",VLOOKUP($B36,'All Cards'!$A$2:$I$9092,6,FALSE)) ->  | V36: =IF(ISBLANK(VLOOKUP($B36,'All Cards'!$A$2:$I$9093,7,FALSE)),"",VLOOKUP($B36,'All Cards'!$A$2:$I$9093,7,FALSE)) ->  | W36: =IF(ISBLANK(VLOOKUP($B36,'All Cards'!$A$2:$I$9093,8,FALSE)),"",VLOOKUP($B36,'All Cards'!$A$2:$I$9093,8,FALSE)) ->  | X36: =IF(ISNONTEXT(VLOOKUP($B36,'All Cards'!$A$2:$I$9092,9,FALSE)),"",VLOOKUP($B36,'All Cards'!$A$2:$I$9092,9,FALSE)) -> When your opponent Summons a monster(s) with 1500 or more ATK: Destroy that monster(s) with 1500 or more ATK, and if you do, banish it instead of sending it to the Graveyard.
A37: 36 | B37: Call of the Haunted | C37: =IF(ISNA(VLOOKUP($B37,Limited!$B$1:$C$200,2,FALSE)),"",VLOOKUP($B37,Limited!$B$2:$C$200,2,FALSE)) ->  | R37: =IF(ISNONTEXT(VLOOKUP($B37,'All Cards'!$A$2:$I$9092,5,FALSE)),"",VLOOKUP($B37,'All Cards'!$A$2:$I$9092,5,FALSE)) ->  | S37: =IF(ISNONTEXT(VLOOKUP($B37,'All Cards'!$A$2:$I$9092,4,FALSE)),"",VLOOKUP($B37,'All Cards'!$A$2:$I$9092,4,FALSE)) ->  | T37: =IF(ISNONTEXT(VLOOKUP($B37,'All Cards'!$A$2:$I$9092,3,FALSE)),"",VLOOKUP($B37,'All Cards'!$A$2:$I$9092,3,FALSE)) -> Continuous / Trap | U37: =IF(ISBLANK(VLOOKUP($B37,'All Cards'!$A$2:$I$9093,6,FALSE))," ",VLOOKUP($B37,'All Cards'!$A$2:$I$9092,6,FALSE)) ->  | V37: =IF(ISBLANK(VLOOKUP($B37,'All Cards'!$A$2:$I$9093,7,FALSE)),"",VLOOKUP($B37,'All Cards'!$A$2:$I$9093,7,FALSE)) ->  | W37: =IF(ISBLANK(VLOOKUP($B37,'All Cards'!$A$2:$I$9093,8,FALSE)),"",VLOOKUP($B37,'All Cards'!$A$2:$I$9093,8,FALSE)) ->  | X37: =IF(ISNONTEXT(VLOOKUP($B37,'All Cards'!$A$2:$I$9092,9,FALSE)),"",VLOOKUP($B37,'All Cards'!$A$2:$I$9092,9,FALSE)) -> Activate this card by targeting 1 monster in your Graveyard; Special Summon that target in face-up Attack Position. When this card leaves the field, destroy that target. When that target is destroyed, destroy this card.
A38: 37 | B38: Magic Cylinder | C38: =IF(ISNA(VLOOKUP($B38,Limited!$B$1:$C$200,2,FALSE)),"",VLOOKUP($B38,Limited!$B$2:$C$200,2,FALSE)) ->  | F38: ="ATK / "&$V5 -> ATK / 1400 | G38: ="DEF / "&$W5 -> DEF / 1450 | I38: ="ATK / "&$V6 -> ATK / 1400 | J38: ="DEF / "&$W6 -> DEF / 1450 | L38: ="ATK / "&$V7 -> ATK / 400 | M38: ="DEF / "&$W7 -> DEF / 1500 | R38: =IF(ISNONTEXT(VLOOKUP($B38,'All Cards'!$A$2:$I$9092,5,FALSE)),"",VLOOKUP($B38,'All Cards'!$A$2:$I$9092,5,FALSE)) ->  | S38: =IF(ISNONTEXT(VLOOKUP($B38,'All Cards'!$A$2:$I$9092,4,FALSE)),"",VLOOKUP($B38,'All Cards'!$A$2:$I$9092,4,FALSE)) ->  | T38: =IF(ISNONTEXT(VLOOKUP($B38,'All Cards'!$A$2:$I$9092,3,FALSE)),"",VLOOKUP($B38,'All Cards'!$A$2:$I$9092,3,FALSE)) -> Normal / Trap | U38: =IF(ISBLANK(VLOOKUP($B38,'All Cards'!$A$2:$I$9093,6,FALSE))," ",VLOOKUP($B38,'All Cards'!$A$2:$I$9092,6,FALSE)) ->  | V38: =IF(ISBLANK(VLOOKUP($B38,'All Cards'!$A$2:$I$9093,7,FALSE)),"",VLOOKUP($B38,'All Cards'!$A$2:$I$9093,7,FALSE)) ->  | W38: =IF(ISBLANK(VLOOKUP($B38,'All Cards'!$A$2:$I$9093,8,FALSE)),"",VLOOKUP($B38,'All Cards'!$A$2:$I$9093,8,FALSE)) ->  | X38: =IF(ISNONTEXT(VLOOKUP($B38,'All Cards'!$A$2:$I$9092,9,FALSE)),"",VLOOKUP($B38,'All Cards'!$A$2:$I$9092,9,FALSE)) -> When an opponent's monster declares an attack: Target the attacking monster; negate the attack, and if you do, inflict damage to your opponent equal to its ATK.
A39: 38 | B39: Mirror Force | C39: =IF(ISNA(VLOOKUP($B39,Limited!$B$1:$C$200,2,FALSE)),"",VLOOKUP($B39,Limited!$B$2:$C$200,2,FALSE)) ->  | E39: =$B8 -> Magical Merchant | H39: =$B9 -> Magician of Faith | K39: =$B10 -> Mystic Swordsman LV2 | R39: =IF(ISNONTEXT(VLOOKUP($B39,'All Cards'!$A$2:$I$9092,5,FALSE)),"",VLOOKUP($B39,'All Cards'!$A$2:$I$9092,5,FALSE)) ->  | S39: =IF(ISNONTEXT(VLOOKUP($B39,'All Cards'!$A$2:$I$9092,4,FALSE)),"",VLOOKUP($B39,'All Cards'!$A$2:$I$9092,4,FALSE)) ->  | T39: =IF(ISNONTEXT(VLOOKUP($B39,'All Cards'!$A$2:$I$9092,3,FALSE)),"",VLOOKUP($B39,'All Cards'!$A$2:$I$9092,3,FALSE)) -> Normal / Trap | U39: =IF(ISBLANK(VLOOKUP($B39,'All Cards'!$A$2:$I$9093,6,FALSE))," ",VLOOKUP($B39,'All Cards'!$A$2:$I$9092,6,FALSE)) ->  | V39: =IF(ISBLANK(VLOOKUP($B39,'All Cards'!$A$2:$I$9093,7,FALSE)),"",VLOOKUP($B39,'All Cards'!$A$2:$I$9093,7,FALSE)) ->  | W39: =IF(ISBLANK(VLOOKUP($B39,'All Cards'!$A$2:$I$9093,8,FALSE)),"",VLOOKUP($B39,'All Cards'!$A$2:$I$9093,8,FALSE)) ->  | X39: =IF(ISNONTEXT(VLOOKUP($B39,'All Cards'!$A$2:$I$9092,9,FALSE)),"",VLOOKUP($B39,'All Cards'!$A$2:$I$9092,9,FALSE)) -> When an opponent's monster declares an attack: Destroy all Attack Position monsters your opponent controls.
A40: 39 | B40: Ring of Destruction | C40: =IF(ISNA(VLOOKUP($B40,Limited!$B$1:$C$200,2,FALSE)),"",VLOOKUP($B40,Limited!$B$2:$C$200,2,FALSE)) ->  | R40: =IF(ISNONTEXT(VLOOKUP($B40,'All Cards'!$A$2:$I$9092,5,FALSE)),"",VLOOKUP($B40,'All Cards'!$A$2:$I$9092,5,FALSE)) ->  | S40: =IF(ISNONTEXT(VLOOKUP($B40,'All Cards'!$A$2:$I$9092,4,FALSE)),"",VLOOKUP($B40,'All Cards'!$A$2:$I$9092,4,FALSE)) ->  | T40: =IF(ISNONTEXT(VLOOKUP($B40,'All Cards'!$A$2:$I$9092,3,FALSE)),"",VLOOKUP($B40,'All Cards'!$A$2:$I$9092,3,FALSE)) -> Normal / Trap | U40: =IF(ISBLANK(VLOOKUP($B40,'All Cards'!$A$2:$I$9093,6,FALSE))," ",VLOOKUP($B40,'All Cards'!$A$2:$I$9092,6,FALSE)) ->  | V40: =IF(ISBLANK(VLOOKUP($B40,'All Cards'!$A$2:$I$9093,7,FALSE)),"",VLOOKUP($B40,'All Cards'!$A$2:$I$9093,7,FALSE)) ->  | W40: =IF(ISBLANK(VLOOKUP($B40,'All Cards'!$A$2:$I$9093,8,FALSE)),"",VLOOKUP($B40,'All Cards'!$A$2:$I$9093,8,FALSE)) ->  | X40: =IF(ISNONTEXT(VLOOKUP($B40,'All Cards'!$A$2:$I$9092,9,FALSE)),"",VLOOKUP($B40,'All Cards'!$A$2:$I$9092,9,FALSE)) -> Target 1 face-up monster on the field; destroy that target, and if you do, inflict damage to both players equal to that target's ATK.
A41: 40 | B41: Royal Decree | C41: =IF(ISNA(VLOOKUP($B41,Limited!$B$1:$C$200,2,FALSE)),"",VLOOKUP($B41,Limited!$B$2:$C$200,2,FALSE)) ->  | E41: =IF($R8=0,"",$R8) -> Light | F41: =VLOOKUP($U8,$O$4:$P$16,2,FALSE) ->  | H41: =IF($R9=0,"",$R9) -> Light | I41: =VLOOKUP($U9,$O$4:$P$16,2,FALSE) ->  | K41: =IF($R10=0,"",$R10) -> Fire | L41: =VLOOKUP($U10,$O$4:$P$16,2,FALSE) ->  | R41: =IF(ISNONTEXT(VLOOKUP($B41,'All Cards'!$A$2:$I$9092,5,FALSE)),"",VLOOKUP($B41,'All Cards'!$A$2:$I$9092,5,FALSE)) ->  | S41: =IF(ISNONTEXT(VLOOKUP($B41,'All Cards'!$A$2:$I$9092,4,FALSE)),"",VLOOKUP($B41,'All Cards'!$A$2:$I$9092,4,FALSE)) ->  | T41: =IF(ISNONTEXT(VLOOKUP($B41,'All Cards'!$A$2:$I$9092,3,FALSE)),"",VLOOKUP($B41,'All Cards'!$A$2:$I$9092,3,FALSE)) -> Continuous / Trap | U41: =IF(ISBLANK(VLOOKUP($B41,'All Cards'!$A$2:$I$9093,6,FALSE))," ",VLOOKUP($B41,'All Cards'!$A$2:$I$9092,6,FALSE)) ->  | V41: =IF(ISBLANK(VLOOKUP($B41,'All Cards'!$A$2:$I$9093,7,FALSE)),"",VLOOKUP($B41,'All Cards'!$A$2:$I$9093,7,FALSE)) ->  | W41: =IF(ISBLANK(VLOOKUP($B41,'All Cards'!$A$2:$I$9093,8,FALSE)),"",VLOOKUP($B41,'All Cards'!$A$2:$I$9093,8,FALSE)) ->  | X41: =IF(ISNONTEXT(VLOOKUP($B41,'All Cards'!$A$2:$I$9092,9,FALSE)),"",VLOOKUP($B41,'All Cards'!$A$2:$I$9092,9,FALSE)) -> Negate all other Trap Card effects on the field.
A42: 41 | B42: --- | C42: =IF(ISNA(VLOOKUP($B42,Limited!$B$1:$C$200,2,FALSE)),"",VLOOKUP($B42,Limited!$B$2:$C$200,2,FALSE)) ->  | E42: =$S8&" / "&$T8 -> Insect / Flip / Effect Monster | H42: =$S9&" / "&$T9 -> Spellcaster / Flip / Effect Monster | K42: =$S10&" / "&$T10 -> Warrior / Effect Monster | R42: =IF(ISNONTEXT(VLOOKUP($B42,'All Cards'!$A$2:$I$9092,5,FALSE)),"",VLOOKUP($B42,'All Cards'!$A$2:$I$9092,5,FALSE)) ->  | S42: =IF(ISNONTEXT(VLOOKUP($B42,'All Cards'!$A$2:$I$9092,4,FALSE)),"",VLOOKUP($B42,'All Cards'!$A$2:$I$9092,4,FALSE)) ->  | T42: =IF(ISNONTEXT(VLOOKUP($B42,'All Cards'!$A$2:$I$9092,3,FALSE)),"",VLOOKUP($B42,'All Cards'!$A$2:$I$9092,3,FALSE)) ->  | U42: =IF(ISBLANK(VLOOKUP($B42,'All Cards'!$A$2:$I$9093,6,FALSE))," ",VLOOKUP($B42,'All Cards'!$A$2:$I$9092,6,FALSE)) ->  | V42: =IF(ISBLANK(VLOOKUP($B42,'All Cards'!$A$2:$I$9093,7,FALSE)),"",VLOOKUP($B42,'All Cards'!$A$2:$I$9093,7,FALSE)) ->  | W42: =IF(ISBLANK(VLOOKUP($B42,'All Cards'!$A$2:$I$9093,8,FALSE)),"",VLOOKUP($B42,'All Cards'!$A$2:$I$9093,8,FALSE)) ->  | X42: =IF(ISNONTEXT(VLOOKUP($B42,'All Cards'!$A$2:$I$9092,9,FALSE)),"",VLOOKUP($B42,'All Cards'!$A$2:$I$9092,9,FALSE)) -> 
A43: 42 | B43: --- | C43: =IF(ISNA(VLOOKUP($B43,Limited!$B$1:$C$200,2,FALSE)),"",VLOOKUP($B43,Limited!$B$2:$C$200,2,FALSE)) ->  | R43: =IF(ISNONTEXT(VLOOKUP($B43,'All Cards'!$A$2:$I$9092,5,FALSE)),"",VLOOKUP($B43,'All Cards'!$A$2:$I$9092,5,FALSE)) ->  | S43: =IF(ISNONTEXT(VLOOKUP($B43,'All Cards'!$A$2:$I$9092,4,FALSE)),"",VLOOKUP($B43,'All Cards'!$A$2:$I$9092,4,FALSE)) ->  | T43: =IF(ISNONTEXT(VLOOKUP($B43,'All Cards'!$A$2:$I$9092,3,FALSE)),"",VLOOKUP($B43,'All Cards'!$A$2:$I$9092,3,FALSE)) ->  | U43: =IF(ISBLANK(VLOOKUP($B43,'All Cards'!$A$2:$I$9093,6,FALSE))," ",VLOOKUP($B43,'All Cards'!$A$2:$I$9092,6,FALSE)) ->  | V43: =IF(ISBLANK(VLOOKUP($B43,'All Cards'!$A$2:$I$9093,7,FALSE)),"",VLOOKUP($B43,'All Cards'!$A$2:$I$9093,7,FALSE)) ->  | W43: =IF(ISBLANK(VLOOKUP($B43,'All Cards'!$A$2:$I$9093,8,FALSE)),"",VLOOKUP($B43,'All Cards'!$A$2:$I$9093,8,FALSE)) ->  | X43: =IF(ISNONTEXT(VLOOKUP($B43,'All Cards'!$A$2:$I$9092,9,FALSE)),"",VLOOKUP($B43,'All Cards'!$A$2:$I$9092,9,FALSE)) -> 
A44: 43 | B44: --- | C44: =IF(ISNA(VLOOKUP($B44,Limited!$B$1:$C$200,2,FALSE)),"",VLOOKUP($B44,Limited!$B$2:$C$200,2,FALSE)) ->  | E44: =$X8 -> FLIP: Pick up cards from the top of your Deck until you pick up a Spell Card or Trap Card. Add that card to your hand. Send the remaining cards to the Graveyard. | H44: =$X9 -> FLIP: Add 1 Spell Card from your Graveyard to your hand. | K44: =$X10 -> If this card attacks a face-down Defense Position monster, destroy the monster immediately with this card's effect without flipping it face-up or applying damage calculation. During the End Phase of a turn that this card destroyed a monster by battle, by sending this card to the Graveyard, Special Summon 1 "Mystic Swordsman LV4" from your hand or Deck. | R44: =IF(ISNONTEXT(VLOOKUP($B44,'All Cards'!$A$2:$I$9092,5,FALSE)),"",VLOOKUP($B44,'All Cards'!$A$2:$I$9092,5,FALSE)) ->  | S44: =IF(ISNONTEXT(VLOOKUP($B44,'All Cards'!$A$2:$I$9092,4,FALSE)),"",VLOOKUP($B44,'All Cards'!$A$2:$I$9092,4,FALSE)) ->  | T44: =IF(ISNONTEXT(VLOOKUP($B44,'All Cards'!$A$2:$I$9092,3,FALSE)),"",VLOOKUP($B44,'All Cards'!$A$2:$I$9092,3,FALSE)) ->  | U44: =IF(ISBLANK(VLOOKUP($B44,'All Cards'!$A$2:$I$9093,6,FALSE))," ",VLOOKUP($B44,'All Cards'!$A$2:$I$9092,6,FALSE)) ->  | V44: =IF(ISBLANK(VLOOKUP($B44,'All Cards'!$A$2:$I$9093,7,FALSE)),"",VLOOKUP($B44,'All Cards'!$A$2:$I$9093,7,FALSE)) ->  | W44: =IF(ISBLANK(VLOOKUP($B44,'All Cards'!$A$2:$I$9093,8,FALSE)),"",VLOOKUP($B44,'All Cards'!$A$2:$I$9093,8,FALSE)) ->  | X44: =IF(ISNONTEXT(VLOOKUP($B44,'All Cards'!$A$2:$I$9092,9,FALSE)),"",VLOOKUP($B44,'All Cards'!$A$2:$I$9092,9,FALSE)) -> 
A45: 44 | B45: --- | C45: =IF(ISNA(VLOOKUP($B45,Limited!$B$1:$C$200,2,FALSE)),"",VLOOKUP($B45,Limited!$B$2:$C$200,2,FALSE)) ->  | R45: =IF(ISNONTEXT(VLOOKUP($B45,'All Cards'!$A$2:$I$9092,5,FALSE)),"",VLOOKUP($B45,'All Cards'!$A$2:$I$9092,5,FALSE)) ->  | S45: =IF(ISNONTEXT(VLOOKUP($B45,'All Cards'!$A$2:$I$9092,4,FALSE)),"",VLOOKUP($B45,'All Cards'!$A$2:$I$9092,4,FALSE)) ->  | T45: =IF(ISNONTEXT(VLOOKUP($B45,'All Cards'!$A$2:$I$9092,3,FALSE)),"",VLOOKUP($B45,'All Cards'!$A$2:$I$9092,3,FALSE)) ->  | U45: =IF(ISBLANK(VLOOKUP($B45,'All Cards'!$A$2:$I$9093,6,FALSE))," ",VLOOKUP($B45,'All Cards'!$A$2:$I$9092,6,FALSE)) ->  | V45: =IF(ISBLANK(VLOOKUP($B45,'All Cards'!$A$2:$I$9093,7,FALSE)),"",VLOOKUP($B45,'All Cards'!$A$2:$I$9093,7,FALSE)) ->  | W45: =IF(ISBLANK(VLOOKUP($B45,'All Cards'!$A$2:$I$9093,8,FALSE)),"",VLOOKUP($B45,'All Cards'!$A$2:$I$9093,8,FALSE)) ->  | X45: =IF(ISNONTEXT(VLOOKUP($B45,'All Cards'!$A$2:$I$9092,9,FALSE)),"",VLOOKUP($B45,'All Cards'!$A$2:$I$9092,9,FALSE)) -> 
A46: 45 | B46: --- | C46: =IF(ISNA(VLOOKUP($B46,Limited!$B$1:$C$200,2,FALSE)),"",VLOOKUP($B46,Limited!$B$2:$C$200,2,FALSE)) ->  | R46: =IF(ISNONTEXT(VLOOKUP($B46,'All Cards'!$A$2:$I$9092,5,FALSE)),"",VLOOKUP($B46,'All Cards'!$A$2:$I$9092,5,FALSE)) ->  | S46: =IF(ISNONTEXT(VLOOKUP($B46,'All Cards'!$A$2:$I$9092,4,FALSE)),"",VLOOKUP($B46,'All Cards'!$A$2:$I$9092,4,FALSE)) ->  | T46: =IF(ISNONTEXT(VLOOKUP($B46,'All Cards'!$A$2:$I$9092,3,FALSE)),"",VLOOKUP($B46,'All Cards'!$A$2:$I$9092,3,FALSE)) ->  | U46: =IF(ISBLANK(VLOOKUP($B46,'All Cards'!$A$2:$I$9093,6,FALSE))," ",VLOOKUP($B46,'All Cards'!$A$2:$I$9092,6,FALSE)) ->  | V46: =IF(ISBLANK(VLOOKUP($B46,'All Cards'!$A$2:$I$9093,7,FALSE)),"",VLOOKUP($B46,'All Cards'!$A$2:$I$9093,7,FALSE)) ->  | W46: =IF(ISBLANK(VLOOKUP($B46,'All Cards'!$A$2:$I$9093,8,FALSE)),"",VLOOKUP($B46,'All Cards'!$A$2:$I$9093,8,FALSE)) ->  | X46: =IF(ISNONTEXT(VLOOKUP($B46,'All Cards'!$A$2:$I$9092,9,FALSE)),"",VLOOKUP($B46,'All Cards'!$A$2:$I$9092,9,FALSE)) -> 
F57: ="ATK / "&$V8 -> ATK / 200 | G57: ="DEF / "&$W8 -> DEF / 700 | I57: ="ATK / "&$V9 -> ATK / 300 | J57: ="DEF / "&$W9 -> DEF / 400 | L57: ="ATK / "&$V10 -> ATK / 900 | M57: ="DEF / "&$W10 -> DEF / 0
E58: =$B11 -> Pyramid Turtle | H58: =$B12 -> Pyramid Turtle | K58: =$B13 -> Pyramid Turtle
E60: =IF($R11=0,"",$R11) -> Earth | F60: =VLOOKUP($U11,$O$4:$P$16,2,FALSE) ->  | H60: =IF($R12=0,"",$R12) -> Earth | I60: =VLOOKUP($U12,$O$4:$P$16,2,FALSE) ->  | K60: =IF($R13=0,"",$R13) -> Earth | L60: =VLOOKUP($U13,$O$4:$P$16,2,FALSE) -> 
E61: =$S11&" / "&$T11 -> Zombie / Effect Monster | H61: =$S12&" / "&$T12 -> Zombie / Effect Monster | K61: =$S13&" / "&$T13 -> Zombie / Effect Monster
E63: =$X11 -> When this card is destroyed by battle and sent to the Graveyard: You can Special Summon 1 Zombie-Type monster with 2000 or less DEF from your Deck. | H63: =$X12 -> When this card is destroyed by battle and sent to the Graveyard: You can Special Summon 1 Zombie-Type monster with 2000 or less DEF from your Deck. | K63: =$X13 -> When this card is destroyed by battle and sent to the Graveyard: You can Special Summon 1 Zombie-Type monster with 2000 or less DEF from your Deck.
F76: ="ATK / "&$V11 -> ATK / 1200 | G76: ="DEF / "&$W11 -> DEF / 1400 | I76: ="ATK / "&$V12 -> ATK / 1200 | J76: ="DEF / "&$W12 -> DEF / 1400 | L76: ="ATK / "&$V13 -> ATK / 1200 | M76: ="DEF / "&$W13 -> DEF / 1400
E77: =$B14 -> Ryu Kokki | H77: =$B15 -> Ryu Kokki | K77: =$B16 -> Sangan
E79: =IF($R14=0,"",$R14) -> Dark | F79: =VLOOKUP($U14,$O$4:$P$16,2,FALSE) ->  | H79: =IF($R15=0,"",$R15) -> Dark | I79: =VLOOKUP($U15,$O$4:$P$16,2,FALSE) ->  | K79: =IF($R16=0,"",$R16) -> Dark | L79: =VLOOKUP($U16,$O$4:$P$16,2,FALSE) -> 
E80: =$S14&" / "&$T14 -> Zombie / Effect Monster | H80: =$S15&" / "&$T15 -> Zombie / Effect Monster | K80: =$S16&" / "&$T16 -> Fiend / Effect Monster
E82: =$X14 -> At the end of the Damage Step, if this card battled a Warrior or Spellcaster-Type monster: Destroy that monster. | H82: =$X15 -> At the end of the Damage Step, if this card battled a Warrior or Spellcaster-Type monster: Destroy that monster. | K82: =$X16 -> When this card is sent from the field to the Graveyard: Add 1 monster with 1500 or less ATK from your Deck to your hand.
F95: ="ATK / "&$V14 -> ATK / 2400 | G95: ="DEF / "&$W14 -> DEF / 2000 | I95: ="ATK / "&$V15 -> ATK / 2400 | J95: ="DEF / "&$W15 -> DEF / 2000 | L95: ="ATK / "&$V16 -> ATK / 1000 | M95: ="DEF / "&$W16 -> DEF / 600
E96: =$B17 -> Treeborn Frog | H96: =$B18 -> Vampire Lord | K96: =$B19 -> Vampire Lord
E98: =IF($R17=0,"",$R17) -> Water | F98: =VLOOKUP($U17,$O$4:$P$16,2,FALSE) ->  | H98: =IF($R18=0,"",$R18) -> Dark | I98: =VLOOKUP($U18,$O$4:$P$16,2,FALSE) ->  | K98: =IF($R19=0,"",$R19) -> Dark | L98: =VLOOKUP($U19,$O$4:$P$16,2,FALSE) -> 
E99: =$S17&" / "&$T17 -> Aqua / Effect Monster | H99: =$S18&" / "&$T18 -> Zombie / Effect Monster | K99: =$S19&" / "&$T19 -> Zombie / Effect Monster
E101: =$X17 -> During your Standby Phase, if this card is in your Graveyard and you do not control a face-up "Treeborn Frog": You can Special Summon this card. You must control no Spell/Trap Cards to activate and to resolve this effect. | H101: =$X18 -> Each time this card inflicts Battle Damage to your opponent, declare 1 card type (Monster, Spell, or Trap). Your opponent selects 1 card of that type from their Deck and sends it to the Graveyard. Also, if this card is destroyed and sent from your field to your Graveyard by your opponent's card effect, it is Special Summoned to your side of the field during your next Standby Phase. | K101: =$X19 -> Each time this card inflicts Battle Damage to your opponent, declare 1 card type (Monster, Spell, or Trap). Your opponent selects 1 card of that type from their Deck and sends it to the Graveyard. Also, if this card is destroyed and sent from your field to your Graveyard by your opponent's card effect, it is Special Summoned to your side of the field during your next Standby Phase.
F114: ="ATK / "&$V17 -> ATK / 100 | G114: ="DEF / "&$W17 -> DEF / 100 | I114: ="ATK / "&$V18 -> ATK / 2000 | J114: ="DEF / "&$W18 -> DEF / 1500 | L114: ="ATK / "&$V19 -> ATK / 2000 | M114: ="DEF / "&$W19 -> DEF / 1500
E115: =$B20 -> Book of Life | H115: =$B21 -> Book of Life | K115: =$B22 -> Brain Control
E117: =IF($R20=0,"",$R20) ->  | F117: =VLOOKUP($U20,$O$4:$P$16,2,FALSE) ->  | H117: =IF($R21=0,"",$R21) ->  | I117: =VLOOKUP($U21,$O$4:$P$16,2,FALSE) ->  | K117: =IF($R22=0,"",$R22) ->  | L117: =VLOOKUP($U22,$O$4:$P$16,2,FALSE) -> 
E118: =$S20&" / "&$T20 -> / Normal / Spell | H118: =$S21&" / "&$T21 -> / Normal / Spell | K118: =$S22&" / "&$T22 -> / Normal / Spell
E120: =$X20 -> Target 1 Zombie-Type monster in your Graveyard and 1 monster in your opponent's Graveyard; Special Summon the first target, also banish the second target. | H120: =$X21 -> Target 1 Zombie-Type monster in your Graveyard and 1 monster in your opponent's Graveyard; Special Summon the first target, also banish the second target. | K120: =$X22 -> Pay 800 Life Points. Select 1 face-up monster your opponent controls. Take control of it until the End Phase.
F133: ="ATK / "&$V20 -> ATK / | G133: ="DEF / "&$W20 -> DEF / | I133: ="ATK / "&$V21 -> ATK / | J133: ="DEF / "&$W21 -> DEF / | L133: ="ATK / "&$V22 -> ATK / | M133: ="DEF / "&$W22 -> DEF /
E134: =$B23 -> Call of the Mummy | H134: =$B24 -> Call of the Mummy | K134: =$B25 -> Creature Swap
E136: =IF($R23=0,"",$R23) ->  | F136: =VLOOKUP($U23,$O$4:$P$16,2,FALSE) ->  | H136: =IF($R24=0,"",$R24) ->  | I136: =VLOOKUP($U24,$O$4:$P$16,2,FALSE) ->  | K136: =IF($R25=0,"",$R25) ->  | L136: =VLOOKUP($U25,$O$4:$P$16,2,FALSE) -> 
E137: =$S23&" / "&$T23 -> / Continuous / Spell | H137: =$S24&" / "&$T24 -> / Continuous / Spell | K137: =$S25&" / "&$T25 -> / Normal / Spell
E139: =$X23 -> Once per turn: You can Special Summon 1 Zombie-Type monster from your hand. You must control no monsters to activate and to resolve this effect. | H139: =$X24 -> Once per turn: You can Special Summon 1 Zombie-Type monster from your hand. You must control no monsters to activate and to resolve this effect. | K139: =$X25 -> Each player chooses 1 monster they control and switches control of those monsters with each other. Those monsters cannot change their battle positions for the rest of this turn.
F152: ="ATK / "&$V23 -> ATK / | G152: ="DEF / "&$W23 -> DEF / | I152: ="ATK / "&$V24 -> ATK / | J152: ="DEF / "&$W24 -> DEF / | L152: ="ATK / "&$V25 -> ATK / | M152: ="DEF / "&$W25 -> DEF /
E153: =$B26 -> Fissure | H153: =$B27 -> Graceful Charity | K153: =$B28 -> Heavy Storm
E155: =IF($R26=0,"",$R26) ->  | F155: =VLOOKUP($U26,$O$4:$P$16,2,FALSE) ->  | H155: =IF($R27=0,"",$R27) ->  | I155: =VLOOKUP($U27,$O$4:$P$16,2,FALSE) ->  | K155: =IF($R28=0,"",$R28) ->  | L155: =VLOOKUP($U28,$O$4:$P$16,2,FALSE) -> 
E156: =$S26&" / "&$T26 -> / Normal / Spell | H156: =$S27&" / "&$T27 -> / Normal / Spell | K156: =$S28&" / "&$T28 -> / Normal / Spell
E158: =$X26 -> Destroy the 1 face-up monster your opponent controls that has the lowest ATK. (If it's a tie, you get to choose.) | H158: =$X27 -> Draw 3 cards, then discard 2 cards. | K158: =$X28 -> Destroy all Spell and Trap Cards on the field.
F171: ="ATK / "&$V26 -> ATK / | G171: ="DEF / "&$W26 -> DEF / | I171: ="ATK / "&$V27 -> ATK / | J171: ="DEF / "&$W27 -> DEF / | L171: ="ATK / "&$V28 -> ATK / | M171: ="DEF / "&$W28 -> DEF /
E172: =$B29 -> Last Will | H172: =$B30 -> Lightning Vortex | K172: =$B31 -> Mystical Space Typhoon
E174: =IF($R29=0,"",$R29) ->  | F174: =VLOOKUP($U29,$O$4:$P$16,2,FALSE) ->  | H174: =IF($R30=0,"",$R30) ->  | I174: =VLOOKUP($U30,$O$4:$P$16,2,FALSE) ->  | K174: =IF($R31=0,"",$R31) ->  | L174: =VLOOKUP($U31,$O$4:$P$16,2,FALSE) -> 
E175: =$S29&" / "&$T29 -> / Normal / Spell | H175: =$S30&" / "&$T30 -> / Normal / Spell | K175: =$S31&" / "&$T31 -> / Quick-Play / Spell
E177: =$X29 -> If a monster on your side of the field was sent to your Graveyard this turn, you can Special Summon 1 monster with an ATK of 1500 points or less from your Deck once during this turn. Then shuffle your Deck. | H177: =$X30 -> Discard 1 card. Destroy all face-up monsters your opponent controls. | K177: =$X31 -> Target 1 Spell/Trap Card on the field; destroy that target.
F190: ="ATK / "&$V29 -> ATK / | G190: ="DEF / "&$W29 -> DEF / | I190: ="ATK / "&$V30 -> ATK / | J190: ="DEF / "&$W30 -> DEF / | L190: ="ATK / "&$V31 -> ATK / | M190: ="DEF / "&$W31 -> DEF /
E191: =$B32 -> Nobleman of Crossout | H191: =$B33 -> Premature Burial | K191: =$B34 -> Scapegoat
E193: =IF($R32=0,"",$R32) ->  | F193: =VLOOKUP($U32,$O$4:$P$16,2,FALSE) ->  | H193: =IF($R33=0,"",$R33) ->  | I193: =VLOOKUP($U33,$O$4:$P$16,2,FALSE) ->  | K193: =IF($R34=0,"",$R34) ->  | L193: =VLOOKUP($U34,$O$4:$P$16,2,FALSE) -> 
E194: =$S32&" / "&$T32 -> / Normal / Spell | H194: =$S33&" / "&$T33 -> / Equip / Spell | K194: =$S34&" / "&$T34 -> / Quick-Play / Spell
E196: =$X32 -> Destroy 1 face-down monster and remove it from play. If the monster is a Flip Effect Monster, both players must remove from play all monsters from their Decks with the same name as the destroyed monster. | H196: =$X33 -> Activate this card by paying 800 Life Points, then target 1 monster in your Graveyard; Special Summon that target in face-up Attack Position and equip it with this card. When this card is destroyed, destroy the equipped monster. | K196: =$X34 -> Special Summon 4 "Sheep Tokens" (Beast-Type/EARTH/Level 1/ATK 0/DEF 0) in Defense Position. These Tokens cannot be Tributed for a Tribute Summon. You cannot Summon other monsters the turn you activate this card (but you can Set).
F209: ="ATK / "&$V32 -> ATK / | G209: ="DEF / "&$W32 -> DEF / | I209: ="ATK / "&$V33 -> ATK / | J209: ="DEF / "&$W33 -> DEF / | L209: ="ATK / "&$V34 -> ATK / | M209: ="DEF / "&$W34 -> DEF /
E210: =$B35 -> Swords of Revealing Light | H210: =$B36 -> Bottomless Trap Hole | K210: =$B37 -> Call of the Haunted
E212: =IF($R35=0,"",$R35) ->  | F212: =VLOOKUP($U35,$O$4:$P$16,2,FALSE) ->  | H212: =IF($R36=0,"",$R36) ->  | I212: =VLOOKUP($U36,$O$4:$P$16,2,FALSE) ->  | K212: =IF($R37=0,"",$R37) ->  | L212: =VLOOKUP($U37,$O$4:$P$16,2,FALSE) -> 
E213: =$S35&" / "&$T35 -> / Normal / Spell | H213: =$S36&" / "&$T36 -> / Normal / Trap | K213: =$S37&" / "&$T37 -> / Continuous / Trap
E215: =$X35 -> Flip all monsters your opponent controls face-up. This card remains on the field for 3 of your opponent's turns. While this card is face-up on the field, monsters your opponent controls cannot declare an attack. | H215: =$X36 -> When your opponent Summons a monster(s) with 1500 or more ATK: Destroy that monster(s) with 1500 or more ATK, and if you do, banish it instead of sending it to the Graveyard. | K215: =$X37 -> Activate this card by targeting 1 monster in your Graveyard; Special Summon that target in face-up Attack Position. When this card leaves the field, destroy that target. When that target is destroyed, destroy this card.
F228: ="ATK / "&$V35 -> ATK / | G228: ="DEF / "&$W35 -> DEF / | I228: ="ATK / "&$V36 -> ATK / | J228: ="DEF / "&$W36 -> DEF / | L228: ="ATK / "&$V37 -> ATK / | M228: ="DEF / "&$W37 -> DEF /
E229: =$B38 -> Magic Cylinder | H229: =$B39 -> Mirror Force | K229: =$B40 -> Ring of Destruction
E231: =IF($R38=0,"",$R38) ->  | F231: =VLOOKUP($U38,$O$4:$P$16,2,FALSE) ->  | H231: =IF($R39=0,"",$R39) ->  | I231: =VLOOKUP($U39,$O$4:$P$16,2,FALSE) ->  | K231: =IF($R40=0,"",$R40) ->  | L231: =VLOOKUP($U40,$O$4:$P$16,2,FALSE) -> 
E232: =$S38&" / "&$T38 -> / Normal / Trap | H232: =$S39&" / "&$T39 -> / Normal / Trap | K232: =$S40&" / "&$T40 -> / Normal / Trap
E234: =$X38 -> When an opponent's monster declares an attack: Target the attacking monster; negate the attack, and if you do, inflict damage to your opponent equal to its ATK. | H234: =$X39 -> When an opponent's monster declares an attack: Destroy all Attack Position monsters your opponent controls. | K234: =$X40 -> Target 1 face-up monster on the field; destroy that target, and if you do, inflict damage to both players equal to that target's ATK.
F247: ="ATK / "&$V38 -> ATK / | G247: ="DEF / "&$W38 -> DEF / | I247: ="ATK / "&$V39 -> ATK / | J247: ="DEF / "&$W39 -> DEF / | L247: ="ATK / "&$V40 -> ATK / | M247: ="DEF / "&$W40 -> DEF /
E248: =$B41 -> Royal Decree | H248: =$B42 -> --- | K248: =$B43 -> ---
E250: =IF($R41=0,"",$R41) ->  | F250: =VLOOKUP($U41,$O$4:$P$16,2,FALSE) ->  | H250: =IF($R42=0,"",$R42) ->  | I250: =VLOOKUP($U42,$O$4:$P$16,2,FALSE) ->  | K250: =IF($R43=0,"",$R43) ->  | L250: =VLOOKUP($U43,$O$4:$P$16,2,FALSE) -> 
E251: =$S41&" / "&$T41 -> / Continuous / Trap | H251: =$S42&" / "&$T42 -> / | K251: =$S43&" / "&$T43 -> /
E253: =$X41 -> Negate all other Trap Card effects on the field. | H253: =$X42 ->  | K253: =$X43 -> 
F266: ="ATK / "&$V41 -> ATK / | G266: ="DEF / "&$W41 -> DEF / | I266: ="ATK / "&$V42 -> ATK / | J266: ="DEF / "&$W42 -> DEF / | L266: ="ATK / "&$V43 -> ATK / | M266: ="DEF / "&$W43 -> DEF /
E267: =$B44 -> --- | H267: =$B45 -> --- | K267: =$B46 -> ---
E269: =IF($R44=0,"",$R44) ->  | F269: =VLOOKUP($U44,$O$4:$P$16,2,FALSE) ->  | H269: =IF($R45=0,"",$R45) ->  | I269: =VLOOKUP($U45,$O$4:$P$16,2,FALSE) ->  | K269: =IF($R46=0,"",$R46) ->  | L269: =VLOOKUP($U46,$O$4:$P$16,2,FALSE) -> 
E270: =$S44&" / "&$T44 -> / | H270: =$S45&" / "&$T44 -> / | K270: =$S46&" / "&$T46 -> /
E272: =$X44 ->  | H272: =$X45 ->  | K272: =$X46 -> 
F285: ="ATK / "&$V44 -> ATK / | G285: ="DEF / "&$W44 -> DEF / | I285: ="ATK / "&$V45 -> ATK / | J285: ="DEF / "&$W45 -> DEF / | L285: ="ATK / "&$V46 -> ATK / | M285: ="DEF / "&$W46 -> DEF /

Sheet All Cards
A1: Card Name | B1: @ | C1: Card Sub / Type | D1: Archetype | E1: Attribute | F1: Lvl | G1: ATK | H1: DEF | I1: Card Text
A2: 3-Hump Lacooda | B2: M | C2: Effect Monster | D2: Beast | E2: Earth | F2: 3 | G2: 500 | H2: 1500 | I2: If there are 3 face-up 3-Hump Lacooda" cards on your side of the field, Tribute 2 of them to draw 3 cards."
A3: 4-Starred Ladybug of Doom | B3: M | C3: Flip / Effect Monster | D3: Insect | E3: Wind | F3: 3 | G3: 800 | H3: 1200 | I3: FLIP: Destroy all face-up Level 4 monsters on your opponent's side of the field.
A4: 7 Colored Fish | B4: M | C4: Normal Monster | D4: Fish | E4: Water | F4: 4 | G4: 1800 | H4: 800 | I4: A rare rainbow fish that has never been caught by mortal man
A5: 8-Claws Scorpion | B5: M | C5: Effect Monster | D5: Insect | E5: Dark | F5: 2 | G5: 300 | H5: 200 | I5: Once per turn, you can flip this card into face-down Defense Position. When this card attacks an opponent's face-down Defense Position monster, this card's ATK becomes 2400 during damage calculation only.
A6: A Cat of Ill Omen | B6: M | C6: Flip / Effect Monster | D6: Beast | E6: Dark | F6: 2 | G6: 500 | H6: 300 | I6: FLIP: Select 1 Trap Card from your Deck and place it on top of your Deck. If "Necrovalley" is on the field, you can add the selected Trap Card to your hand instead.
A7: A Man with Wdjat | B7: M | C7: Effect Monster | D7: Spellcaster | E7: Dark | F7: 4 | G7: 1600 | H7: 1600 | I7: When you Normal Summon this card, and during each of your Standby Phases, select 1 Set card on your opponent's side of the field. Pick it up and look at it, then return it to its original position.
A8: A/D Changer | B8: M | C8: Effect Monster | D8: Warrior | E8: Light | F8: 1 | G8: 100 | H8: 100 | I8: You can remove from play this card in your Graveyard to select 1 monster on the field. Change its battle position.
A9: A-Assault Core | B9: M | C9: Union / Effect Monster | D9: Machine | E9: Light | F9: 4 | G9: 1900 | H9: 200 | I9: Once per turn, you can either: Target 1 LIGHT Machine-Type monster you control; equip this card to that target, OR: Unequip this card and Special Summon it. A monster equipped with this card is unaffected by your opponent's monster effects (except its own), also if the equipped monster would be destroyed by battle or card effect, destroy this card instead. If this card is sent from the field to the Graveyard: You can add 1 other Union monster from your Graveyard to your hand.
A10: Abaki | B10: M | C10: Effect Monster | D10: Fiend | E10: Fire | F10: 4 | G10: 1700 | H10: 1100 | I10: When this card is destroyed and sent to the Graveyard by battle, both players take 500 damage.
A11: Abare Ushioni | B11: M | C11: Effect Monster | D11: Beast-Warrior | E11: Earth | F11: 4 | G11: 1200 | H11: 1200 | I11: Once per turn, you can toss a coin and call it. If you call it right, inflict 1000 damage to your opponent. If you call it wrong, you take 1000 damage.
A12: ABC-Dragon Buster | B12: M | C12: Fusion / Effect Monster | D12: Machine | E12: Light | F12: 8 | G12: 3000 | H12: 2800 | I12: A-Assault Core + "B-Buster Drake" + "C-Crush Wyvern" Must first be Special Summoned (from your Extra Deck) by banishing the above cards you control and/or from your Graveyard. (You do not use "Polymerization".) Once per turn, during either player's turn: You can discard 1 card, then target 1 card on the field; banish it. During your opponent's turn: You can Tribute this card, then target 3 of your banished LIGHT Machine-Type Union monsters with different names; Special Summon them (this is a Quick Effect).
A13: Absolute Crusader | B13: M | C13: Effect Monster | D13: Warrior | E13: Earth | F13: 4 | G13: 1800 | H13: 1200 | I13: When a Level 5 or higher monster is Special Summoned: Tribute this face-up card on the field; destroy that Level 5 or higher monster.
A14: Absolute King Back Jack | B14: M | C14: Effect Monster | D14: Fiend | E14: Dark | F14: 1 | G14: 0 | H14: 0 | I14: During your opponent's turn: You can banish this card from your Graveyard (this is a Quick Effect); excavate the top card of your Deck, and if it is a Normal Trap Card, Set it to your side of the field. Otherwise, send it to the Graveyard. That Set card can be activated during this turn. If this card is sent to the Graveyard: You can look at 3 cards from the top of your Deck, then place them on the top of the Deck in any order. You can only use each effect of "Absolute King Back Jack" once per turn.
A15: Absorbing Jar | B15: M | C15: Flip / Effect Monster | D15: Rock | E15: Earth | F15: 3 | G15: 600 | H15: 500 | I15: FLIP: Destroy all Set Spell/Trap Cards on the field, then each player draws 1 card for each of the cards they controlled that was destroyed by this effect. You cannot Set any cards this turn.
A16: Absorbing Kid from the Sky | B16: M | C16: Effect Monster | D16: Fairy | E16: Light | F16: 4 | G16: 1300 | H16: 1000 | I16: When this card destroys a monster and sends it to the Graveyard as a result of battle, increase your Life Points by the Level of the destroyed monster x 300 points.
A17: Abyss Actor - Comic Relief | B17: M | C17: Pendulum / Effect Monster | D17: Fiend | E17: Dark | F17: 3 | G17: 1000 | H17: 2000 | I17: You take no battle damage from attacks involving this card. Once per turn, during your Standby Phase: Give control of this card to your opponent. Once per turn, if control of this face-up card changes: Activate this effect; the owner of this card can destroy 1 Set "Abyss Script" Spell in their Spell & Trap Zone. Pendulum Scale: 8 Pendulum Effect: You can target 1 "Abyss Actor" Pendulum Monster you control and 1 monster your opponent controls; switch control of both monsters, then destroy this card. You can only use this effect of "Abyss Actor - Comic Relief" once per turn.
A18: Abyss Actor - Curtain Raiser | B18: M | C18: Pendulum / Effect Monster | D18: Fiend | E18: Dark | F18: 4 | G18: 1100 | H18: 1000 | I18: Gains 1100 ATK if you control no other monsters. Once per turn: You can send 1 "Abyss Script" Spell from your Deck to the GY; add 1 face-up "Abyss Actor" Pendulum Monster from your Extra Deck to your hand. Pendulum Scale: 7 Pendulum Effect: If you control no monsters: You can Special Summon this card from your Pendulum Zone. You can only use this effect of "Abyss Actor - Curtain Raiser" once per Duel.
A19: Abyss Actor - Evil Heel | B19: M | C19: Pendulum / Effect Monster | D19: Fiend | E19: Dark | F19: 8 | G19: 3000 | H19: 2000 | I19: If this card is Normal or Special Summoned: You can target 1 face-up monster your opponent controls; it loses 1000 ATK for each "Abyss Actor" monster you currently control, until the end of this turn. When this card destroys an opponent's monster by battle: You can target 1 "Abyss Script" Spell Card in your Graveyard; Setthat card. Pendulum Scale: 1 Pendulum Effect: Once per turn: You can Tribute 1 "Abyss Actor" monster, then target 1 face-up monster your opponent controls; it loses ATK equal to the original ATK of the Tributed monster, until the end of this turn (even if this card leaves the field).
A20: Abyss Actor - Extras | B20: M | C20: Pendulum / Effect Monster | D20: Fiend | E20: Dark | F20: 1 | G20: 100 | H20: 100 | I20: You can Tribute this card; place 1 "Abyss Actor" Pendulum Monsterfrom your Deck in your Pendulum Zone, also for the rest of this turn, you cannot Special Summon monsters, except "Abyss Actor" monsters, nor activate the Pendulum Effect of "Abyss Actor - Extras". You can only use this effect of "Abyss Actor - Extras" once per turn. Pendulum Scale: 3 Pendulum Effect: If your opponent controls a monster: You can Special Summonthis card from your Pendulum Zone. You can only use this effect of "Abyss Actor - Extras" once per turn.
A21: Abyss Actor - Funky Comedian | B21: M | C21: Pendulum / Effect Monster | D21: Fiend | E21: Dark | F21: 1 | G21: 300 | H21: 200 | I21: If this card is Normal or Special Summoned: You can make this card gain 300 ATK for each "Abyss Actor" monster you currently control, until the end of this turn. You can target 1 other "Abyss Actor" monster you control; it gains ATK equal to this card's current ATK, until the end of this turn. This card cannot attack the turn this effect is activated. You can only use this effect of "Abyss Actor - Funky Comedian" once per turn. Pendulum Scale: 8 Pendulum Effect: Once per turn: You can Tribute 1 "Abyss Actor" monster, then target 1 "Abyss Actor" monster you control; it gains ATK equal to the original ATK of the Tributed monster, until the end of this turn (even if this card leaves the field).
A22: Abyss Actor - Leading Lady | B22: M | C22: Pendulum / Effect Monster | D22: Fiend | E22: Dark | F22: 4 | G22: 1500 | H22: 1000 | I22: Once per turn, when battle damage is inflicted: You can target 1 face-up monster your opponent controls; it loses ATK equal to that battle damage. When this card is destroyed by battle, or if this card in its owner's Monster Zone is destroyed by an opponent's card effect: You can Set 1 "Abyss Script" Spell Card directly from your Deck. Pendulum Scale: 2 Pendulum Effect: Once per turn, when you take battle damage from an opponent's attacking monster: You can activate 1 of these effects; Once per turn, when battle damage is inflicted: You can target 1 face-up monster your opponent controls; it loses ATK equal to that battle damage. When this card is destroyed by battle, or if this card in its owner's Monster Zone is destroyed by an opponent's card effect: Yo
A23: Abyss Actor - Mellow Madonna | B23: M | C23: Pendulum / Effect Monster | D23: Fiend | E23: Dark | F23: 7 | G23: 1800 | H23: 2500 | I23: Gains 100 ATK for each "Abyss Script" Spell in your GY. You can only use each of the following effects of "Abyss Actor - Mellow Madonna" once per turn. When a Pendulum Monster you control is destroyed by battle: You can Special Summon this card from your hand. If an "Abyss Script" Spell Card or effect is activated: You can Special Summon 1 Level 4 or lower "Abyss Actor" Pendulum Monster from your Deck, but return it to the hand during the End Phase. Pendulum Scale: 0 Pendulum Effect: You can pay 1000 LP; add 1 "Abyss Actor" Pendulum Monster from your Deck to your hand, except "Abyss Actor - Mellow Madonna", also you cannot Special Summon monsters for the rest of this turn, except "Abyss Actor" Pendulum Monsters (even if this card leaves the field). You can only use this effect of "Abyss Actor - Mellow Madonna" once per turn.
A24: Abyss Actor - Sassy Rookie | B24: M | C24: Pendulum / Effect Monster | D24: Fiend | E24: Dark | F24: 4 | G24: 1700 | H24: 1000 | I24: The first time this card would be destroyed by battle or card effect each turn, it is not destroyed. If this card is destroyed by battle, or if this card in its owner's Monster Zone is destroyed by an opponent's card effect: You can Special Summon 1 Level 4 or lower "Abyss Actor" monster from your Deck, except "Abyss Actor - Sassy Rookie". If this card in the Pendulum Zone is destroyed: You can target1 Level 4 or lower monster your opponent controls; destroy it. Pendulum Scale: 2 Pendulum Effect: If an "Abyss Actor" monster(s) you control would be destroyed by battle or an opponent's card effect, you can destroy this card instead.
A25: Abyss Actor - Superstar | B25: M | C25: Pendulum / Effect Monster | D25: Fiend | E25: Dark | F25: 7 | G25: 2500 | H25: 1800 | I25: When Normal or Special Summoned, your opponent's Spell/Trap Cards and effects cannot be activated. Once per turn: You can Set 1 "Abyss Script" Spell Card directly from your Deck, but it is sent to the Graveyard during the End Phase. Pendulum Scale: 3 Pendulum Effect: Once per turn: You can Tribute 1 "Abyss Actor" monster, then target 1 "Abyss Script" Spell Card in your Graveyard; add it to your hand.
A26: Abyss Actor - Trendy Understudy | B26: M | C26: Pendulum / Effect Monster | D26: Fiend | E26: Dark | F26: 2 | G26: 700 | H26: 700 | I26: If you have 2 "Abyss Actor" cards in your Pendulum Zones: You can Tribute this card; Special Summon 1 Level 1 or 8 "Abyss Actor" Pendulum Monsterfrom your hand or face-up from your Extra Deck. You can only use this effect of "Abyss Actor - Trendy Understudy" once per turn. Pendulum Scale: 8 Pendulum Effect: When you Pendulum Summon a monster: You can add 1 face-upLevel 1 or 8 "Abyss Actor" Pendulum Monster from your Extra Deck to your hand.
A27: Abyss Actor - Wild Hope | B27: M | C27: Pendulum / Effect Monster | D27: Fiend | E27: Dark | F27: 4 | G27: 1600 | H27: 1200 | I27: Add 1 face-up "Abyss Actor" Pendulum Monster from your Extra Deck to your hand with ATK less than or equal to the damage you took. Pendulum Scale: 2 Pendulum Effect: Once per turn: You can target 1 "Abyss Actor" card in your other Pendulum Zone; its Pendulum Scale becomes 9 until the end of this turn, also you cannot Special Summon monsters for the rest of this turn, except "Abyss Actor" monsters (even if this card leaves the field).
A28: Abyss Dweller | B28: M | C28: Xyz / Effect Monster | D28: Sea Serpent | E28: Water | F28: 4 | G28: 1700 | H28: 1400 | I28: 2 Level 4 monsters While this card has an Xyz Material attached that was originally WATER, all WATER monsters you control gain 500 ATK. Once per turn, during either player's turn: You can detach 1 Xyz Material from this card; any card effects that activate in your opponent's Graveyard cannot be activated this turn.
A29: Abyss Soldier | B29: M | C29: Effect Monster | D29: Aqua | E29: Water | F29: 4 | G29: 1800 | H29: 1300 | I29: Once per turn: You can discard 1 WATER monster to the Graveyard to target 1 card on the field; return it to the hand.
A30: Abyss Warrior | B30: M | C30: Effect Monster | D30: Aqua | E30: Water | F30: 4 | G30: 1800 | H30: 1300 | I30: Once per turn: You can discard 1 WATER monster to the Graveyard, then target 1 monster in either player's Graveyard; return that target to either the top or bottom of the Deck.
A31: Abyssal Kingshark | B31: M | C31: Effect Monster | D31: Fish | E31: Water | F31: 4 | G31: 1700 | H31: 600 | I31: Once per turn, if this card would be destroyed by an effect that does not target it, it is not destroyed.
A32: Accel Synchron | B32: M | C32: Synchro / Tuner Monster | D32: Machine | E32: Dark | F32: 5 | G32: 500 | H32: 2100 | I32: 1 Tuner + 1 or more non-Tuner monsters Once per turn: You can send 1 "Synchron" monster from your Deck to the Graveyard, then activate 1 of these effects: Increase this card's Level by the Level of the sent monster. Reduce this card's Level by the Level of the sent monster. During your opponent's Main Phase, you can: Immediately after this effect resolves, Synchro Summon 1 Synchro Monster, using Materials including this card you control (this is a Quick Effect). You can only Synchro Summon "Accel Synchron(s)" once per turn.
A33: Achacha Archer | B33: M | C33: Effect Monster | D33: Warrior | E33: Fire | F33: 3 | G33: 1200 | H33: 600 | I33: When this card is Normal or Flip Summoned: Inflict 500 damage to your opponent.
A34: Achacha Chanbara | B34: M | C34: Effect Monster | D34: Warrior | E34: Fire | F34: 3 | G34: 1400 | H34: 400 | I34: During either player's turn, when a card or effect is activated that will inflict damage when it resolves: You can Special Summon this card from your hand, and if you do, inflict 400 damage to your opponent.
A35: Acorno | B35: M | C35: Effect Monster | D35: Plant | E35: Earth | F35: 1 | G35: 200 | H35: 400 | I35: During your Main Phase: You can send 1 "Pinecono" from your hand to the Graveyard, and Special Summon this card from the hand.
A36: Acrobat Monkey | B36: M | C36: Normal Monster | D36: Machine | E36: Earth | F36: 3 | G36: 1000 | H36: 1800 | I36: An autonomous monkey type robot which was developed with cutting-edge technology. It moves very acrobatically.
A37: Acrobatic Magician | B37: M | C37: Pendulum / Effect Monster | D37: Spellcaster | E37: Dark | F37: 5 | G37: 800 | H37: 2300 | I37: If the activation of a Spell/Trap Card is negated (except during the Damage Step): You can Special Summon this card from your hand. When this card isdestroyed by battle: You can place this card in your Pendulum Zone. Pendulum Scale: 2 Pendulum Effect: When a monster(s) you control is destroyed by a card effect(except during the Damage Step): You can Special Summon this card from yourPendulum Zone. You can only use this effect of "Acrobatic Magician" once per turn.
A38: Adhesive Explosive | B38: M | C38: Effect Monster | D38: Machine | E38: Wind | F38: 3 | G38: 1000 | H38: 1000 | I38: If your opponent's monster attacks this face-down Defense Position card, this card becomes an Equip Card equipped to the attacking monster, without applying damage calculation. Destroy the equipped monster during the Standby Phase of your opponent's next turn.
A39: Adreus, Keeper of Armageddon | B39: M | C39: Xyz / Effect Monster | D39: Fiend | E39: Dark | F39: 5 | G39: 2600 | H39: 1700 | I39: 2 Level 5 monsters Once per turn: You can detach 1 Xyz Material from this card to target 1 face-up card your opponent controls; destroy it.
A40: Aegaion the Sea Castrum | B40: M | C40: Xyz / Effect Monster | D40: Machine | E40: Water | F40: 8 | G40: ? | H40: 3000 | I40: 2 Level 8 monsters During either player's turn: You can banish 1 random face-down monster from your opponent's Extra Deck, face-up, and if you do, this card's ATK becomes equal to the banished monster's. During either player's turn: You can detach 1 Xyz Material from this card, then target 1 of your opponent's banished Fusion, Synchro, or Xyz Monsters; return it to the Extra Deck, and if you do, destroy 1 monster your opponent controls with the same monster card type (Fusion, Synchro, or Xyz). You can only use each effect of "Aegaion the Sea Castrum" once per turn.
A41: Aether, the Empowering Dragon | B41: M | C41: Effect Monster | D41: Dragon | E41: Light | F41: 6 | G41: 2300 | H41: 1600 | I41: When this card is Pendulum Summoned: You can target 1 card on the field; return it to the hand. You can only use this effect of "Aether, the Empowering Dragon" once per turn.
A42: Aether, the Evil Empowering Dragon | B42: M | C42: Pendulum / Effect Monster | D42: Dragon | E42: Dark | F42: 6 | G42: 2300 | H42: 1600 | I42: When this card is Normal Special Summoned: You can target 1 monster on the field; banish it. Pendulum Scale: 4 Pendulum Effect: Once per turn: You can banish 1 "Empowered Warrior" monster from your Graveyard, then target 1 card on the field; destroy it.
A43: Agave Dragon | B43: M | C43: Link / Effect Monster | D43: Wyrm | E43: Earth | G43: 3000 | H43: LINK-4 | I43: 2+ monsters, except Tokens if this card is Link Summoned: You can apply these effects in sequence, depending on the Types of monsters in the GYs (skip over any that do not apply). You can only use this effect of "Agave Dragon" once per turn. Inflict 100 damage to your opponent for each Dragon. This card gains 200 ATK for each Dinosaur. All monsters your opponent currently controls lose 300 ATK for each Sea Serpent. You gain 400 LP for each Wyrm.
A44: Agido | B44: M | C44: Effect Monster | D44: Fairy | E44: Earth | F44: 4 | G44: 1500 | H44: 1300 | I44: When this card is destroyed and sent to the Graveyard as a result of battle, roll a six-sided die. You can Special Summon 1 Fairy-Type monster from your Graveyard whose Level is equal to the number rolled. (If the result is 6, you can Special Summon a Level 6 or higher monster.)
A45: Ahrima, the Wicked Warden | B45: M | C45: Effect Monster | D45: Fiend | E45: Dark | F45: 4 | G45: 1700 | H45: 0 | I45: You can discard this card; add 1 "Lair of Darkness" from your Deck to your hand. You can Tribute 1 DARK monster; draw 1 card, or, if you Tributed a DARK monster other than this card to activate this effect, you can add 1 DARK monster with 2000 or more DEF from your Deck to your hand, instead. You can only use this effect of "Ahrima, the Wicked Warden" once per turn.
A46: Air Armor Ninja | B46: M | C46: Effect Monster | D46: Warrior | E46: Wind | F46: 4 | G46: 1400 | H46: 1400 | I46: When this card is Summoned: You can target 1 "Ninja" monster you control; reduce its Level by 1.
A47: Airknight Parshath | B47: M | C47: Effect Monster | D47: Fairy | E47: Light | F47: 5 | G47: 1900 | H47: 1400 | I47: If this card attacks a Defense Position monster, inflict piercing battle damage to your opponent. When this card inflicts battle damage to your opponent: Draw 1 card.
A48: Airorca | B48: M | C48: Effect Monster | D48: Sea Serpent | E48: Wind | F48: 3 | G48: 1400 | H48: 300 | I48: Once per turn: You can banish 1 Fish, Sea Serpent, or Aqua-Type monster from your hand to target 1 face-up card your opponent controls; destroy that target, then banish this card until your next Standby Phase.
A49: Aitsu | B49: M | C49: Normal Monster | D49: Fairy | E49: Fire | F49: 5 | G49: 100 | H49: 100 | I49: He seems to be very unreliable, but he might have incredible potential.
A50: Akashic Magician | B50: M | C50: Link / Effect Monster | D50: Spellcaster | E50: Dark | G50: 1700 | H50: LINK-2 | I50: 2 monsters with the same Type, except Tokens You can only Link Summon "Akashic Magician(s)" once per turn. If this card is Link Summoned: Return all monsters this card points to to the hand. Once per turn: You can declare 1 card name; excavate cards from the top of your Deck, equal to the total Link Rating of the Link Monsters co-linked to this card, then if you excavated any copies of the declared card, add them to your hand, also send the remaining cards to the GY.
A51: Akz, the Pumer | B51: M | C51: Effect Monster | D51: Beast-Warrior | E51: Earth | F51: 6 | G51: 1500 | H51: 1000 | I51: This card cannot be Normal Summoned or Set. This card can only be Special Summoned by removing from play 2 Beast-Warrior-Type monsters in your Graveyard. Once per turn, you can discard 1 Beast-Warrior-Type monster from your hand to activate 1 of the following effects: Double this card's ATK until the End Phase. This card can attack your opponent directly this turn.
A52: Alchemic Magician | B52: M | C52: Xyz / Effect Monster | D52: Spellcaster | E52: Dark | F52: 4 | G52: 1500 | H52: 1500 | I52: 3 Level 4 Spellcaster-Type monsters This card gains 200 ATK for each Spell Card in your Graveyard. Once per turn, during your End Phase: You can detach 1 Xyz Material from this card and send 1 card from your hand to the Graveyard; choose 1 Spell Card from your Deck, then Set it in your Spell & Trap Card Zone.
A53: Alchemist of Black Spells | B53: M | C53: Effect Monster | D53: Spellcaster | E53: Wind | F53: 4 | G53: 1200 | H53: 1800 | I53: Once per turn, you can change this face-up Attack Position card you control to face-up Defense Position and place 1 Spell Counter on a face-up card you control that you can place a Spell Counter on.
A54: Alector, Sovereign of Birds | B54: M | C54: Effect Monster | D54: Winged Beast | E54: Wind | F54: 6 | G54: 2400 | H54: 2000 | I54: If your opponent controls 2 or more face-up monsters of the same Attribute, you can Special Summon this card (from your hand). Once per turn: You can target 1 face-up card on the field; its effect(s) on the field are negated during this turn. There can only be 1 face-up "Alector, Sovereign of Birds" on the field.
A55: Aleister the Invoker | B55: M | C55: Effect Monster | D55: Spellcaster | E55: Dark | F55: 4 | G55: 1000 | H55: 1800 | I55: During either player's turn: You can send this card from your hand to the Graveyard, then target 1 Fusion Monster you control; it gains 1000 ATK and DEF until the end of this turn. If this card is Normal Summoned or flipped face-up: You can add 1 "Invocation" from your Deck to your hand.
A56: Aleister the Invoker of Madness | B56: M | C56: Link / Effect Monster | D56: Spellcaster | E56: Dark | G56: 1800 | H56: LINK-2 | I56: 2 monsters with different Types and different Attributes This card's name becomes "Aleister the Invoker" while on the field or in the GY. If a monster is Fusion Summoned while you control this monster (except during the Damage Step): You can discard 1 card, and if you do, add 1 "Invocation" or "The Book of the Law" from your Deck to your hand. If this face-up card you control leaves the field because of an opponent's card effect: You can add 1 "Omega Summon" from your Deck to your hand.
A57: Alexandrite Dragon | B57: M | C57: Normal Monster | D57: Dragon | E57: Light | F57: 4 | G57: 2000 | H57: 100 | I57: Many of the czars' lost jewels can be found in the scales of this priceless dragon. Its creator remains a mystery, along with how they acquired the imperial treasures. But whosoever finds this dragon has hit the jackpot... whether they know it or not.
A58: Alich, Malebranche of the Burning Abyss | B58: M | C58: Effect Monster | D58: Fiend | E58: Dark | F58: 3 | G58: 1200 | H58: 0 | I58: If you control a monster that is not a "Burning Abyss" monster, destroy this card. You can only use 1 of the following effects of "Alich, Malebranche of the Burning Abyss" per turn, and only once that turn. If you control no Spell/Trap Cards: You can Special Summon this card from your hand. If this card is sent to the Graveyard: You can target 1 face-up monster on the field; negate its effects until the end of this turn.
A59: Alien Ammonite | B59: M | C59: Tuner Monster | D59: Reptile | E59: Light | F59: 1 | G59: 500 | H59: 200 | I59: When this card is Normal Summoned, you can Special Summon 1 Level 4 or lower "Alien" monster from your Graveyard. Destroy it during the End Phase.
A60: Alien Dog | B60: M | C60: Effect Monster | D60: Reptile | E60: Light | F60: 3 | G60: 1500 | H60: 1000 | I60: When you Normal Summon an "Alien" monster, you can Special Summon this card from your hand. When you do, place 2 A-Counters on face-up monster(s) your opponent controls.
A61: Alien Grey | B61: M | C61: Flip / Effect Monster | D61: Reptile | E61: Light | F61: 2 | G61: 300 | H61: 800 | I61: FLIP: Place 1 A-Counter on 1 face-up monster on your opponent's side of the field. (If a monster with an A-Counter battles an "Alien" monster, it loses 300 ATK and DEF for each A-Counter during damage calculation only.) After this card has been flipped face-up, when it is destroyed by battle and sent to the Graveyard, draw 1 card.
A62: Alien Hunter | B62: M | C62: Effect Monster | D62: Reptile | E62: Water | F62: 4 | G62: 1600 | H62: 800 | I62: If this card destroys a monster with an A-Counter by battle, it can attack once again in a row.
A63: Alien Hypno | B63: M | C63: Gemini Monster | D63: Reptile | E63: Water | F63: 4 | G63: 1600 | H63: 700 | I63: This card is treated as a Normal Monster while face-up on the field or in the Graveyard. While this card is face-up on the field you can Normal Summon it to have it be treated as an Effect Monster with this effect: During your Main Phase, you can select 1 monster your opponent controls with an A-Counter(s) and take control of it while this card is on the field. During each of your End Phases, remove 1 A-Counter from each controlled monster. If all A-Counters are removed from one of those monsters, destroy it.
A64: Alien Infiltrator | B64: M | C64: Effect Monster | D64: Reptile | E64: Earth | F64: 2 | G64: 800 | H64: 500 | I64: Once per turn, this card can move to an adjacent unoccupied Monster Card Zone. If no Spell, Trap or Monster Card on your opponent's side of the field is in the same column as this card, it can attack your opponent directly.
A65: Alien Kid | B65: M | C65: Effect Monster | D65: Reptile | E65: Light | F65: 4 | G65: 1600 | H65: 700 | I65: Place 1 A-Counter on all monsters Special Summoned to your opponent's side of the field. (If a monster with an A-Counter battles an "Alien" monster, it loses 300 ATK and DEF for each A-Counter during damage calculation only.)
A66: Alien Mars | B66: M | C66: Effect Monster | D66: Reptile | E66: Fire | F66: 3 | G66: 1000 | H66: 1000 | I66: The effects of Effect Monsters with A-Counters are negated, except for "Alien Mars".
A67: Alien Mother | B67: M | C67: Effect Monster | D67: Reptile | E67: Dark | F67: 6 | G67: 2300 | H67: 1500 | I67: If this card destroys a monster with an A-Counter by battle and sends it to the Graveyard, Special Summon the destroyed monster to your side of the field at the end of the Battle Phase. When this card is removed from the field, all monsters that were Special Summoned by this card's effect are destroyed.
A68: Alien Overlord | B68: M | C68: Effect Monster | D68: Reptile | E68: Dark | F68: 6 | G68: 2200 | H68: 1600 | I68: You can remove 2 A-Counters from anywhere on the field to Special Summon this card from your hand. Once per turn, you can place 1 A-Counter on each face-up monster your opponent controls. (If a monster with an A-Counter battles an "Alien" monster, it loses 300 ATK and DEF for each A-Counter during damage calculation only.) You can only control 1 face-up "Alien Overlord".
A69: Alien Psychic | B69: M | C69: Effect Monster | D69: Reptile | E69: Dark | F69: 1 | G69: 200 | H69: 100 | I69: This card is changed to Defense Position when it is Normal Summoned or Flip Summoned. Monsters with A-Counters cannot declare an attack.
A70: Alien Shocktrooper | B70: M | C70: Normal Monster | D70: Reptile | E70: Earth | F70: 4 | G70: 1900 | H70: 800 | I70: The Aliens have used a mysterious biological substance to create a supreme race of soldiers. They do not have the natural powers of the other Aliens, but can make stunning physical attacks.
A71: Alien Skull | B71: M | C71: Effect Monster | D71: Reptile | E71: Wind | F71: 4 | G71: 1600 | H71: 1800 | I71: You can Tribute 1 face-up Level 3 or lower monster on your opponent's side of the field to Special Summon this card to your opponent's side of the field. If you Special Summon this monster this way, place 1 A-Counter on this card, and you cannot Normal Summon or Set the same turn. (If a monster with an A-Counter battles an "Alien" monster, it loses 300 ATK and DEF for each A-Counter during damage calculation only.)
A72: Alien Telepath | B72: M | C72: Effect Monster | D72: Reptile | E72: Fire | F72: 4 | G72: 1600 | H72: 1000 | I72: Once per turn, you can remove 1 A-Counter from an opponent's monster to destroy 1 Spell or Trap Card. (If a monster with an A-Counter battles an "Alien" monster, it loses 300 ATK and DEF for each A-Counter during damage calculation only.)
A73: Alien Warrior | B73: M | C73: Effect Monster | D73: Reptile | E73: Earth | F73: 4 | G73: 1800 | H73: 1000 | I73: When this card is destroyed by battle and sent to the Graveyard, place 2 A-Counters on the monster that destroyed it. (If a monster with an A-Counter battles an "Alien" monster, it loses 300 ATK and DEF for each A-Counter during damage calculation only.)
A74: Alligator's Sword | B74: M | C74: Normal Monster | D74: Beast | E74: Earth | F74: 4 | G74: 1500 | H74: 1200 | I74: 'ey, dis mighty lissard man can swing his sword so fast, dat it's more dan da speed a sound!
A75: Alligator's Sword Dragon | B75: M | C75: Fusion Monster | D75: Dragon | E75: Wind | F75: 5 | G75: 1700 | H75: 1500 | I75: Baby Dragon + "Alligator's Sword"
A76: Al-Lumi'raj | B76: M | C76: Tuner / Effect Monster | D76: Wyrm | E76: Wind | F76: 3 | G76: 1600 | H76: 1000 | I76: All monsters on the field lose ATK and DEF equal to their own Level/Rank x 300.
A77: Allure Queen LV3 | B77: M | C77: Effect Monster | D77: Spellcaster | E77: Dark | F77: 3 | G77: 500 | H77: 500 | I77: Once per turn, during your Main Phase, you can select 1 Level 3 or lower monster on your opponent's side of the field and equip it to this card. (Only 1 card at a time can be equipped due to this effect.) If this card would be destroyed by battle, the equipped monster is destroyed instead. During your Standby Phase, by sending this card to the Graveyard while it's equipped due to its effect, Special Summon 1 "Allure Queen LV5" from your hand or Deck.
A78: Allure Queen LV5 | B78: M | C78: Effect Monster | D78: Spellcaster | E78: Dark | F78: 5 | G78: 1000 | H78: 1000 | I78: Once per turn, during your Main Phase, if this card was Special Summoned by the effect of "Allure Queen LV3", you can select 1 Level 5 or lower monster on your opponent's side of the field and equip it to this card. (Only 1 card at a time can be equipped due to this effect.) If this card would be destroyed by battle, the equipped monster is destroyed instead. During your Standby Phase, by sending this card to the Graveyard while it's equipped due to its effect, Special Summon 1 "Allure Queen LV7" from your hand or Deck.
A79: Allure Queen LV7 | B79: M | C79: Effect Monster | D79: Spellcaster | E79: Dark | F79: 7 | G79: 1500 | H79: 1500 | I79: Once per turn, during your Main Phase, if this card was Special Summoned by the effect of "Allure Queen LV5", you can select 1 monster on your opponent's side of the field and equip it to this card. (Only 1 card at a time can be equipped due to this effect.) If this card would be destroyed by battle, the equipped monster is destroyed instead.
A80: Ally Mind | B80: M | C80: Tuner Monster | D80: Machine | E80: Dark | F80: 5 | G80: 1800 | H80: 1400 | I80: A high-performance unit developed to enhance the Artificial Intelligence program in Allies of Justice. Loaded with elements collected from a meteor from the Worm Nebula, it allows for high tuning performance, but its true capacity is not yet uncovered.
A81: Ally of Justice Catastor | B81: M | C81: Synchro / Effect Monster | D81: Machine | E81: Dark | F81: 5 | G81: 2200 | H81: 1200 | I81: 1 Tuner + 1 or more non-Tuner monsters At the start of the Damage Step, if this card battles a non-DARK monster: Destroy that monster.
A82: Ally of Justice Clausolas | B82: M | C82: Normal Monster | D82: Machine | E82: Dark | F82: 6 | G82: 2300 | H82: 1200 | I82: A mighty monster in Mist Valley, and the ultimate weapon designed from Claiomh Solias. Its surprise attacks from above baffle invaders.
A83: Ally of Justice Core Destroyer | B83: M | C83: Effect Monster | D83: Machine | E83: Dark | F83: 3 | G83: 1200 | H83: 200 | I83: If this card attacks or is attacked by a LIGHT monster, destroy that monster at the start of the Damage Step (without damage calculation).
A84: Ally of Justice Cosmic Gateway | B84: M | C84: Effect Monster | D84: Machine | E84: Dark | F84: 8 | G84: 2400 | H84: 1200 | I84: If your opponent controls 2 or more monsters, including a LIGHT monster, you can Special Summon this card from your hand.
A85: Ally of Justice Cycle Reader | B85: M | C85: Tuner Monster | D85: Machine | E85: Dark | F85: 3 | G85: 1000 | H85: 1000 | I85: During either player's turn, you can discard this card to select and remove from play up to 2 LIGHT monsters from your opponent's Graveyard.
A86: Ally of Justice Cyclone Creator | B86: M | C86: Tuner Monster | D86: Machine | E86: Dark | F86: 3 | G86: 1400 | H86: 1200 | I86: Once per turn, you can discard 1 card from your hand to return Spell/Trap Cards from the field to the hand equal to the number of face-up Tuner monsters on the field.
A87: Ally of Justice Decisive Armor | B87: M | C87: Synchro / Effect Monster | D87: Machine | E87: Dark | F87: 10 | G87: 3300 | H87: 3300 | I87: 1 Tuner + 2 or more non-Tuner monsters. Once per turn, if your opponent controls a face-up LIGHT monster(s), you can activate 1 of these effects: Select 1 Set card your opponent controls and destroy it. Send 1 card from your hand to the Graveyard to destroy all Spell/Trap Cards your opponent controls. Send all cards in your hand to the Graveyard to look at your opponent's hand and send all LIGHT monsters in their hand to the Graveyard. Then, inflict damage to your opponent equal to the total ATK of the opponent's monsters sent to the Graveyard.
A88: Ally of Justice Enemy Catcher | B88: M | C88: Effect Monster | D88: Machine | E88: Dark | F88: 6 | G88: 1800 | H88: 1800 | I88: When this card is Normal Summoned, you can gain control of 1 face-down Defense Position monster your opponent controls until the End Phase.
A89: Ally of Justice Field Marshal | B89: M | C89: Synchro / Effect Monster | D89: Machine | E89: Dark | F89: 9 | G89: 2900 | H89: 2600 | I89: 1 Tuner + 2 or more non-Tuner monsters This card cannot be Special Summoned except by Synchro Summon. When this card destroys a face-down Defense Position monster by battle and sends it to the Graveyard, draw 1 card.
A90: Ally of Justice Garadholg | B90: M | C90: Effect Monster | D90: Machine | E90: Dark | F90: 4 | G90: 1600 | H90: 400 | I90: If this card battles a LIGHT monster, it gains 200 ATK during the Damage Step only.
A91: Ally of Justice Light Gazer | B91: M | C91: Synchro / Effect Monster | D91: Machine | E91: Dark | F91: 8 | G91: 2400 | H91: 1600 | I91: 1 Tuner + 1 or more non-Tuner monsters This card gains 200 ATK for each LIGHT monster in your opponent's Graveyard.
A92: Ally of Justice Nullfier | B92: M | C92: Effect Monster | D92: Machine | E92: Dark | F92: 4 | G92: 1600 | H92: 1200 | I92: The effects of LIGHT monsters that battle this card are negated.
A93: Ally of Justice Omni-Weapon | B93: M | C93: Effect Monster | D93: Machine | E93: Dark | F93: 5 | G93: 2200 | H93: 800 | I93: When this card destroys a LIGHT monster by battle and sends it to the Graveyard, draw 1 card. If that card is a Level 4 or lower DARK monster, you can reveal that card to Special Summon it.
A94: Ally of Justice Quarantine | B94: M | C94: Effect Monster | D94: Machine | E94: Dark | F94: 4 | G94: 1700 | H94: 1200 | I94: Neither player can Special Summon LIGHT monsters.
A95: Ally of Justice Reverse Break | B95: M | C95: Effect Monster | D95: Machine | E95: Dark | F95: 4 | G95: 1200 | H95: 1200 | I95: If a face-up LIGHT monster is on the field, destroy this card. If this card attacks a face-down Defense Position monster, destroy that monster immediately with this card's effect without flipping it face-up or applying damage calculation.
A96: Ally of Justice Rudra | B96: M | C96: Effect Monster | D96: Machine | E96: Dark | F96: 5 | G96: 1900 | H96: 1200 | I96: If this card battles a LIGHT monster, it gains 700 ATK during the Damage Step only.
A97: Ally of Justice Searcher | B97: M | C97: Effect Monster | D97: Machine | E97: Dark | F97: 3 | G97: 1400 | H97: 100 | I97: Once per turn, you can discard 1 card to flip 1 face-down Defense Position monster your opponent controls to face-up Attack Position. Flip Effects are not activated at that time.
A98: Ally of Justice Thousand Arms | B98: M | C98: Effect Monster | D98: Machine | E98: Dark | F98: 4 | G98: 1700 | H98: 0 | I98: This card can attack all face-up LIGHT monsters your opponent controls once each. If this card battles a non-LIGHT monster, destroy this card before damage calculation.
A99: Ally of Justice Thunder Armor | B99: M | C99: Effect Monster | D99: Machine | E99: Dark | F99: 8 | G99: 2700 | H99: 2200 | I99: This card cannot be Special Summoned. While you control this face-up card, during battle between an attacking "Ally of Justice" monster you control and a Defense Position monster whose DEF is lower than the ATK of the attacking monster, inflict the difference as Battle Damage to your opponent.
A100: Ally of Justice Unknown Crusher | B100: M | C100: Effect Monster | D100: Machine | E100: Dark | F100: 3 | G100: 1200 | H100: 800 | I100: When this card battles a LIGHT monster, remove that monster from play after damage calculation.
A101: Ally of Justice Unlimiter | B101: M | C101: Effect Monster | D101: Machine | E101: Dark | F101: 2 | G101: 600 | H101: 200 | I101: You can Tribute this card to double the original ATK of 1 face-up "Ally of Justice" monster you control until the End Phase.
A102: Ally Salvo | B102: M | C102: Effect Monster | D102: Machine | E102: Dark | F102: 2 | G102: 400 | H102: 300 | I102: When this card is destroyed by battle with a LIGHT monster and sent to the Graveyard, select 2 cards on the field and destroy them.
A103: Aloof Lupine | B103: M | C103: Effect Monster | D103: Beast | E103: Dark | F103: 4 | G103: 1700 | H103: 300 | I103: When this card is Normal Summoned: You can banish 1 monster from your hand; banish 1 monster from your Deck with the same Type as that monster. If this card is destroyed by battle, or if this card in its owner's possession is destroyed by an opponent's card effect: You can target 1 of your banished monsters; add it to your hand. You can only use each effect of "Aloof Lupine" once per turn.
A104: Alpacaribou, Mystical Beast of the Forest | B104: M | C104: Effect Monster | D104: Beast | E104: Earth | F104: 7 | G104: 2700 | H104: 2100 | I104: While in Attack Position: Attack Position Winged Beast, Insect. and Plant-Type monsters you control cannot be destroyed by battle. While in Defense Position: Defense Position Winged Beast, Insect, and Plant-Type monsters you control cannot be targeted by, or be destroyed by, card effects.
A105: Alpha The Electromagnet Warrior | B105: M | C105: Effect Monster | D105: Rock | E105: Earth | F105: 3 | G105: 1700 | H105: 1100 | I105: If this card is Normal or Special Summoned: You can add 1 Level 8 "Magna Warrior" monster from your Deck to your hand. You can only use this effect of "Alpha The Electromagnet Warrior" once per turn. During your opponent's turn: You can Tribute this card; Special Summon 1 Level 4 "Magnet Warrior" monster from your Deck (this is a Quick Effect).
A106: Alpha the Magnet Warrior | B106: M | C106: Normal Monster | D106: Rock | E106: Earth | F106: 4 | G106: 1400 | H106: 1700 | I106: Alpha, Beta, and Gamma meld as one to form a powerful monster.
A107: Alsei, the Sylvan High Protector | B107: M | C107: Xyz / Effect Monster | D107: Plant | E107: Light | F107: 8 | G107: 2300 | H107: 3200 | I107: 2 Level 8 monsters Once per turn: You can declare 1 card name; excavate the top card of your Deck, and if it is the declared card, add it to your hand. Otherwise, send it to the Graveyard. If a card is sent from your Deck to the Graveyard by a card effect (except during the Damage Step): You can detach 1 Xyz Material from this card, then target 1 card on the field; place that target on either the top or bottom of the Deck. You can only use this effect of "Alsei, the Sylvan High Protector" once per turn.
A108: Altergeist Hexstia | B108: M | C108: Link / Effect Monster | D108: Spellcaster | E108: Fire | G108: 1500 | H108: LINK-2 | I108: 2 "Altergeist" monsters Gains ATK equal to the original ATK of all "Altergeist" monsters it points to. When a Spell/Trap Card is activated (Quick Effect): You can Tribute 1 "Altergeist" monster this card points to; negate the activation, and if you do, destroy that card. If this card is sent from the field to the GY: You can add 1 "Altegeist" card from your Deck to your hand. You can only use this effect of "Altergeist Hexstia" once per turn.
A109: Altergeist Kidolga | B109: M | C109: Link / Effect Monster | D109: Spellcaster | E109: Dark | G109: 1000 | H109: LINK-2 | I109: 2 "Altergeist" monsters When another "Altergeist" monster inflicts battle damage to your opponent: You can target 1 monster in their GY; Special Summon it to your zone this card points to, but each turn, it cannot attack unless this card has already declared an attack that turn. If this card is destroyed by battle: You can target 1 "Altergeist" card in your GY; add it to your hand.
A110: Altergeist Kunquery | B110: M | C110: Effect Monster | D110: Spellcaster | E110: Earth | F110: 5 | G110: 0 | H110: 2400 | I110: When an opponent's monster declares an attack, if you control an "Altergeist" card: You can Special Summon this card from your hand, and if you do, negate that attack. If this card is Special Summoned: You can target 1 face-up card your opponent controls; negate the effects of that card while it and this monster are face-up on the field.
A111: Altergeist Marionetter | B111: M | C111: Effect Monster | D111: Spellcaster | E111: Light | F111: 4 | G111: 1600 | H111: 1700 | I111: When this card is Normal Summoned: You can Set 1 "Altergeist" Trap directly from your Deck to your Spell & Trap Zone. You can target 1 "Altergeist" card you control and 1 "Altergeist" monster in your GY; send that card on the field to the GY, and if you do, Special Summon that other monster from your GY. You can only use this effect of "Altergeist Marionetter" once per turn.
A112: Altergeist Meluseek | B112: M | C112: Effect Monster | D112: Spellcaster | E112: Water | F112: 1 | G112: 500 | H112: 300 | I112: This card can attack directly. When this card inflicts battle damage to your opponent: You can target 1 card your opponent controls; send it to the GY. If this card is sent from the field to the GY: You can add 1 "Altergeist" monster from your Deck to your hand, except "Altergeist Meluseek". You can only use this effect of "Altergeist Meluseek" once per turn.
A113: Altergeist Multifaker | B113: M | C113: Effect Monster | D113: Spellcaster | E113: Dark | F113: 3 | G113: 1200 | H113: 800 | I113: If you activate a Trap Card (except during the Damage Step): You can Special Summon this card from your hand. If this card is Special Summoned: You can Special Summon 1 "Altergeist" monster from your Deck in Defense Position, except "Altergeist Multifaker". You cannot Special Summon monsters the turn you activate this effect, except "Altergeist" monsters. You can only use each effect of "Altergeist Multifaker" once per turn.
A114: Altergeist Pixiel | B114: M | C114: Effect Monster | D114: Spellcaster | E114: Wind | F114: 1 | G114: 100 | H114: 100 | I114: You can Tribute this card; excavate the top 3 cards of your Deck, add 1 excavated "Altergeist" card to your hand, also send the rest to the GY. You can only use this effect of "Altergeist Pixiel" once per turn.
A115: Altergeist Primebanshee | B115: M | C115: Link / Effect Monster | D115: Spellcaster | E115: Dark | G115: 2100 | H115: LINK-3 | I115: 2+ "Altergeist" monsters During the Main Phase (Quick Effect): You can Tribute 1 other "Altergeist" monster; Special Summon 1 "Altergeist" monster from your Deck to your zone this card points to. If this card is sent from the field to the GY: You can target 1 "Altergeist" card in your GY; add it to your hand. You can only use each effect of "Altergeist Primebanshee" once per turn.
A116: Altergeist Silquitous | B116: M | C116: Effect Monster | D116: Spellcaster | E116: Wind | F116: 2 | G116: 800 | H116: 1500 | I116: (Quick Effect): You can return 1 other "Altergeist" card you control to the hand, then target 1 card your opponent controls; return it to the hand. If this card is sent from the field to the GY: You can target 1 "Altergeist" Trap in your GY; add that card to your hand. You can only use each effect of "Altergeist Silquitous" once per turn.
A117: Altitude Knight | B117: M | C117: Effect Monster | D117: Warrior | E117: Wind | F117: 4 | G117: 1400 | H117: 1200 | I117: Once per turn, when another monster on the field returns to the hand or Main Deck: Send 1 WIND monster from your Deck to the Graveyard.
A118: Alviss of the Nordic Alfar | B118: M | C118: Effect Monster | D118: Spellcaster | E118: Dark | F118: 4 | G118: 1500 | H118: 1000 | I118: If only this card is banished by the effect of a "Nordic" Link Monster: You can send to the GY 1 "Nordic" monster you control and 2 "Nordic" monsters from your Deck, whose total Levels equal 10, then Special Summon 1 "Aesir" monster from your Extra Deck. If an "Aesir" monster(s) in your possession is sent to your GY by your opponent's card: You can banish this card from your GY; Special Summon 1 "Aesir" monster from your Extra Deck with a different name from the cards in your GY. You can only use this effect of "Alviss of the Nordic Alfar" once per Duel.
A119: Amano-Iwato | B119: M | C119: Spirit / Effect Monster | D119: Rock | E119: Earth | F119: 4 | G119: 1900 | H119: 1200 | I119: Cannot be Special Summoned. Monsters cannot activate their effects, except Spirit monsters. Once per turn, during the End Phase, if this card was Normal Summoned or flipped face-up this turn: Return this card to the hand.
A120: Amarylease | B120: M | C120: Effect Monster | D120: Plant | E120: Earth | F120: 1 | G120: 100 | H120: 200 | I120: During your Main Phase: You can banish this card from your Graveyard; you can Normal Summon 1 monster this turn for 1 less Tribute. You can only use the effect of "Amarylease" once per turn.
A121: Amaterasu | B121: M | C121: Spirit Monster | D121: Fairy | E121: Light | F121: 9 | G121: 3000 | H121: 3000 | I121: Cannot be Normal or Special Summoned. During either player's turn, when your opponent activates a card or effect that targets this face-down monster: You can change this card to face-up Defense Position; draw 1 card. If this card is flipped face-up: Banish all other cards on the field. Once per turn, during the End Phase, if this card was flipped face-up this turn: Return it to the hand.
A122: Amazon of the Seas | B122: M | C122: Normal Monster | D122: Fish | E122: Water | F122: 4 | G122: 1300 | H122: 1400 | I122: A mermaid who serves as herald of the Ocean Lord. She protects the sacred domain of Atlantis.
A123: Amazoness Archer (F.K.A. Amazon Archer) | B123: M | C123: Effect Monster | D123: Warrior | E123: Earth | F123: 4 | G123: 1400 | H123: 1000 | I123: You can Tribute 2 monsters to inflict 1200 damage to your opponent.
A124: Amazoness Baby Tiger | B124: M | C124: Effect Monster | D124: Beast | E124: Earth | F124: 2 | G124: 500 | H124: 500 | I124: This card's name becomes "Amazoness Tiger" while on the field or in the GY. If an "Amazoness" monster is Normal or Special Summoned to your field while this card is in your hand or GY: You can Special Summon this card. You can only use this effect of "Amazoness Baby Tiger" once per turn. Gains 100 ATK for each "Amazoness" card in your GY.
A125: Amazoness Blowpiper | B125: M | C125: Effect Monster | D125: Warrior | E125: Earth | F125: 3 | G125: 800 | H125: 1500 | I125: Select 1 face-up monster your opponent controls during each of your Standby Phases. It loses 500 ATK until the end of this turn.
A126: Amazoness Chain Master | B126: M | C126: Effect Monster | D126: Warrior | E126: Earth | F126: 4 | G126: 1500 | H126: 1300 | I126: When this monster is destroyed by battle and sent to the Graveyard, you can pay 1500 Life Points to look at your opponent's hand, select 1 Monster Card in it, and add that card to your hand.
A127: Amazoness Empress | B127: M | C127: Fusion / Effect Monster | D127: Warrior | E127: Earth | F127: 8 | G127: 2800 | H127: 2400 | I127: Amazoness Queen + 1 "Amazoness" monster Other "Amazoness" cards you control cannot be destroyed by battle or card effects. If your "Amazoness" monster attacks a Defense Position monster, inflict piercing battle damage to your opponent. If this face-up Fusion Summoned card is destroyed by battle, or leaves the field because of an opponent's card effect while its owner controls it: You can Special Summon 1 "Amazoness Queen" from your hand, Deck, or GY.
A128: Amazoness Fighter | B128: M | C128: Effect Monster | D128: Warrior | E128: Earth | F128: 4 | G128: 1500 | H128: 1300 | I128: You take no battle damage from attacks involving this card.
A129: Amazoness Paladin | B129: M | C129: Effect Monster | D129: Warrior | E129: Earth | F129: 4 | G129: 1700 | H129: 300 | I129: This card gains 100 ATK for each "Amazoness" monster you control.
A130: Amazoness Pet Liger | B130: M | C130: Fusion / Effect Monster | D130: Beast | E130: Earth | F130: 7 | G130: 2500 | H130: 2400 | I130: Amazoness Tiger + 1 "Amazoness" monster Once per battle, if this card attacks, during damage calculation: You can make this card gain 500 ATK during that damage calculation only. If your "Amazoness" monster attacked an opponent's monster, after damage calculation: You can target 1 face-up monster your opponent controls; it loses 800 ATK. Monsters your opponent controls cannot attack "Amazoness" monsters you control, except this one.
A131: Amazoness Princess | B131: M | C131: Effect Monster | D131: Warrior | E131: Earth | F131: 3 | G131: 1200 | H131: 900 | I131: This card's name becomes "Amazoness Queen" while on the field or in the GY. If this card is Normal or Special Summoned: You can add 1 "Amazoness" Spell/Trap from your Deck to your hand. You can only use this effect of "Amazoness Princess" once per turn. When this card declares an attack: You can send 1 other card from your hand or field to the GY; Special Summon 1 "Amazoness" monster from your Deck in Defense Position, except "Amazoness Princess".
A132: Amazoness Queen | B132: M | C132: Effect Monster | D132: Warrior | E132: Earth | F132: 6 | G132: 2400 | H132: 1800 | I132: Amazoness monsters you control cannot be destroyed by battle.
A133: Amazoness Sage | B133: M | C133: Effect Monster | D133: Warrior | E133: Earth | F133: 4 | G133: 1400 | H133: 700 | I133: If this card attacks, select 1 Spell or Trap Card your opponent controls and destroy it at the end of the Damage Step.
A134: Amazoness Scouts | B134: M | C134: Effect Monster | D134: Warrior | E134: Earth | F134: 2 | G134: 500 | H134: 1100 | I134: During either player's turn: You can Tribute this card; this turn, face-up "Amazoness" monsters you currently control cannot be targeted by monster effects, and cannot be destroyed by card effects.
A135: Amazoness Spy | B135: M | C135: Effect Monster | D135: Warrior | E135: Earth | F135: 3 | G135: 800 | H135: 1200 | I135: You can reveal 1 other "Amazoness" monster in your hand; Special Summon this card from your hand. You can only use this effect of "Amazoness Spy" once per turn. When this card is destroyed by battle and sent to the GY: You can target 1 "Amazoness" monster in your GY, except "Amazoness Spy"; return it to the hand, or shuffle it into the Deck.
A136: Amazoness Swords Woman | B136: M | C136: Effect Monster | D136: Warrior | E136: Earth | F136: 4 | G136: 1500 | H136: 1600 | I136: Your opponent takes all Battle Damage that you would have taken from a battle involving this card.
A137: Amazoness Tiger | B137: M | C137: Effect Monster | D137: Beast | E137: Earth | F137: 4 | G137: 1100 | H137: 1500 | I137: You can only control 1 "Amazoness Tiger". This card gains 400 ATK for each "Amazoness" monster you control. Your opponent cannot attack any face-up "Amazoness" monsters, except this one.
A138: Amazoness Trainee | B138: M | C138: Effect Monster | D138: Warrior | E138: Earth | F138: 4 | G138: 1500 | H138: 1300 | I138: Monsters destroyed by battle with this card are returned to the bottom of the owner's Deck instead of going to the Graveyard. If this card destroys an opponent's monster by battle, this card gains 200 ATK.
A139: Ambitious Gofer | B139: M | C139: Effect Monster | D139: Fiend | E139: Dark | F139: 6 | G139: 2400 | H139: 100 | I139: Once per turn, you select up to 2 monsters your opponent controls. Your opponent can reveal 1 monster in their hand to negate this card's effect. If they do not, destroy the selected monsters.
A140: Ambulance Rescueroid | B140: M | C140: Fusion / Effect Monster | D140: Machine | E140: Fire | F140: 6 | G140: 2300 | H140: 1800 | I140: Rescueroid + "Ambulanceroid" This monster cannot be Special Summoned except by Fusion Summon. Once per turn, when a monster on your side of the field is destroyed by battle and sent to the Graveyard, you can Special Summon that monster in Defense Position.
A141: Ambulanceroid | B141: M | C141: Effect Monster | D141: Machine | E141: Earth | F141: 3 | G141: 300 | H141: 1200 | I141: When a "roid" monster is added from your Graveyard to your hand, you can Special Summon that monster.
A142: Ameba | B142: M | C142: Effect Monster | D142: Aqua | E142: Water | F142: 1 | G142: 300 | H142: 350 | I142: When the control of this face-up card on the field shifts to your opponent, inflict 2000 points of damage to your opponent's Life Points. This effect can only be used once as long as this card remains face-up on the field.
A143: Amores of Prophecy | B143: M | C143: Effect Monster | D143: Spellcaster | E143: Earth | F143: 3 | G143: 600 | H143: 2000 | I143: Once per turn: You can reveal 1 "Spellbook" Spell Card in your hand; Special Summon 1 Level 4 or lower Spellcaster-Type monster from your hand.
A144: Amorphactor Pain, the Imagination Dracoverlord | B144: M | C144: Ritual / Effect Monster | D144: Dragon | E144: Earth | F144: 8 | G144: 2950 | H144: 2500 | I144: You can Ritual Summon this card with "Amorphous Persona". If this card is Ritual Summoned: Your opponent skips their next Main Phase 1. Negate the effects of face-up Fusion, Synchro, and Xyz Monsters while they are on the field. If this card is sent from the field to the Graveyard: You can add 1 "Dracoverlord" monster from yourDeck to your hand, except "Amorphactor Pain, the Imagination Dracoverlord".
A145: Amorphage Envy | B145: M | C145: Pendulum / Effect Monster | D145: Dragon | E145: Earth | F145: 4 | G145: 0 | H145: 2050 | I145: If this card is Pendulum Summoned or flipped face-up, neither player can Special Summon monsters from the Extra Deck while this card is face-up on the field, except "Amorphage" monsters. Pendulum Scale: 5 Pendulum Effect: While you control an "Amorphage" monster, neither player can activate cards or effects as Chain Link 2 or higher. Once per turn, during your Standby Phase, Tribute 1 monster or destroy this card.
A146: Amorphage Gluttony | B146: M | C146: Pendulum / Effect Monster | D146: Dragon | E146: Earth | F146: 2 | G146: 0 | H146: 1850 | I146: If this card is Pendulum Summoned or flipped face-up, neither player can Special Summon monsters from the Extra Deck while this card is face-up on the field, except "Amorphage" monsters. Pendulum Scale: 5 Pendulum Effect: While you control an "Amorphage" monster, monsters cannot activate their effects, except "Amorphage" monsters. Once per turn, during yourStandby Phase, Tribute 1 monster or destroy this card.
A147: Amorphage Goliath | B147: M | C147: Pendulum / Effect Monster | D147: Dragon | E147: Earth | F147: 8 | G147: 2750 | H147: 0 | I147: Neither player can Special Summon monsters from the Extra Deck, except "Amorphage" monsters. Pendulum Scale: 5 Pendulum Effect: While you control an "Amorphage" monster, any card sent to theGraveyard is banished instead, except "Amorphage" cards. Once per turn, during your Standby Phase, Tribute 1 monster or destroy this card.
A148: Amorphage Greed | B148: M | C148: Pendulum / Effect Monster | D148: Dragon | E148: Earth | F148: 4 | G148: 0 | H148: 1950 | I148: If this card is Pendulum Summoned or flipped face-up, neither player can Special Summon monsters from the Extra Deck while this card is face-up on the field, except "Amorphage" monsters. Pendulum Scale: 3 Pendulum Effect: While you control an "Amorphage" monster, neither player can activate Trap Cards or their effects, except for "Amorphage" cards. Once per turn, during your Standby Phase, Tribute 1 monster or destroy this card.
A149: Amorphage Lechery | B149: M | C149: Pendulum / Effect Monster | D149: Dragon | E149: Earth | F149: 2 | G149: 1350 | H149: 0 | I149: If this card is Pendulum Summoned or flipped face-up, neither player can Special Summon monsters from the Extra Deck while this card is face-up on the field, except "Amorphage" monsters. Pendulum Scale: 5 Pendulum Effect: While you control an "Amorphage" monster, neither player can activate Spell Cards or their effects, except for "Amorphage" cards. Once per turn, during your Standby Phase, Tribute 1 monster or destroy this card.
A150: Amorphage Pride | B150: M | C150: Pendulum / Effect Monster | D150: Dragon | E150: Earth | F150: 4 | G150: 1750 | H150: 0 | I150: If this card is Pendulum Summoned or flipped face-up, neither player can Special Summon monsters from the Extra Deck while this card is face-up on the field, except "Amorphage" monsters. Pendulum Scale: 3 Pendulum Effect: While you control an "Amorphage" monster, neither player takes any effect damage. Once per turn, during your Standby Phase, Tribute 1 monster or destroy this card.
A151: Amorphage Sloth | B151: M | C151: Pendulum / Effect Monster | D151: Dragon | E151: Earth | F151: 3 | G151: 2250 | H151: 0 | I151: Neither player can Special Summon monsters from the Extra Deck, except "Amorphage" monsters. Pendulum Scale: 3 Pendulum Effect: While you control an "Amorphage" monster, neither player canadd cards from their Deck to their hand except by drawing them. Once per turn, during your Standby Phase, Tribute 1 monster or destroy this card.
A152: Amorphage Wrath | B152: M | C152: Pendulum / Effect Monster | D152: Dragon | E152: Earth | F152: 4 | G152: 1650 | H152: 0 | I152: If this card is Pendulum Summoned or flipped face-up, neither player can Special Summon monsters from the Extra Deck while this card is face-up on the field, except "Amorphage" monsters. Pendulum Scale: 3 Pendulum Effect: While you control an "Amorphage" monster, neither player canTribute monsters, except "Amorphage" monsters. Once per turn, during your Standby Phase, Tribute 1 monster or destroy this card.
A153: Amphibian Beast | B153: M | C153: Normal Monster | D153: Fish | E153: Water | F153: 6 | G153: 2400 | H153: 2000 | I153: On land or in the sea, the speed of this monster is unmatchable.
A154: Amphibious Bugroth | B154: M | C154: Fusion Monster | D154: Aqua | E154: Water | F154: 5 | G154: 1850 | H154: 1300 | I154: Ground Attacker Bugroth + "Sentinel of the Sea"
A155: Amphibious Bugroth MK-3 | B155: M | C155: Effect Monster | D155: Machine | E155: Water | F155: 4 | G155: 1500 | H155: 1300 | I155: While "Umi" is face-up on the field, this card can attack your opponent's Life Points directly.
A156: Amulet Dragon | B156: M | C156: Fusion / Effect Monster | D156: Dragon | E156: Dark | F156: 8 | G156: 2900 | H156: 2500 | I156: Dark Magician + 1 Dragon-Type monster. Must be Fusion Summoned with the above Fusion Material Monsters or with "The Eye of Timaeus", and cannot be Special Summoned by other ways. If this card is Special Summoned: Target any number of Spell Cards in any Graveyard(s) (min. 1); banish those targets, and if you do, this card gains 100 ATK for each card banished by this effect. If this card is destroyed: You can target 1 Spellcaster-Type monster in your Graveyard; Special Summon that target.
A157: An Owl of Luck | B157: M | C157: Flip / Effect Monster | D157: Winged Beast | E157: Wind | F157: 2 | G157: 300 | H157: 500 | I157: FLIP: Select 1 Field Spell Card from your Deck and place it on top of your Deck. If "Necrovalley" is on the field, you can add the selected Field Spell Card to your hand instead.
A158: Anarchist Monk Ranshin | B158: M | C158: Effect Monster | D158: Spellcaster | E158: Earth | F158: 4 | G158: 1800 | H158: 100 | I158: When this card is sent from the field to the Graveyard by your opponent's card (including by battle, card effect, or by being destroyed), select 1 monster in your opponent's Graveyard and remove it from play.
A159: Ancient Brain | B159: M | C159: Normal Monster | D159: Fiend | E159: Dark | F159: 3 | G159: 1000 | H159: 700 | I159: A fallen fairy that is powerful in the dark.
A160: Ancient Crimson Ape | B160: M | C160: Effect Monster | D160: Beast | E160: Light | F160: 7 | G160: 2600 | H160: 1800 | I160: When a Monster(s) you control is destroyed and sent to the Graveyard, gain 1000 Life Points.
A161: Ancient Dragon | B161: M | C161: Effect Monster | D161: Dragon | E161: Light | F161: 4 | G161: 1400 | H161: 1300 | I161: When this card inflicts Battle Damage to your opponent by a direct attack: You can increase this card's Level by 1 and ATK by 500.
A162: Ancient Elf | B162: M | C162: Normal Monster | D162: Spellcaster | E162: Light | F162: 4 | G162: 1450 | H162: 1200 | I162: This elf is rumored to have lived for thousands of years. He leads an army of spirits against his enemies.
A163: Ancient Fairy Dragon | B163: M | C163: Synchro / Effect Monster | D163: Dragon | E163: Light | F163: 7 | G163: 2100 | H163: 3000 | I163: 1 Tuner + 1 or more non-Tuner Monsters Once per turn, you can Special Summon 1 Level 4 or lower monster from your hand. You cannot conduct your Battle Phase the turn you activate this effect. Once per turn, you can destroy a Field Spell Card. If you do, gain 1000 Life Points, and you can add 1 Field Spell Card from your Deck to your hand.
A164: Ancient Flamvell Deity | B164: M | C164: Synchro / Effect Monster | D164: Pyro | E164: Fire | F164: 7 | G164: 2500 | H164: 200 | I164: 1 FIRE Tuner + 1 or more non-Tuner Pyro-Type monsters When this card is Synchro Summoned, select and remove from play cards from your opponent's Graveyard, up to the number of cards in their hand. This card gains 200 ATK for each card removed from play this way.
A165: Ancient Gear | B165: M | C165: Effect Monster | D165: Machine | E165: Earth | F165: 2 | G165: 100 | H165: 800 | I165: While an "Ancient Gear" is face-up on your side of the field, you can Special Summon this card from your hand in Attack Position.
A166: Ancient Gear Beast | B166: M | C166: Effect Monster | D166: Machine | E166: Earth | F166: 6 | G166: 2000 | H166: 2000 | I166: This card cannot be Special Summoned. The effects of your opponent's Effect Monster that this monster destroys as a result of battle are negated. If this card attacks, your opponent cannot activate any Spell or Trap Cards until the end of the Damage Step.
A167: Ancient Gear Box | B167: M | C167: Effect Monster | D167: Machine | E167: Earth | F167: 4 | G167: 500 | H167: 2000 | I167: If this card is added from the Deck or Graveyard to your hand, except by drawing it: You can add 1 EARTH Machine-Type monster with 500ATK and/or DEF from your Deck to your hand, except "Ancient Gear Box". You can only use this effect of "Ancient Gear Box" once per turn.
A168: Ancient Gear Cannon | B168: M | C168: Effect Monster | D168: Machine | E168: Earth | F168: 2 | G168: 500 | H168: 500 | I168: You can Tribute this card to inflict 500 damage to your opponent, and then neither player can activate Trap Cards during the Battle Phase of this turn.
A169: Ancient Gear Engineer | B169: M | C169: Effect Monster | D169: Machine | E169: Earth | F169: 5 | G169: 1500 | H169: 1500 | I169: Negate the effect of any Trap Card that targets this card, and destroy that Trap Card. If this card attacks, your opponent cannot activate any Spell or Trap Cards until the end of the Damage Step. When this card attacks, destroy 1 Spell or Trap Card on your opponent's side of the field at the end of the Damage Step.
A170: Ancient Gear Frame | B170: M | C170: Effect Monster | D170: Machine | E170: Earth | F170: 4 | G170: 1600 | H170: 500 | I170: You can discard 1 card; add 1 "Ancient Gear Golem", or 1 Spell/Trap that specifically lists the card "Ancient Gear Golem" in its text, from your Deck to your hand. You can only use this effect of "Ancient Gear Frame" once per turn. If this card attacks, your opponent cannot activate Spell/Trap Cards until the end of the Damage Step. If this face-up card in its owner's control leaves the field because of an opponent's card effect: You can Special Summon up to 3 "Ancient Gear Golem" and/or "Ancient Gear Golem - Ultimate Pound" from your hand, ignoring their Summoning conditions.
A171: Ancient Gear Gadget | B171: M | C171: Effect Monster | D171: Machine | E171: Earth | F171: 4 | G171: 500 | H171: 2000 | I171: If this card is Normal or Special Summoned: You can declare 1 card type (Monster, Spell, or Trap); this turn, if a monster you control attacks, your opponent's Spell Cards, Trap Cards, or monster effects (whichever was declared) cannot be activated until the end of the Damage Step. Once per turn: You can declare 1 "Gadget" monster's card name; until the End Phase, this card's name becomes that name.
A172: Ancient Gear Gadjiltron Chimera | B172: M | C172: Effect Monster | D172: Machine | E172: Earth | F172: 6 | G172: 2300 | H172: 1300 | I172: If you Tribute Summon this card by Tributing 1 of the following monsters, this card gets the appropriate effect: Green Gadget: This card gains 300 ATK. Red Gadget: If this card successfully attacks your opponent directly inflict 500 damage to your opponent. Yellow Gadget: If this card destroys your opponent's monster by battle, inflict 700 damage to your opponent.
A173: Ancient Gear Gadjiltron Dragon | B173: M | C173: Effect Monster | D173: Machine | E173: Earth | F173: 8 | G173: 3000 | H173: 2000 | I173: If this card attacks, your opponent cannot activate any Spell/Trap Cards until the end of the Damage Step. This card gets extra effects if you Tribute Summon it by Tributing Green Gadget: During battle between this attacking card and a Defense Position monster whose DEF is lower than the ATK of this card, inflict the difference as Battle Damage to your opponent. Red Gadget: When this card inflicts Battle Damage to your opponent, inflict 400 damage to your opponent. Yellow Gadget: If this card destroys your opponent's monster by battle, inflict 600 damage to your opponent.
A174: Ancient Gear Golem | B174: M | C174: Effect Monster | D174: Machine | E174: Earth | F174: 8 | G174: 3000 | H174: 3000 | I174: Cannot be Special Summoned. If this card attacks a Defense Position monster, inflict piercing Battle Damage to your opponent. If this card attacks, your opponent cannot activate any Spell/Trap Cards until the end of the Damage Step.
A175: Ancient Gear Golem - Ultimate Pound | B175: M | C175: Effect Monster | D175: Machine | E175: Earth | F175: 8 | G175: 3000 | H175: 3000 | I175: Cannot be Special Summoned. If this card attacks a Defense Position monster, inflict piercing battle damage. Up to twice per turn, when this attacking card destroys a monster by battle: You can discard 1 Machine monster; this card can attack again in a row. If this card on the field is destroyed by battle or card effect: You can add 1 "Polymerization" from your Deck to your hand, and if you do, add 1 other "Ancient Gear" monster from your GY to your hand.
A176: Ancient Gear Howitzer | B176: M | C176: Fusion / Effect Monster | D176: Machine | E176: Earth | F176: 8 | G176: 1000 | H176: 1800 | I176: 2 "Ancient Gear" monsters Unaffected by other cards' effects. During your Main Phase: You can inflict 1000 damage to your opponent. You can only use this effect of "Ancient Gear Howitzer" once per turn. If this card is destroyed by battle and sent to the Graveyard: You can Special Summon 1 "Ancient Gear" monster from your Deck, ignoring its Summoning conditions.
A177: Ancient Gear Hunting Hound | B177: M | C177: Effect Monster | D177: Machine | E177: Earth | F177: 3 | G177: 1000 | H177: 1000 | I177: If this card is Normal Summoned: Inflict 600 damage to your opponent. If this card attacks, your opponent cannot activate Spell/Trap Cards until the end of the Damage Step. Once per turn: You can Fusion Summon 1 "Ancient Gear" Fusion Monster from your Extra Deck, using monsters from your hand or field as Fusion Materials.
A178: Ancient Gear Hydra | B178: M | C178: Effect Monster | D178: Machine | E178: Earth | F178: 7 | G178: 2700 | H178: 1700 | I178: At the end of the Damage Step, when this card that was Tribute Summoned by Tributing an "Ancient Gear" monster battles an opponent's monster, but the opponent's monster was not destroyed by the battle: You can banish that opponent's monster. If this card was Tribute Summoned by Tributing a "Gadget" monster, it can attack all monsters your opponent controls, once each. If an "Ancient Gear" monster you control attacks, your opponent's Spell/Trap Cards and monster effects cannot be activated until the end of the Damage Step.
A179: Ancient Gear Knight | B179: M | C179: Gemini Monster | D179: Machine | E179: Earth | F179: 4 | G179: 1800 | H179: 500 | I179: This card is treated as a Normal Monster while face-up on the field or in the Graveyard. While this card is face-up on the field, you can Normal Summon it to have it become an Effect Monster with this effect. If this card attacks, your opponent cannot activate Spell/Trap Cards until the end of the Damage Step.
A180: Ancient Gear Megaton Golem | B180: M | C180: Fusion / Effect Monster | D180: Machine | E180: Earth | F180: 9 | G180: 3300 | H180: 3300 | I180: 3 "Ancient Gear" monsters If this card attacks, your opponent cannot activate Spell/Trap Cards until the end of the Damage Step. If this card was Fusion Summoned using 2 or more "Ancient Gear Golem" and/or "Ancient Gear Golem - Ultimate Pound" as material, it can attack up to that many times during each Battle Phase. If this face-up Fusion Summoned card in its owner's control leaves the field because of an opponent's card effect: You can Special Summon 1 "Ultimate Ancient Gear Golem" from your Extra Deck, ignoring its Summoning conditions.
A181: Ancient Gear Reactor Dragon | B181: M | C181: Effect Monster | D181: Machine | E181: Earth | F181: 9 | G181: 3000 | H181: 3000 | I181: If this card that was Tribute Summoned by Tributing an "Ancient Gear" monster attacks a Defense Position monster, inflict piercing battle damage to your opponent. If this card was Tribute Summoned by Tributing a "Gadget" monster, it can make a second attack during each Battle Phase. If this card attacks, your opponent's Spell/Trap Cards and monster effects cannot be activated until the end of the Damage Step. At the end of the Damage Step, if this card attacked: You can destroy 1 Spell/Trap Card on the field.
A182: Ancient Gear Soldier | B182: M | C182: Effect Monster | D182: Machine | E182: Earth | F182: 4 | G182: 1300 | H182: 1300 | I182: If this card attacks, your opponent cannot activate any Spell or Trap Cards until the end of the Damage Step.
A183: Ancient Gear Token | B183: M | C183: Token | D183: Machine | E183: Earth | F183: 1 | G183: 0 | H183: 0 | I183: This card can be used as an "Ancient Gear Token" *If used for another Token, apply that Token's Type/Attribute/Level/ATK/DEF
A184: Ancient Gear Wyvern | B184: M | C184: Effect Monster | D184: Machine | E184: Earth | F184: 4 | G184: 1700 | H184: 1200 | I184: If this card is Normal or Special Summoned: You can add 1 "Ancient Gear" card from your Deck to your hand, except "Ancient Gear Wyvern", also you cannot Set cards for the rest of this turn. You can only use this effect of "Ancient Gear Wyvern" once per turn. If this card attacks, your opponent's monsters cannot activate their effects until the end of the Damage Step.
A185: Ancient Lamp | B185: M | C185: Effect Monster | D185: Spellcaster | E185: Wind | F185: 3 | G185: 900 | H185: 1400 | I185: During your Main Phase: You can Special Summon "La Jinn the Mystical Genie of the Lamp" from your hand. This card must be face-up on the field to activate and resolve this effect. Before damage calculation, if this card is being attacked by an opponent's monster, and was face-down at the start of the Damage Step: You can target 1 monster your opponent controls, except the attacking monster; the attacking monster attacks it instead, and you proceed to damage calculation.
A186: Ancient Lizard Warrior | B186: M | C186: Normal Monster | D186: Reptile | E186: Earth | F186: 4 | G186: 1400 | H186: 1100 | I186: Before the dawn of time, this lizard warrior reigned supreme.
A187: Ancient One of the Deep Forest | B187: M | C187: Normal Monster | D187: Beast | E187: Earth | F187: 6 | G187: 1800 | H187: 1900 | I187: This creature adopts the form of a white goat living in the forest, but is actually a Forest Elder.
A188: Ancient Pixie Dragon | B188: M | C188: Synchro / Effect Monster | D188: Dragon | E188: Dark | F188: 7 | G188: 2100 | H188: 3000 | I188: 1 Tuner + 1 or more non-Tuner monsters After resolving a Field Spell Card that was activated during your turn: Draw 1 card. You can only use this effect of "Ancient Pixie Dragon" once per turn. Once per turn: You can target 1 face-up Attack Position monster on the field; destroy that target. There must be a face-up Field Spell Card on the field to activate and to resolve this effect.
A189: Ancient Sacred Wyvern | B189: M | C189: Synchro / Effect Monster | D189: Fairy | E189: Light | F189: 7 | G189: 2100 | H189: 2000 | I189: 1 LIGHT Tuner + 1 or more non-Tuner monsters While your Life Points are higher than your opponent's, this card gains ATK equal to the difference. While your Life Points are lower than your opponent's, this card loses ATK equal to the difference. When this card is destroyed by battle and sent to the Graveyard, you can pay 1000 Life Points to Special Summon this card.
A190: Ancient Tool | B190: M | C190: Normal Monster | D190: Machine | E190: Dark | F190: 5 | G190: 1700 | H190: 1400 | I190: A destructive machine discovered in the Ruins of the Ancients.
A191: Andro Sphinx | B191: M | C191: Effect Monster | D191: Beast | E191: Light | F191: 10 | G191: 3000 | H191: 2500 | I191: You can pay 500 Life Points to Special Summon this card when "Pyramid of Light" is on the field. This card cannot attack during the turn that it is Normal Summoned or Special Summoned. This card cannot be Special Summoned from the Graveyard. If this card destroys a Defense Position monster as a result of battle, inflict damage to your opponents Life Points equal to half the ATK of the destroyed monster.
A192: Anesthrokket Dragon | B192: M | C192: Effect Monster | D192: Dragon | E192: Dark | F192: 1 | G192: 0 | H192: 2200 | I192: When a Link Monster's effect is activated that targets this face-up card on the field (Quick Effect): You can destroy this card, then make 1 face-up monster on the field unable to attack, also it has its effects negated. During the End Phase, if this card is in the GY because it was destroyed on the field by battle or card effect and sent there this turn: You can Special Summon 1 "Rokket" monster from your Deck, except "Anesthrokket Dragon". You can only use each effect of "Anesthrokket Dragon" once per turn.
A193: Angel 07 | B193: M | C193: Effect Monster | D193: Fairy | E193: Light | F193: 7 | G193: 2500 | H193: 1500 | I193: When this card is Tribute Summoned, it gains the following effect: The effects of Effect Monsters cannot be activated.
A194: Angel of Zera | B194: M | C194: Synchro / Effect Monster | D194: Fairy | E194: Light | F194: 8 | G194: 2800 | H194: 2300 | I194: 1 Tuner + 1 or more non-Tuner monsters This card gains 100 ATK for each of your opponent's banished cards. During the Standby Phase of the next turn after this card was banished: Special Summon this banished card. You can only use the effect of "Angel of Zera" once per turn.
A195: Angel Trumpeter | B195: M | C195: Tuner Monster | D195: Plant | E195: Earth | F195: 4 | G195: 1900 | H195: 1600 | I195: This beautiful, fairy-like flower generates a delusional mist to keep intruders away from the deepest parts of the forest, where sacred beasts dwell.
A196: Angmarl the Fiendish Monarch | B196: M | C196: Effect Monster | D196: Fiend | E196: Dark | F196: 6 | G196: 2400 | H196: 1000 | I196: When this card is Tribute Summoned: You can banish 1 Spell Card from your Graveyard; add 1 card with the same name as the banished Spell Card from your Deck to your hand.
A197: Ansatsu | B197: M | C197: Normal Monster | D197: Warrior | E197: Earth | F197: 5 | G197: 1700 | H197: 1200 | I197: A silent and deadly warrior specializing in assassinations.
A198: Anteatereatingant | B198: M | C198: Effect Monster | D198: Insect | E198: Earth | F198: 5 | G198: 2000 | H198: 500 | I198: This card cannot be Normal Summoned or Set. This card cannot be Special Summoned except by sending 2 Spell or Trap Cards on your side of the field to the Graveyard. This card can destroy 1 Spell or Trap Card on your opponent's side of the field, but it cannot attack this turn if you activate this effect.
A199: Anthrosaurus | B199: M | C199: Normal Monster | D199: Dinosaur | E199: Earth | F199: 3 | G199: 1000 | H199: 850 | I199: Dis man-like dinosawz gotta high I.Q., even tho he's lackin' in da strength depawtment. (Kinda like yooz, if ya had a high I.Q.! Nyaah!)
A200: Anti-Aircraft Flower | B200: M | C200: Effect Monster | D200: Plant | E200: Earth | F200: 3 | G200: 0 | H200: 1600 | I200: By tributing 1 Insect-Type monster on your side of the field, inflict 800 points of damage to your opponent's Life Points.
... 8893 more rows

Sheet Limited
B1: Card Name | C1: Advanced | E1: As of Jan 28, 2019
B2: ANCIENT FAIRY DRAGON | C2: Forbidden | E2: https://www.yugiohcardguide.com/limited-and-forbidden-card-list.html
B3: ASTROGRAPH SORCERER | C3: Forbidden
B4: BLACKWING - GOFU THE VAGUE SHADOW | C4: Forbidden
B5: BLASTER, DRAGON RULER OF INFERNOS | C5: Forbidden
B6: BUTTERFLY DAGGER - ELMA | C6: Forbidden
B7: CARD OF SAFE RETURN | C7: Forbidden
B8: CHANGE OF HEART | C8: Forbidden
B9: CHICKEN GAME | C9: Forbidden
B10: COLD WAVE | C10: Forbidden
B11: CONFISCATION | C11: Forbidden
B12: CYBER JAR | C12: Forbidden
B13: DAIGUSTO EMERAL | C13: Forbidden
B14: DANDYLION | C14: Forbidden
B15: DELINQUENT DUO | C15: Forbidden
B16: DENGLONG, FIRST OF THE YANG ZING | C16: Forbidden
B17: DIMENSION FUSION | C17: Forbidden
B18: DJINN RELEASER OF RITUALS | C18: Forbidden
B19: DOUBLE IRIS MAGICIAN | C19: Forbidden
B20: ELDER ENTITY NORDEN | C20: Forbidden
B21: FAIRY TAIL - SNOW | C21: Forbidden
B22: FIBER JAR | C22: Forbidden
B23: FIREWALL DRAGON | C23: Forbidden
B24: FISHBORG BLASTER | C24: Forbidden
B25: GIANT TRUNADE | C25: Forbidden
B26: GRACEFUL CHARITY | C26: Forbidden
B27: GRINDER GOLEM | C27: Forbidden
B28: HARPIE'S FEATHER DUSTER | C28: Forbidden
B29: HEAVY STORM | C29: Forbidden
B30: KAISER COLOSSEUM | C30: Forbidden
B31: KNIGHTMARE GOBLIN | C31: Forbidden
B32: LAST TURN | C32: Forbidden
B33: LAST WILL | C33: Forbidden
B34: LAVALVAL CHAIN | C34: Forbidden
B35: LEVEL EATER | C35: Forbidden
B36: MAGICAL SCIENTIST | C36: Forbidden
B37: MAJESPECTER UNICORN - KIRIN | C37: Forbidden
B38: MAKYURA THE DESTRUCTOR | C38: Forbidden
B39: MASS DRIVER | C39: Forbidden
B40: MASTER PEACE, THE TRUE DRACOSLAYING KING | C40: Forbidden
B41: MAXX "C" | C41: Forbidden
B42: METAMORPHOSIS | C42: Forbidden
B43: MIND MASTER | C43: Forbidden
B44: MIRAGE OF NIGHTMARE | C44: Forbidden
B45: MORPHING JAR #2 | C45: Forbidden
B46: M-X-SABER INVOKER | C46: Forbidden
B47: NUMBER 16: SHOCK MASTER | C47: Forbidden
B48: NUMBER 42: GALAXY TOMAHAWK | C48: Forbidden
B49: NUMBER 86: HEROIC CHAMPION - RHONGOMYNIAD | C49: Forbidden
B50: PAINFUL CHOICE | C50: Forbidden
B51: PERFORMAGE PLUSHFIRE | C51: Forbidden
B52: PERFORMAPAL MONKEYBOARD | C52: Forbidden
B53: PERFORMAPAL SKULLCROBAT JOKER | C53: Forbidden
B54: PHOENIXIAN CLUSTER AMARYLLIS | C54: Forbidden
B55: POT OF AVARICE | C55: Forbidden
B56: POT OF GREED | C56: Forbidden
B57: PREMATURE BURIAL | C57: Forbidden
B58: RANK-UP-MAGIC ARGENT CHAOS FORCE | C58: Forbidden
B59: REDOX, DRAGON RULER OF BOULDERS | C59: Forbidden
B60: RETURN FROM THE DIFFERENT DIMENSION | C60: Forbidden
B61: ROYAL OPPRESSION | C61: Forbidden
B62: SAMSARA LOTUS | C62: Forbidden
B63: SELF-DESTRUCT BUTTON | C63: Forbidden
B64: SIXTH SENSE | C64: Forbidden
B65: SNATCH STEAL | C65: Forbidden
B66: SOUL CHARGE | C66: Forbidden
B67: SPELLBOOK OF JUDGMENT | C67: Forbidden
B68: SUBSTITOAD | C68: Forbidden
B69: SUPER REJUVENATION | C69: Forbidden
B70: SUPREME KING DRAGON STARVING VENOM | C70: Forbidden
B71: TELLARKNIGHT PTOLEMAEUS | C71: Forbidden
B72: TEMPEST, DRAGON RULER OF STORMS | C72: Forbidden
B73: THAT GRASS LOOKS GREENER | C73: Forbidden
B74: THE FORCEFUL SENTRY | C74: Forbidden
B75: THE TYRANT NEPTUNE | C75: Forbidden
B76: TIDAL, DRAGON RULER OF WATERFALLS | C76: Forbidden
B77: TIME SEAL | C77: Forbidden
B78: TOPOLOGIC GUMBLAR DRAGON | C78: Forbidden
B79: TRAP DUSTSHOOT | C79: Forbidden
B80: TRIBE-INFECTING VIRUS | C80: Forbidden
B81: TRUE KING LITHOSAGYM, THE DISASTER | C81: Forbidden
B82: ULTIMATE OFFERING | C82: Forbidden
B83: VANITY'S EMPTINESS | C83: Forbidden
B84: VICTORY DRAGON | C84: Forbidden
B85: WIND-UP CARRIER ZENMAITY | C85: Forbidden
B86: YATA-GARASU | C86: Forbidden
B87: ZOODIAC BROADBULL | C87: Forbidden
B88: ZOODIAC DRIDENT | C88: Forbidden
B89: A HERO LIVES | C89: Limited
B90: ARMAGEDDON KNIGHT | C90: Limited
B91: BEATRICE, LADY OF THE ETERNAL | C91: Limited
B92: BOOK OF MOON | C92: Limited
B93: BRILLIANT FUSION | C93: Limited
B94: CARD DESTRUCTION | C94: Limited
B95: CHAIN STRIKE | C95: Limited
B96: CHAOS EMPEROR DRAGON - ENVOY OF THE END | C96: Limited
B97: CIR, MALEBRANCHE OF THE BURNING ABYSS | C97: Limited
B98: CYBER-STEIN | C98: Limited
B99: DARK ARMED DRAGON | C99: Limited
B100: DARK GREPHER | C100: Limited
B101: DARK HOLE | C101: Limited
B102: DEEP SEA DIVA | C102: Limited
B103: DEWLOREN, TIGER KING OF THE ICE BARRIER | C103: Limited
B104: DIMENSIONAL FISSURE | C104: Limited
B105: DINOMIGHT KNIGHT, THE TRUE DRACOFIGHTER | C105: Limited
B106: DIVINE WIND OF MIST VALLEY | C106: Limited
B107: DRACO FACE-OFF | C107: Limited
B108: EHTHER THE HEAVENLY MONARCH | C108: Limited
B109: EL SHADDOLL CONSTRUCT | C109: Limited
B110: ELEMENTAL HERO STRATOS | C110: Limited
B111: EMERGENCY TELEPORT | C111: Limited
B112: EVIGISHKI GUSTKRAKEN | C112: Limited
B113: EVIGISHKI MIND AUGUS | C113: Limited
B114: EXODIA THE FORBIDDEN ONE | C114: Limited
B115: FINAL COUNTDOWN | C115: Limited
B116: FOOLISH BURIAL | C116: Limited
B117: GATEWAY OF THE SIX | C117: Limited
B118: GEM-KNIGHT MASTER DIAMOND | C118: Limited
B119: GENEX ALLY BIRDMAN | C119: Limited
B120: GOLD SARCOPHAGUS | C120: Limited
B121: GRAFF, MALEBRANCHE OF THE BURNING ABYSS | C121: Limited
B122: HEAVYMETALFOES ELECTRUMITE | C122: Limited
B123: IGNISTER PROMINENCE, THE BLASTING DRACOSLAYER | C123: Limited
B124: IMPERIAL ORDER | C124: Limited
B125: INFERNITY ARCHFIEND | C125: Limited
B126: INFERNITY LAUNCHER | C126: Limited
B127: INZEKTOR DRAGONFLY | C127: Limited
B128: LEFT ARM OF THE FORBIDDEN ONE | C128: Limited
B129: LEFT LEG OF THE FORBIDDEN ONE | C129: Limited
B130: MACRO COSMOS | C130: Limited
B131: MAGICAL EXPLOSION | C131: Limited
B132: MAGICAL MID-BREAKER FIELD | C132: Limited
B133: MISCELLANEOUSAURUS | C133: Limited
B134: MONSTER GATE | C134: Limited
B135: MONSTER REBORN | C135: Limited
B136: MORPHING JAR | C136: Limited
B137: NEKROZ OF UNICORE | C137: Limited
B138: NIGHT ASSAILANT | C138: Limited
B139: ONE DAY OF PEACE | C139: Limited
B140: ONE FOR ONE | C140: Limited
B141: PANTHEISM OF THE MONARCHS | C141: Limited
B142: PERFORMAGE DAMAGE JUGGLER | C142: Limited
B143: PSY-FRAMELORD OMEGA | C143: Limited
B144: QLIPHORT SCOUT | C144: Limited
B145: RAIGEKI | C145: Limited
B146: REASONING | C146: Limited
B147: RED-EYES DARKNESS METAL DRAGON | C147: Limited
B148: REINFORCEMENT OF THE ARMY | C148: Limited
B149: REKINDLING | C149: Limited
B150: RIGHT ARM OF THE FORBIDDEN ONE | C150: Limited
B151: RIGHT LEG OF THE FORBIDDEN ONE | C151: Limited
B152: RITUAL BEAST ULTI-CANNAHAWK | C152: Limited
B153: ROYAL TRIBUTE | C153: Limited
B154: SCAPEGOAT | C154: Limited
B155: SET ROTATION | C155: Limited
B156: SHURIT, STRATEGIST OF THE NEKROZ | C156: Limited
B157: SKILL DRAIN | C157: Limited
B158: SKY STRIKER MECHA - HORNET DRONES | C158: Limited
B159: SLASH DRAW | C159: Limited
B160: SOLEMN JUDGMENT | C160: Limited
B161: SOLEMN WARNING | C161: Limited
B162: SOUL DRAIN | C162: Limited
B163: SPEEDROID TERRORTOP | C163: Limited
B164: SPYRAL GEAR - DRONE | C164: Limited
B165: SPYRAL QUIK-FIX | C165: Limited
B166: SPYRAL RESORT | C166: Limited
B167: SUPER POLYMERIZATION | C167: Limited
B168: SYMBOL OF HERITAGE | C168: Limited
B169: TOUR GUIDE FROM THE UNDERWORLD | C169: Limited
B170: TRISHULA, DRAGON OF THE ICE BARRIER | C170: Limited
B171: TRUE KING'S RETURN | C171: Limited
B172: UPSTART GOBLIN | C172: Limited
B173: WALL OF REVEALING LIGHT | C173: Limited
B174: ZOODIAC RATPIER | C174: Limited
B175: DESTINY HERO - MALICIOUS | C175: Semi-Limited
B176: LUSTER PENDULUM, THE DRACOSLAYER | C176: Semi-Limited
B177: NECROFACE | C177: Semi-Limited
B178: TERRAFORMING | C178: Semi-Limited
